Workbook

Sheet Požadavky na kritéria (hidden)
A1: Kritéria jsou seřazena v tomto směru a je zvýrazněno to, které jste označil nulou
A3: ='Vstupní data'!M17 -> Cena | B3: Min | C3: Max | D3: Body | F3: ='Vstupní data'!M17 -> Cena | G3: Min | H3: Max | I3: Body | K3: ='Vstupní data'!M19 -> Záruční doba | L3: Min | M3: Max | N3: Body | P3: ='Vstupní data'!M20 -> Spolehlivost dodavatele | Q3: Min | R3: Max | S3: Body | U3: ='Vstupní data'!M21 -> OS | V3: Min | W3: Max | X3: Body | Z3: ='Vstupní data'!M22 -> Vnitřní paměť | AA3: Min | AB3: Max | AC3: Body | AE3: ='Vstupní data'!M23 -> Frekvence RAM | AF3: Min | AG3: Max | AH3: Body | AJ3: ='Vstupní data'!M24 -> Kapacita disku | AK3: Min | AL3: Max | AM3: Body | AO3: ='Vstupní data'!M25 -> Grafická karta | AP3: Min | AQ3: Max | AR3: Body | AT3: ='Vstupní data'!M26 -> Výbava | AU3: Min | AV3: Max | AW3: Body
B4: 0 | D4: 1 | G4: 0 | I4: 1 | L4: 0 | N4: 1 | Q4: 0 | R4: 1 | S4: 1 | V4: 0 | X4: 1 | AA4: 0 | AC4: 1 | AF4: 0 | AH4: 1 | AK4: 0 | AM4: 1 | AP4: 0 | AR4: 1 | AU4: 0 | AW4: 1
D5: 2 | I5: 2 | N5: 2 | S5: 2 | X5: 2 | AC5: 2 | AH5: 2 | AM5: 2 | AR5: 2 | AW5: 2
D6: 3 | I6: 3 | N6: 3 | S6: 3 | X6: 3 | AC6: 3 | AH6: 3 | AM6: 3 | AR6: 3 | AW6: 3
D7: 4 | I7: 4 | N7: 4 | S7: 4 | X7: 4 | AC7: 4 | AH7: 4 | AM7: 4 | AR7: 4 | AW7: 4
D8: 5 | I8: 5 | N8: 5 | S8: 5 | X8: 5 | AC8: 5 | AH8: 5 | AM8: 5 | AR8: 5 | AW8: 5
D9: 6 | I9: 6 | N9: 6 | S9: 6 | X9: 6 | AC9: 6 | AH9: 6 | AM9: 6 | AR9: 6 | AW9: 6
D10: 7 | I10: 7 | N10: 7 | S10: 7 | X10: 7 | AC10: 7 | AH10: 7 | AM10: 7 | AR10: 7 | AW10: 7
D11: 8 | I11: 8 | N11: 8 | S11: 8 | X11: 8 | AC11: 8 | AH11: 8 | AM11: 8 | AR11: 8 | AW11: 8
D12: 9 | I12: 9 | N12: 9 | S12: 9 | X12: 9 | AC12: 9 | AH12: 9 | AM12: 9 | AR12: 9 | AW12: 9
D13: 10 | I13: 10 | N13: 10 | S13: 10 | X13: 10 | AC13: 10 | AH13: 10 | AM13: 10 | AR13: 10 | AW13: 10

Sheet Vstupní data
D4: Vicekriteriální model rozhodování
E6: Vstupní data
D8: Stanovení váhy kritérií
D11: Agregace hodnotících kritérií
O16: Jednotky | P16: MAX/MIN
E17: V1 | G17: Lenovo Ideacentre 300-20ISH | K17: K1 | M17: Cena | O17: Kč | P17: MIN
E18: V2 | G18: Fujitsu Esprimo P556/E85+ | K18: K2 | M18: Doba bezplatného servisu | O18: Měsíce | P18: MAX
E19: V3 | G19: HP Pavilion 24-b151nc | K19: K3 | M19: Záruční doba | O19: Roky | P19: MAX
E20: V4 | G20: Lenovo IdeaCentre 700-24ISH | K20: K4 | M20: Spolehlivost dodavatele | O20: Body | P20: MAX
E21: V5 | G21: HP ProDesk 400 G4 Micro Tower | K21: K5 | M21: OS | P21: MAX
E22: V6 | G22: Lenovo S510 Tower | K22: K6 | M22: Vnitřní paměť | O22: Gb | P22: MAX
E23: V7 | G23: Dell Inspiron 24 | K23: K7 | M23: Frekvence RAM | O23: MHz | P23: MAX
E24: V8 | G24: Dell OptiPlex 3050 SFF | K24: K8 | M24: Kapacita disku | O24: Gb | P24: MAX
E25: V9 | G25: Dell Optiplex 3040 SFF | K25: K9 | M25: Grafická karta | O25: Body | P25: MAX
E26: V10 | G26: Dell Vostro 3668 MT | K26: K10 | M26: Výbava | O26: Body | P26: MAX

Sheet Metoda bodovací_
A1: MIN | B1: MAX
B2: Kritérium | C2: Název kritéria | D2: Typ | E2: Body | F2: Váhy | I2: Kritérium | J2: Název varianty
B3: K1 | C3: ='Vstupní data'!M17 -> Cena | D3: MIN | E3: 1 | F3: 0.1637630662 | I3: K1 | J3: ='Vstupní data'!G17 -> Lenovo Ideacentre 300-20ISH
B4: K2 | C4: ='Vstupní data'!M18 -> Doba bezplatného servisu | D4: MAX | E4: 9 | F4: 0.05574912892 | I4: K2 | J4: ='Vstupní data'!G18 -> Fujitsu Esprimo P556/E85+
B5: K3 | C5: ='Vstupní data'!M19 -> Záruční doba | D5: MAX | E5: 10 | F5: 0.04181184669 | I5: K3 | J5: ='Vstupní data'!G19 -> HP Pavilion 24-b151nc
B6: K4 | C6: ='Vstupní data'!M20 -> Spolehlivost dodavatele | D6: MAX | E6: 3 | F6: 0.118466899 | I6: K4 | J6: ='Vstupní data'!G20 -> Lenovo IdeaCentre 700-24ISH
B7: K5 | C7: ='Vstupní data'!M21 -> OS | D7: MIN | E7: 4 | F7: 0.1114982578 | I7: K5 | J7: ='Vstupní data'!G21 -> HP ProDesk 400 G4 Micro Tower
B8: K6 | C8: ='Vstupní data'!M22 -> Vnitřní paměť | D8: MAX | E8: 6 | F8: 0.09407665505 | I8: K6 | J8: ='Vstupní data'!G22 -> Lenovo S510 Tower
B9: K7 | C9: ='Vstupní data'!M23 -> Frekvence RAM | D9: MAX | E9: 7 | F9: 0.09059233449 | I9: K7 | J9: ='Vstupní data'!G23 -> Dell Inspiron 24
B10: K8 | C10: ='Vstupní data'!M24 -> Kapacita disku | D10: MAX | E10: 4 | F10: 0.1114982578 | I10: K8 | J10: ='Vstupní data'!G24 -> Dell OptiPlex 3050 SFF
B11: K9 | C11: ='Vstupní data'!M25 -> Grafická karta | D11: MAX | E11: 8 | F11: 0.06968641115 | I11: K9 | J11: ='Vstupní data'!G25 -> Dell Optiplex 3040 SFF
B12: K10 | C12: ='Vstupní data'!M26 -> Výbava | D12: MAX | E12: 2 | F12: 0.1428571429 | I12: K10 | J12: ='Vstupní data'!G26 -> Dell Vostro 3668 MT
E13: =SUM(E3:E12) -> 54

Sheet Bodové hodnocení více experty
C2: Body | D2: Pořadí | E2: Pr | F2: E1 | G2: E2 | H2: E3 | I2: E4 | J2: E5 | K2: E6 | L2: …
A3: =SUM(F3:BI3) -> 47 | C3: K1 | D3: =RANK(E3,$E$3:$E$12) -> 1 | E3: =A3/$A$13 -> 0.1637630662 | F3: 10 | G3: 9 | H3: 8 | I3: 5 | J3: 6 | K3: 9
A4: =SUM(F4:BI4) -> 16 | C4: K2 | D4: =RANK(E4,$E$3:$E$12) -> 9 | E4: =A4/$A$13 -> 0.05574912892 | F4: 2 | G4: 3 | H4: 2 | I4: 1 | J4: 7 | K4: 1
A5: 12 | C5: K3 | D5: =RANK(E5,$E$3:$E$12) -> 10 | E5: =A5/$A$13 -> 0.04181184669 | F5: 1 | G5: 2 | H5: 1 | I5: 3 | J5: 4 | K5: 1
A6: 34 | C6: K4 | D6: 3 | E6: =A6/$A$13 -> 0.118466899 | F6: 6 | G6: 1 | H6: 9 | I6: 6 | J6: 6 | K6: 6
A7: 32 | C7: K5 | D7: 4 | E7: =A7/$A$13 -> 0.1114982578 | F7: 2 | G7: 8 | H7: 7 | I7: 4 | J7: 3 | K7: 8
A8: 27 | C8: K6 | D8: 6 | E8: =A8/$A$13 -> 0.09407665505 | F8: 7 | G8: 1 | H8: 3 | I8: 8 | J8: 1 | K8: 7
A9: 26 | C9: K7 | D9: 7 | E9: =A9/$A$13 -> 0.09059233449 | F9: 3 | G9: 5 | H9: 6 | I9: 7 | J9: 2 | K9: 3
A10: 32 | C10: K8 | D10: 4 | E10: =A10/$A$13 -> 0.1114982578 | F10: 5 | G10: 7 | H10: 5 | I10: 2 | J10: 8 | K10: 5
A11: 20 | C11: K9 | D11: 8 | E11: =A11/$A$13 -> 0.06968641115 | F11: 4 | G11: 6 | H11: 4 | I11: 1 | J11: 1 | K11: 4
A12: 41 | C12: K10 | D12: 2 | E12: =A12/$A$13 -> 0.1428571429 | F12: 8 | G12: 5 | H12: 2 | I12: 9 | J12: 9 | K12: 8
A13: =SUM(A3:A12) -> 287 | E13: =SUM(E3:E12) -> 1 | F13: =SUM(F3:F12) -> 48 | G13: =SUM(G3:G12) -> 47 | H13: 47 | I13: 46 | J13: 47 | K13: 52 | L13: 0 | M13: 0 | N13: 0 | O13: 0 | P13: 0 | Q13: 0 | R13: 0 | S13: 0 | T13: 0 | U13: 0 | V13: 0 | W13: 0 | X13: 0 | Y13: 0 | Z13: 0 | AA13: 0 | AB13: 0 | AC13: 0 | AD13: 0 | AE13: 0 | AF13: 0 | AG13: 0 | AH13: 0 | AI13: 0 | AJ13: 0 | AK13: 0 | AL13: 0 | AM13: 0 | AN13: 0 | AO13: 0 | AP13: 0 | AQ13: 0 | AR13: 0 | AS13: 0 | AT13: 0 | AU13: 0 | AV13: 0 | AW13: 0 | AX13: 0 | AY13: 0 | AZ13: 0 | BA13: 0 | BB13: 0 | BC13: 0 | BD13: 0 | BE13: 0 | BF13: 0 | BG13: 0 | BH13: 0 | BI13: 0

Sheet Metoda pořadí
B2: Kritérium | C2: Název kritéria | D2: Typ | E2: Pořadí | F2: Váhy | I2: Kritérium | J2: Název varianty
B3: K1 | C3: ='Vstupní data'!M17 -> Cena | D3: ='Vstupní data'!P17 -> MIN | E3: 1 | F3: 0.159375 | I3: K1 | J3: ='Vstupní data'!G17 -> Lenovo Ideacentre 300-20ISH
B4: K2 | C4: ='Vstupní data'!M18 -> Doba bezplatného servisu | D4: ='Vstupní data'!P18 -> MAX | E4: 9 | F4: 0.059375 | I4: K2 | J4: ='Vstupní data'!G18 -> Fujitsu Esprimo P556/E85+
B5: K3 | C5: ='Vstupní data'!M19 -> Záruční doba | D5: ='Vstupní data'!P19 -> MAX | E5: 10 | F5: 0.040625 | I5: K3 | J5: ='Vstupní data'!G19 -> HP Pavilion 24-b151nc
B6: K4 | C6: ='Vstupní data'!M20 -> Spolehlivost dodavatele | D6: ='Vstupní data'!P20 -> MAX | E6: 3 | F6: 0.115625 | I6: K4 | J6: ='Vstupní data'!G20 -> Lenovo IdeaCentre 700-24ISH
B7: K5 | C7: ='Vstupní data'!M21 -> OS | D7: ='Vstupní data'!P21 -> MAX | E7: 6 | F7: 0.096875 | I7: K5 | J7: ='Vstupní data'!G21 -> HP ProDesk 400 G4 Micro Tower
B8: K6 | C8: ='Vstupní data'!M22 -> Vnitřní paměť | D8: ='Vstupní data'!P22 -> MAX | E8: 5 | F8: 0.10625 | I8: K6 | J8: ='Vstupní data'!G22 -> Lenovo S510 Tower
B9: K7 | C9: ='Vstupní data'!M23 -> Frekvence RAM | D9: ='Vstupní data'!P23 -> MAX | E9: 7 | F9: 0.08125 | I9: K7 | J9: ='Vstupní data'!G23 -> Dell Inspiron 24
B10: K8 | C10: ='Vstupní data'!M24 -> Kapacita disku | D10: ='Vstupní data'!P24 -> MAX | E10: 4 | F10: 0.1125 | I10: K8 | J10: ='Vstupní data'!G24 -> Dell OptiPlex 3050 SFF
B11: K9 | C11: ='Vstupní data'!M25 -> Grafická karta | D11: ='Vstupní data'!P25 -> MAX | E11: 8 | F11: 0.06875 | I11: K9 | J11: ='Vstupní data'!G25 -> Dell Optiplex 3040 SFF
B12: K10 | C12: ='Vstupní data'!M26 -> Výbava | D12: ='Vstupní data'!P26 -> MAX | E12: 1 | F12: 0.159375 | I12: K10 | J12: ='Vstupní data'!G26 -> Dell Vostro 3668 MT
E13: =SUM(E3:E12) -> 54
E118: Kritérium | F118: Váhy
E119: =C3 -> Cena | F119: =(11-E3)/$E$13 -> 0.1851851852
E120: =C4 -> Doba bezplatného servisu | F120: 0.03703703704
E121: Záruční doba | F121: 0.01851851852
E122: Spolehlivost dodavatele | F122: 0.1481481481
E123: OS | F123: 0.09259259259
E124: Vnitřní paměť | F124: 0.1111111111
E125: Frekvence RAM | F125: 0.07407407407
E126: Kapacita disku | F126: 0.1296296296
E127: Grafická karta | F127: 0.05555555556
E128: Výbava | F128: 0.1851851852

Sheet Vyšší počet expertů
E2: Pořadí | F2: Pr | G2: E1 | H2: E2 | I2: E3 | J2: E4 | K2: E5 | L2: E6 | M2: …
A3: =SUM(G19:BJ19) -> 51 | C3: K1 | D3: ='Vstupní data'!M17 -> Cena | E3: =RANK(F3,$F$3:$F$12) -> 1 | F3: =A3/$A$13 -> 0.159375 | G3: 1 | H3: 1 | I3: 1 | J3: 5 | K3: 4 | L3: 1
A4: =SUM(G20:BJ20) -> 19 | C4: K2 | D4: ='Vstupní data'!M18 -> Doba bezplatného servisu | E4: =RANK(F4,$F$3:$F$12) -> 9 | F4: =A4/$A$13 -> 0.059375 | G4: 8 | H4: 7 | I4: 8 | J4: 10 | K4: 3 | L4: 9
A5: 13 | C5: K3 | D5: ='Vstupní data'!M19 -> Záruční doba | E5: =RANK(F5,$F$3:$F$12) -> 10 | F5: 0.040625 | G5: 10 | H5: 8 | I5: 10 | J5: 7 | K5: 6 | L5: 10
A6: 37 | C6: K4 | D6: ='Vstupní data'!M20 -> Spolehlivost dodavatele | E6: 3 | F6: 0.115625 | G6: 2 | H6: 10 | I6: 2 | J6: 4 | K6: 4 | L6: 4
A7: 31 | C7: K5 | D7: ='Vstupní data'!M21 -> OS | E7: 6 | F7: 0.096875 | G7: 7 | H7: 2 | I7: 7 | J7: 6 | K7: 7 | L7: 2
A8: 34 | C8: K6 | D8: ='Vstupní data'!M22 -> Vnitřní paměť | E8: 5 | F8: 0.10625 | G8: 3 | H8: 9 | I8: 3 | J8: 2 | K8: 9 | L8: 3
A9: 26 | C9: K7 | D9: ='Vstupní data'!M23 -> Frekvence RAM | E9: 7 | F9: 0.08125 | G9: 6 | H9: 5 | I9: 6 | J9: 3 | K9: 8 | L9: 7
A10: 36 | C10: K8 | D10: ='Vstupní data'!M24 -> Kapacita disku | E10: 4 | F10: 0.1125 | G10: 4 | H10: 3 | I10: 4 | J10: 8 | K10: 2 | L10: 5
A11: 22 | C11: K9 | D11: ='Vstupní data'!M25 -> Grafická karta | E11: 8 | F11: 0.06875 | G11: 5 | H11: 4 | I11: 5 | J11: 10 | K11: 10 | L11: 6
A12: 51 | C12: K10 | D12: ='Vstupní data'!M26 -> Výbava | E12: 1 | F12: 0.159375 | G12: 2 | H12: 5 | I12: 2 | J12: 1 | K12: 2 | L12: 2
A13: =SUM(G29:BJ29) -> 320 | G13: =SUM(G3:G12) -> 48 | H13: =SUM(H3:H12) -> 54 | I13: 48 | J13: 56 | K13: 55 | L13: 49 | M13: 0 | N13: 0 | O13: 0 | P13: 0 | Q13: 0 | R13: =SUM(R3:R12) -> 0 | S13: =SUM(S3:S12) -> 0 | T13: =SUM(T3:T12) -> 0 | U13: =SUM(U3:U12) -> 0 | V13: =SUM(V3:V12) -> 0 | W13: =SUM(W3:W12) -> 0 | X13: =SUM(X3:X12) -> 0 | Y13: =SUM(Y3:Y12) -> 0 | Z13: =SUM(Z3:Z12) -> 0 | AA13: =SUM(AA3:AA12) -> 0 | AB13: =SUM(AB3:AB12) -> 0 | AC13: =SUM(AC3:AC12) -> 0 | AD13: =SUM(AD3:AD12) -> 0 | AE13: =SUM(AE3:AE12) -> 0 | AF13: =SUM(AF3:AF12) -> 0 | AG13: =SUM(AG3:AG12) -> 0 | AH13: =SUM(AH3:AH12) -> 0 | AI13: =SUM(AI3:AI12) -> 0 | AJ13: =SUM(AJ3:AJ12) -> 0 | AK13: =SUM(AK3:AK12) -> 0 | AL13: =SUM(AL3:AL12) -> 0 | AM13: =SUM(AM3:AM12) -> 0 | AN13: =SUM(AN3:AN12) -> 0 | AO13: =SUM(AO3:AO12) -> 0 | AP13: =SUM(AP3:AP12) -> 0 | AQ13: =SUM(AQ3:AQ12) -> 0 | AR13: =SUM(AR3:AR12) -> 0 | AS13: =SUM(AS3:AS12) -> 0 | AT13: =SUM(AT3:AT12) -> 0 | AU13: =SUM(AU3:AU12) -> 0 | AV13: =SUM(AV3:AV12) -> 0 | AW13: =SUM(AW3:AW12) -> 0 | AX13: =SUM(AX3:AX12) -> 0 | AY13: =SUM(AY3:AY12) -> 0 | AZ13: =SUM(AZ3:AZ12) -> 0 | BA13: =SUM(BA3:BA12) -> 0 | BB13: =SUM(BB3:BB12) -> 0 | BC13: =SUM(BC3:BC12) -> 0 | BD13: =SUM(BD3:BD12) -> 0 | BE13: =SUM(BE3:BE12) -> 0 | BF13: =SUM(BF3:BF12) -> 0 | BG13: =SUM(BG3:BG12) -> 0 | BH13: =SUM(BH3:BH12) -> 0 | BI13: =SUM(BI3:BI12) -> 0 | BJ13: =SUM(BJ3:BJ12) -> 0
G19: =IF(G3=1,10,IF(G3=2,9,IF(G3=3,7,IF(G3=4,6,IF(G3=5,5,IF(G3=6,4,IF(G3=7,3,IF(G3=8,3,IF(G3=9,2,IF(G3=10,1,"")))))))))) -> 10 | H19: =IF(H3=1,10,IF(H3=2,9,IF(H3=3,7,IF(H3=4,6,IF(H3=5,5,IF(H3=6,4,IF(H3=7,3,IF(H3=8,3,IF(H3=9,2,IF(H3=10,1,"")))))))))) -> 10 | I19: 10 | J19: 5 | K19: 6 | L19: 10
G20: =IF(G4=1,10,IF(G4=2,9,IF(G4=3,7,IF(G4=4,6,IF(G4=5,5,IF(G4=6,4,IF(G4=7,3,IF(G4=8,3,IF(G4=9,2,IF(G4=10,1,"")))))))))) -> 3 | H20: 3 | I20: 3 | J20: 1 | K20: 7 | L20: 2
G21: =IF(G5=1,10,IF(G5=2,9,IF(G5=3,7,IF(G5=4,6,IF(G5=5,5,IF(G5=6,4,IF(G5=7,3,IF(G5=8,3,IF(G5=9,2,IF(G5=10,1,"")))))))))) -> 1 | H21: 3 | I21: 1 | J21: 3 | K21: 4 | L21: 1
G22: =IF(G6=1,10,IF(G6=2,9,IF(G6=3,7,IF(G6=4,6,IF(G6=5,5,IF(G6=6,4,IF(G6=7,3,IF(G6=8,3,IF(G6=9,2,IF(G6=10,1,"")))))))))) -> 9 | H22: 1 | I22: 9 | J22: 6 | K22: 6 | L22: 6
G23: =IF(G7=1,10,IF(G7=2,9,IF(G7=3,7,IF(G7=4,6,IF(G7=5,5,IF(G7=6,4,IF(G7=7,3,IF(G7=8,3,IF(G7=9,2,IF(G7=10,1,"")))))))))) -> 3 | H23: 9 | I23: 3 | J23: 4 | K23: 3 | L23: 9
G24: =IF(G8=1,10,IF(G8=2,9,IF(G8=3,7,IF(G8=4,6,IF(G8=5,5,IF(G8=6,4,IF(G8=7,3,IF(G8=8,3,IF(G8=9,2,IF(G8=10,1,"")))))))))) -> 7 | H24: 2 | I24: 7 | J24: 9 | K24: 2 | L24: 7
G25: =IF(G9=1,10,IF(G9=2,9,IF(G9=3,7,IF(G9=4,6,IF(G9=5,5,IF(G9=6,4,IF(G9=7,3,IF(G9=8,3,IF(G9=9,2,IF(G9=10,1,"")))))))))) -> 4 | H25: 5 | I25: 4 | J25: 7 | K25: 3 | L25: 3
G26: =IF(G10=1,10,IF(G10=2,9,IF(G10=3,7,IF(G10=4,6,IF(G10=5,5,IF(G10=6,4,IF(G10=7,3,IF(G10=8,3,IF(G10=9,2,IF(G10=10,1,"")))))))))) -> 6 | H26: 7 | I26: 6 | J26: 3 | K26: 9 | L26: 5
G27: =IF(G11=1,10,IF(G11=2,9,IF(G11=3,7,IF(G11=4,6,IF(G11=5,5,IF(G11=6,4,IF(G11=7,3,IF(G11=8,3,IF(G11=9,2,IF(G11=10,1,"")))))))))) -> 5 | H27: 6 | I27: 5 | J27: 1 | K27: 1 | L27: 4
G28: =IF(G12=1,10,IF(G12=2,9,IF(G12=3,7,IF(G12=4,6,IF(G12=5,5,IF(G12=6,4,IF(G12=7,3,IF(G12=8,3,IF(G12=9,2,IF(G12=10,1,"")))))))))) -> 9 | H28: 5 | I28: 9 | J28: 10 | K28: 9 | L28: 9
G29: =SUM(G19:G28) -> 57 | H29: =SUM(H19:H28) -> 51 | I29: 57 | J29: 49 | K29: 50 | L29: 56 | M29: 0 | N29: 0 | O29: 0 | P29: 0 | Q29: 0 | R29: 0 | S29: 0 | T29: 0 | U29: 0 | V29: 0 | W29: 0 | X29: 0 | Y29: 0 | Z29: 0 | AA29: 0 | AB29: 0 | AC29: 0 | AD29: 0 | AE29: 0 | AF29: 0 | AG29: 0 | AH29: 0 | AI29: 0 | AJ29: 0 | AK29: 0 | AL29: 0 | AM29: 0 | AN29: 0 | AO29: 0 | AP29: 0 | AQ29: 0 | AR29: 0 | AS29: 0 | AT29: 0 | AU29: 0 | AV29: 0 | AW29: 0 | AX29: 0 | AY29: 0 | AZ29: 0 | BA29: 0 | BB29: 0 | BC29: 0 | BD29: 0 | BE29: 0 | BF29: 0 | BG29: 0 | BH29: 0 | BI29: 0 | BJ29: 0

Sheet Saatyho metoda
B2: Saatyho matice | C2: K1 | D2: K2 | E2: K3 | F2: K4 | G2: K5 | H2: K6 | I2: K7 | J2: K8 | K2: K9 | L2: K10 | M2: Geometrický průměr | N2: Výsledné váhy
B3: K1 | C3: 1 | D3: 9 | E3: 7 | F3: 5 | G3: 5 | H3: 3 | I3: 3 | J3: 1 | K3: 3 | L3: 3 | M3: =GEOMEAN(C3:L3) -> 3.240235365 | N3: =M3/(SUM($M$3:$M$12)) -> 0.2427695711
B4: K2 | C4: =1/D3 -> 0.1111111111 | D4: 1 | E4: 1 | F4: 0.3333333333 | G4: 0.3333333333 | H4: 0.2 | I4: 0.2 | J4: 0.2 | K4: 0.1428571429 | L4: 0.3333333333 | M4: =GEOMEAN(C4:L4) -> 0.293250369 | N4: =M4/(SUM($M$3:$M$12)) -> 0.02197132563
B5: K3 | C5: =1/E3 -> 0.1428571429 | D5: =1/E4 -> 1 | E5: 1 | F5: 0.3333333333 | G5: 0.3333333333 | H5: 0.3333333333 | I5: 0.3333333333 | J5: 0.2 | K5: 0.1428571429 | L5: 0.3333333333 | M5: =GEOMEAN(C5:L5) -> 0.3330602197 | N5: 0.02495401648
B6: K4 | C6: =1/F3 -> 0.2 | D6: =1/F4 -> 3 | E6: =1/F5 -> 3 | F6: 1 | G6: 0.2 | H6: 0.1428571429 | I6: 0.1428571429 | J6: 0.1428571429 | K6: 0.1428571429 | L6: 0.1111111111 | M6: =GEOMEAN(C6:L6) -> 0.3327873299 | N6: 0.02493357064
B7: K5 | C7: =1/G3 -> 0.2 | D7: =1/G4 -> 3 | E7: =1/G5 -> 3 | F7: =1/G6 -> 5 | G7: 1 | H7: 0.3333333333 | I7: 0.3333333333 | J7: 0.2 | K7: 0.2 | L7: 0.2 | M7: 0.6170338627 | N7: 0.04623029791
B8: K6 | C8: =1/H3 -> 0.3333333333 | D8: =1/H4 -> 5 | E8: =1/H5 -> 3 | F8: =1/H6 -> 7 | G8: =1/H7 -> 3 | H8: 1 | I8: 1 | J8: 0.3333333333 | K8: 1 | L8: 0.3333333333 | M8: 1.27848218 | N8: 0.09578827941
B9: K7 | C9: =1/I3 -> 0.3333333333 | D9: =1/I4 -> 5 | E9: =1/I5 -> 3 | F9: =1/I6 -> 7 | G9: =I7 -> 0.3333333333 | H9: =1/I8 -> 1 | I9: 1 | J9: 1 | K9: 3 | L9: 1 | M9: 1.426943588 | N9: 0.1069115185
B10: K8 | C10: =1/J3 -> 1 | D10: =1/J4 -> 5 | E10: =1/J5 -> 5 | F10: =1/J6 -> 7 | G10: =1/J7 -> 5 | H10: =1/J8 -> 3 | I10: =1/J9 -> 1 | J10: 1 | K10: 3 | L10: 0.3333333333 | M10: 2.197419281 | N10: 0.1646382056
B11: K9 | C11: =1/K3 -> 0.3333333333 | D11: =1/K4 -> 7 | E11: =1/K5 -> 7 | F11: =1/K6 -> 7 | G11: =1/K7 -> 5 | H11: =1/K8 -> 1 | I11: =1/K9 -> 0.3333333333 | J11: =1/K10 -> 0.3333333333 | K11: 1 | L11: 0.3333333333 | M11: 1.356993947 | N11: 0.1016706509
B12: K10 | C12: =1/L3 -> 0.3333333333 | D12: =1/L4 -> 3 | E12: =1/L5 -> 3 | F12: =1/L6 -> 9 | G12: =1/L7 -> 5 | H12: =1/L8 -> 3 | I12: =1/L9 -> 1 | J12: =1/L10 -> 3 | K12: =1/L11 -> 3 | L12: 1 | M12: 2.27075225 | N12: =M12/(SUM($M$3:$M$12)) -> 0.1701325638
B15: Počet bodů | C15: Deskriptor | J15: ='Vstupní data'!M17 -> Cena | M15: K1
B16: 1 | C16: Kritéria jsou stejně významná | J16: ='Vstupní data'!M18 -> Doba bezplatného servisu | M16: K2
B17: 3 | C17: První kritérium je slabě významnější než druhé | J17: ='Vstupní data'!M19 -> Záruční doba | M17: K3
B18: 5 | C18: První kritérium je dosti významnější než druhé | J18: ='Vstupní data'!M20 -> Spolehlivost dodavatele | M18: K4
B19: 7 | C19: První kritérium je prokazatelně významnější než druhé | J19: ='Vstupní data'!M21 -> OS | M19: K5
B20: 9 | C20: První kritérium je absolutně významnější než druhé | J20: ='Vstupní data'!M22 -> Vnitřní paměť | M20: K6
J21: ='Vstupní data'!M23 -> Frekvence RAM | M21: K7
J22: ='Vstupní data'!M24 -> Kapacita disku | M22: K8
J23: ='Vstupní data'!M25 -> Grafická karta | M23: K9
J24: ='Vstupní data'!M26 -> Výbava | M24: K10

Sheet Hodnotyp pro jednotlivá krit
B2: Kritériální matice | D2: K1 | E2: K2 | F2: K3 | G2: K4 | H2: K5 | I2: K6 | J2: K7 | K2: K8 | L2: K9 | M2: K10
D3: ='Vstupní data'!M17 -> Cena | E3: ='Vstupní data'!M18 -> Doba bezplatného servisu | F3: ='Vstupní data'!M19 -> Záruční doba | G3: ='Vstupní data'!M20 -> Spolehlivost dodavatele | H3: ='Vstupní data'!M21 -> OS | I3: ='Vstupní data'!M22 -> Vnitřní paměť | J3: ='Vstupní data'!M23 -> Frekvence RAM | K3: ='Vstupní data'!M24 -> Kapacita disku | L3: ='Vstupní data'!M25 -> Grafická karta | M3: ='Vstupní data'!M26 -> Výbava
D4: ='Vstupní data'!O17 -> Kč | E4: ='Vstupní data'!O18 -> Měsíce | F4: ='Vstupní data'!O19 -> Roky | G4: ='Vstupní data'!O20 -> Body | H4: ='Vstupní data'!O21 -> 0 | I4: ='Vstupní data'!O22 -> Gb | J4: ='Vstupní data'!O23 -> MHz | K4: ='Vstupní data'!O24 -> Gb | L4: ='Vstupní data'!O25 -> Body | M4: ='Vstupní data'!O26 -> Body
D5: ='Metoda pořadí'!D3 -> MIN | E5: ='Metoda pořadí'!D4 -> MAX | F5: ='Metoda pořadí'!D5 -> MAX | G5: ='Metoda pořadí'!D6 -> MAX | H5: ='Metoda pořadí'!D7 -> MAX | I5: ='Metoda pořadí'!D8 -> MAX | J5: ='Metoda pořadí'!D9 -> MAX | K5: ='Metoda pořadí'!D10 -> MAX | L5: ='Metoda pořadí'!D11 -> MAX | M5: ='Metoda pořadí'!D12 -> MAX
B6: V1 | C6: ='Vstupní data'!G17 -> Lenovo Ideacentre 300-20ISH | D6: 24467 | E6: 24 | F6: 24 | G6: 1 | H6: 10 | I6: 2 | J6: 3300 | K6: 1 | L6: 3 | M6: 1
B7: V2 | C7: ='Vstupní data'!G18 -> Fujitsu Esprimo P556/E85+ | D7: 19590 | E7: 24 | F7: 24 | G7: 1 | H7: 4 | I7: 2 | J7: 3200 | K7: 1.13 | L7: 7 | M7: 1
B8: V3 | C8: ='Vstupní data'!G19 -> HP Pavilion 24-b151nc | D8: 22990 | E8: 24 | F8: 24 | G8: 1 | H8: 10 | I8: 2 | J8: 2200 | K8: 1.13 | L8: 6 | M8: 2
B9: V4 | C9: ='Vstupní data'!G20 -> Lenovo IdeaCentre 700-24ISH | D9: 22990 | E9: 24 | F9: 24 | G9: 1 | H9: 10 | I9: 2 | J9: 3300 | K9: 1.13 | L9: 4 | M9: 2
B10: V5 | C10: ='Vstupní data'!G21 -> HP ProDesk 400 G4 Micro Tower | D10: 20458 | E10: 36 | F10: 24 | G10: 1 | H10: 10 | I10: 2 | J10: 3900 | K10: 0.256 | L10: 8 | M10: 1
B11: V6 | C11: ='Vstupní data'!G22 -> Lenovo S510 Tower | D11: 11990 | E11: 36 | F11: 36 | G11: 2 | H11: 10 | I11: 1 | J11: 3300 | K11: 0.5 | L11: 5 | M11: 1
B12: V7 | C12: ='Vstupní data'!G23 -> Dell Inspiron 24 | D12: 17990 | E12: 24 | F12: 24 | G12: 2 | H12: 10 | I12: 1 | J12: 2400 | K12: 1 | L12: 2 | M12: 2
B13: V8 | C13: ='Vstupní data'!G24 -> Dell OptiPlex 3050 SFF | D13: 18990 | E13: 36 | F13: 36 | G13: 2 | H13: 10 | I13: 2 | J13: 3400 | K13: 1 | L13: 9 | M13: 1
B14: V9 | C14: ='Vstupní data'!G25 -> Dell Optiplex 3040 SFF | D14: 13290 | E14: 36 | F14: 36 | G14: 1 | H14: 10 | I14: 1 | J14: 3700 | K14: 0.5 | L14: 1 | M14: 1
B15: V10 | C15: ='Vstupní data'!G26 -> Dell Vostro 3668 MT | D15: 18990 | E15: 36 | F15: 36 | G15: 2 | H15: 10 | I15: 2 | J15: 3600 | K15: 1 | L15: 10 | M15: 1

Sheet Metoda bodovací_ručně
B2: Počet bodů | C2: K1 | F2: Počet bodů | G2: K2 | J2: Počet bodů | K2: K3 | N2: Počet bodů | O2: K4 | R2: Počet bodů | S2: K5
B3: 1 | C3: 24467 | D3: 21971.6 | F3: 1 | G3: 24 | H3: 26.4 | J3: 1 | K3: 24 | L3: 26.4 | N3: 1 | O3: 1 | P3: 1.2 | R3: 1 | S3: 4 | T3: 5.2
B4: 2 | C4: 21971.59999 | D4: 19476.2 | F4: 2 | G4: 26.40001 | H4: 28.8 | J4: 2 | K4: 26.40001 | L4: 28.8 | N4: 2 | O4: 1.20001 | P4: 1.4 | R4: 2 | S4: 5.20001 | T4: 6.4
B5: 3 | C5: 19476.19999 | D5: 16980.8 | F5: 3 | G5: 28.80001 | H5: 31.2 | J5: 3 | K5: 28.80001 | L5: 31.2 | N5: 3 | O5: 1.40001 | P5: 1.6 | R5: 3 | S5: 6.40001 | T5: 7.6
B6: 4 | C6: 16980.79999 | D6: 14485.4 | F6: 4 | G6: 31.20001 | H6: 33.6 | J6: 4 | K6: 31.20001 | L6: 33.6 | N6: 4 | O6: 1.60001 | P6: 1.8 | R6: 4 | S6: 7.60001 | T6: 8.8
B7: 5 | C7: 14485.39999 | D7: 11990 | F7: 5 | G7: 33.60001 | H7: 36 | J7: 5 | K7: 33.60001 | L7: 36 | N7: 5 | O7: 1.80001 | P7: 2 | R7: 5 | S7: 8.80001 | T7: 10
B9: Počet bodů | C9: K6 | F9: Počet bodů | G9: K7 | J9: Počet bodů | K9: K8 | N9: Počet bodů | O9: K9 | R9: Počet bodů | S9: K10
B10: 1 | C10: 1 | D10: 5.2 | F10: 1 | G10: 2200 | H10: 2540 | J10: 1 | K10: 0.256 | L10: 0.4308 | N10: 1 | O10: 1 | P10: 2.8 | R10: 1 | S10: 1 | T10: 1.2
B11: 2 | C11: 5.20001 | D11: 6.4 | F11: 2 | G11: 2540.00001 | H11: 2880 | J11: 2 | K11: 0.43081 | L11: 0.6056 | N11: 2 | O11: 2.80001 | P11: 4.6 | R11: 2 | S11: 1.20001 | T11: 1.4
B12: 3 | C12: 6.40001 | D12: 7.6 | F12: 3 | G12: 2880.00001 | H12: 3220 | J12: 3 | K12: 0.60561 | L12: 0.7804 | N12: 3 | O12: 4.60001 | P12: 6.4 | R12: 3 | S12: 1.40001 | T12: 1.6
B13: 4 | C13: 7.60001 | D13: 8.8 | F13: 4 | G13: 3220.00001 | H13: 3560 | J13: 4 | K13: 0.78041 | L13: 0.9552 | N13: 4 | O13: 6.40001 | P13: 8.2 | R13: 4 | S13: 1.60001 | T13: 1.8
B14: 5 | C14: 8.80001 | D14: 2 | F14: 5 | G14: 3560.00001 | H14: 3900 | J14: 5 | K14: 0.95521 | L14: 1.13 | N14: 5 | O14: 8.20001 | P14: 10 | R14: 5 | S14: 1.80001 | T14: 2
B16: Tabulka bodů | C16: =C91 -> V1 | D16: V2 | E16: V3 | F16: V4 | G16: V5 | H16: V6 | I16: V7 | J16: V8 | K16: V9 | L16: V10 | M16: Váhy
C17: =C92 -> MIN | D17: MAX | E17: MAX | F17: MAX | G17: MAX | H17: MAX | I17: MAX | J17: MAX | K17: MAX | L17: MAX
B18: =B93 -> K1 | C18: =C45+M45+W45+AG45+AQ45+C60+M60+W60+AG60+AQ60 -> 1 | D18: =D45+N45+X45+AH45+AR45+D60+N60+X60+AH60+AR60 -> 1 | E18: =E45+O45+Y45+AI45+AS45+E60+O60+Y60+AI60+AS60 -> 1 | F18: =F45+P45+Z45+AJ45+AT45+F60+P60+Z60+AJ60+AT60 -> 1 | G18: =G45+Q45+AA45+AK45+AU45+G60+Q60+AA60+AK60+AU60 -> 5 | H18: =H45+R45+AB45+AL45+AV45+H60+R60+AB60+AL60+AV60 -> 1 | I18: =I45+S45+AC45+AM45+AW45+I60+S60+AC60+AM60+AW60 -> 4 | J18: =J45+T45+AD45+AN45+AX45+J60+T60+AD60+AN60+AX60 -> 5 | K18: =K45+U45+AE45+AO45+AY45+K60+U60+AE60+AO60+AY60 -> 2 | L18: =L45+V45+AF45+AP45+AZ45+L60+V60+AF60+AP60+AZ60 -> 1 | M18: 0.1637630662
B19: K2 | C19: 2 | D19: 1 | E19: 1 | F19: 1 | G19: 1 | H19: 1 | I19: 3 | J19: 5 | K19: 4 | L19: 1 | M19: 0.05574912892
B20: K3 | C20: 1 | D20: 1 | E20: 1 | F20: 1 | G20: 5 | H20: 1 | I20: 1 | J20: 5 | K20: 3 | L20: 5 | M20: 0.04181184669
B21: K4 | C21: 1 | D21: 1 | E21: 1 | F21: 1 | G21: 5 | H21: 1 | I21: 4 | J21: 5 | K21: 2 | L21: 5 | M21: 0.118466899
B22: K5 | C22: 2 | D22: 5 | E22: 1 | F22: 1 | G22: 5 | H22: 1 | I22: 5 | J22: 1 | K22: 4 | L22: 1 | M22: 0.1114982578
B23: K6 | C23: 5 | D23: 5 | E23: 5 | F23: 5 | G23: 5 | H23: 1 | I23: 4 | J23: 2 | K23: 3 | L23: 1 | M23: 0.09407665505
B24: K7 | C24: 3 | D24: 1 | E24: 1 | F24: 5 | G24: 5 | H24: 1 | I24: 1 | J24: 5 | K24: 1 | L24: 5 | M24: 0.09059233449
B25: K8 | C25: 3 | D25: 5 | E25: 5 | F25: 5 | G25: 5 | H25: 1 | I25: 4 | J25: 5 | K25: 5 | L25: 1 | M25: 0.1114982578
B26: K9 | C26: 5 | D26: 5 | E26: 5 | F26: 1 | G26: 5 | H26: 1 | I26: 5 | J26: 2 | K26: 1 | L26: 1 | M26: 0.06968641115
B27: K10 | C27: 3 | D27: 5 | E27: 5 | F27: 5 | G27: 5 | H27: 1 | I27: 5 | J27: 5 | K27: 5 | L27: 1 | M27: 0.1428571429
B29: =B16 -> Tabulka bodů | C29: =C16 -> V1 | D29: =D16 -> V2 | E29: V3 | F29: V4 | G29: V5 | H29: V6 | I29: V7 | J29: V8 | K29: V9 | L29: V10
C30: =C17 -> MIN | D30: MAX | E30: MAX | F30: MAX | G30: MAX | H30: MAX | I30: MAX | J30: MAX | K30: MAX | L30: MAX
B31: =B18 -> K1 | C31: =C18*$M18 -> 0.1637630662 | D31: =D18*$M18 -> 0.1637630662 | E31: 0.1637630662 | F31: 0.1637630662 | G31: 0.818815331 | H31: 0.1637630662 | I31: 0.6550522648 | J31: 0.818815331 | K31: 0.3275261324 | L31: 0.1637630662
B32: =B19 -> K2 | C32: =C19*$M19 -> 0.1114982578 | D32: 0.05574912892 | E32: 0.05574912892 | F32: 0.05574912892 | G32: 0.05574912892 | H32: 0.05574912892 | I32: 0.1672473868 | J32: 0.2787456446 | K32: 0.2229965157 | L32: 0.05574912892
B33: K3 | C33: 0.04181184669 | D33: 0.04181184669 | E33: 0.04181184669 | F33: 0.04181184669 | G33: 0.2090592334 | H33: 0.04181184669 | I33: 0.04181184669 | J33: 0.2090592334 | K33: 0.1254355401 | L33: 0.2090592334
B34: K4 | C34: 0.118466899 | D34: 0.118466899 | E34: 0.118466899 | F34: 0.118466899 | G34: 0.5923344948 | H34: 0.118466899 | I34: 0.4738675958 | J34: 0.5923344948 | K34: 0.2369337979 | L34: 0.5923344948
B35: K5 | C35: 0.2229965157 | D35: 0.5574912892 | E35: 0.1114982578 | F35: 0.1114982578 | G35: 0.5574912892 | H35: 0.1114982578 | I35: 0.5574912892 | J35: 0.1114982578 | K35: 0.4459930314 | L35: 0.1114982578
B36: K6 | C36: 0.4703832753 | D36: 0.4703832753 | E36: 0.4703832753 | F36: 0.4703832753 | G36: 0.4703832753 | H36: 0.09407665505 | I36: 0.3763066202 | J36: 0.1881533101 | K36: 0.2822299652 | L36: 0.09407665505
B37: K7 | C37: 0.2717770035 | D37: 0.09059233449 | E37: 0.09059233449 | F37: 0.4529616725 | G37: 0.4529616725 | H37: 0.09059233449 | I37: 0.09059233449 | J37: 0.4529616725 | K37: 0.09059233449 | L37: 0.4529616725
B38: K8 | C38: 0.3344947735 | D38: 0.5574912892 | E38: 0.5574912892 | F38: 0.5574912892 | G38: 0.5574912892 | H38: 0.1114982578 | I38: 0.4459930314 | J38: 0.5574912892 | K38: 0.5574912892 | L38: 0.1114982578
B39: K9 | C39: 0.3484320557 | D39: 0.3484320557 | E39: 0.3484320557 | F39: 0.06968641115 | G39: 0.3484320557 | H39: 0.06968641115 | I39: 0.3484320557 | J39: 0.1393728223 | K39: 0.06968641115 | L39: 0.06968641115
B40: K10 | C40: 0.4285714286 | D40: 0.7142857143 | E40: 0.7142857143 | F40: 0.7142857143 | G40: 0.7142857143 | H40: =H27*$M27 -> 0.1428571429 | I40: 0.7142857143 | J40: 0.7142857143 | K40: 0.7142857143 | L40: 0.1428571429
C41: =SUM(C31:C40) -> 2.512195122 | D41: =SUM(D31:D40) -> 3.118466899 | E41: 2.672473868 | F41: 2.756097561 | G41: 4.777003484 | H41: 1 | I41: 3.871080139 | J41: 4.06271777 | K41: 3.073170732 | L41: 2.003484321
C42: =RANK(C41,$C$41:$L$41) -> 8 | D42: =RANK(D41,$C$41:$L$41) -> 4 | E42: 7 | F42: 6 | G42: 1 | H42: 10 | I42: 3 | J42: 2 | K42: 5 | L42: 9
C45: =IF(AND($C93>=$C$3,$C93<=$D$3,C$92="MAX"),1,0) -> 0 | D45: =IF(AND($D93>=$G$3,$D93<=$H$3,D$92="MAX"),1,0) -> 1 | E45: =IF(AND($E93>=$K$3,$E93<=$L$3,E$92="MAX"),1,0) -> 1 | F45: =IF(AND($F93>=$O$3,$F93<=$P$3,F$92="MAX"),1,0) -> 1 | G45: =IF(AND($G93>=$S$3,$G93<=$T$3,G$92="MAX"),1,0) -> 0 | H45: =IF(AND($H93>=$C$10,$H93<=$D$10,H$92="MAX"),1,0) -> 1 | I45: =IF(AND($I93>=$G$10,$I93<=$H$10,I$92="MAX"),1,0) -> 0 | J45: =IF(AND($J93>=$K$10,$J93<=$L$10,J$92="MAX"),1,0) -> 0 | K45: =IF(AND($K93>=$O$10,$K93<=$P$10,K$92="MAX"),1,0) -> 0 | L45: =IF(AND($L93>=$S$10,$L93<=$T$10,L$92="MAX"),1,0) -> 1 | M45: =IF(AND($C93>=$C$4,$C93<=$D$4,C$92="MAX"),2,0) -> 0 | N45: =IF(AND($D93>=$G$4,$D93<=$H$4,D$92="MAX"),2,0) -> 0 | O45: =IF(AND($E93>=$K$4,$E93<=$L$4,E$92="MAX"),2,0) -> 0 | P45: =IF(AND($F93>=$O$4,$F93<=$P$4,F$92="MAX"),2,0) -> 0 | Q45: =IF(AND($G93>=$S$4,$G93<=$T$4,G$92="MAX"),2,0) -> 0 | R45: =IF(AND($H93>=$C$11,$H93<=$D$11,H$92="MAX"),2,0) -> 0 | S45: =IF(AND($I93>=$G$11,$I93<=$H$11,I$92="MAX"),2,0) -> 0 | T45: =IF(AND($J93>=$K$11,$J93<=$L$11,J$92="MAX"),2,0) -> 0 | U45: =IF(AND($K93>=$O$11,$K93<=$P$11,K$92="MAX"),2,0) -> 2 | V45: =IF(AND($L93>=$S$11,$L93<=$T$11,L$92="MAX"),2,0) -> 0 | W45: =IF(AND($C93>=$C$5,$C93<=$D$5,C$92="MAX"),3,0) -> 0 | X45: =IF(AND($D93>=$G$5,$D93<=$H$5,D$92="MAX"),3,0) -> 0 | Y45: =IF(AND($E93>=$K$5,$E93<=$L$5,E$92="MAX"),3,0) -> 0 | Z45: =IF(AND($F93>=$O$5,$F93<=$P$5,F$92="MAX"),3,0) -> 0 | AA45: =IF(AND($G93>=$S$5,$G93<=$T$5,G$92="MAX"),3,0) -> 0 | AB45: =IF(AND($H93>=$C$12,$H93<=$D$12,H$92="MAX"),3,0) -> 0 | AC45: =IF(AND($I93>=$G$12,$I93<=$H$12,I$92="MAX"),3,0) -> 0 | AD45: =IF(AND($J93>=$K$12,$J93<=$L$12,J$92="MAX"),3,0) -> 0 | AE45: =IF(AND($K93>=$O$12,$K93<=$P$12,K$92="MAX"),3,0) -> 0 | AF45: =IF(AND($L93>=$S$12,$L93<=$T$12,L$92="MAX"),3,0) -> 0 | AG45: =IF(AND($C93=$C$6,$C93<=$D$6,C$92="MAX"),4,0) -> 0 | AH45: =IF(AND($D93>=$G$6,$D93<=$H$6,D$92="MAX"),4,0) -> 0 | AI45: =IF(AND($E93>=$K$6,$E93<=$L$6,E$92="MAX"),4,0) -> 0 | AJ45: =IF(AND($F93>=$O$6,$F93<=$P$6,F$92="MAX"),4,0) -> 0 | AK45: =IF(AND($G93>=$S$6,$G93<=$T$6,G$92="MAX"),4,0) -> 0 | AL45: =IF(AND($H93>=$C$13,$H93<=$D$13,H$92="MAX"),4,0) -> 0 | AM45: =IF(AND($I93>=$G$13,$I93<=$H$13,I$92="MAX"),4,0) -> 4 | AN45: =IF(AND($J93>=$K$13,$J93<=$L$13,J$92="MAX"),4,0) -> 0 | AO45: =IF(AND($K93>=$O$13,$K93<=$P$13,K$92="MAX"),4,0) -> 0 | AP45: =IF(AND($L93>=$S$13,$L93<=$T$13,L$92="MAX"),4,0) -> 0 | AQ45: =IF(AND($C93>=$C$7,$C93<=$D$7,C$92="MAX"),5,0) -> 0 | AR45: =IF(AND($D93>=$G$7,$D93<=$H$7,D$92="MAX"),5,0) -> 0 | AS45: =IF(AND($E93>=$K$7,$E93<=$L$7,E$92="MAX"),5,0) -> 0 | AT45: =IF(AND($F93>=$O$7,$F93<=$P$7,F$92="MAX"),5,0) -> 0 | AU45: =IF(AND($G93>=$S$7,$G93<=$T$7,G$92="MAX"),5,0) -> 5 | AV45: =IF(AND($H93>=$C$14,$H93<=$D$14,H$92="MAX"),5,0) -> 0 | AW45: =IF(AND($I93>=$G$14,$I93<=$H$14,I$92="MAX"),5,0) -> 0 | AX45: =IF(AND($J93>=$K$14,$J93<=$L$14,J$92="MAX"),5,0) -> 5 | AY45: =IF(AND($K93>=$O$14,$K93<=$P$14,K$92="MAX"),5,0) -> 0 | AZ45: =IF(AND($L93>=$S$14,$L93<=$T$14,L$92="MAX"),5,0) -> 0
C46: =IF(AND($C94>=$C$3,$C94<=$D$3,C$92="MAX"),1,0) -> 0 | D46: 1 | E46: 1 | F46: 1 | G46: 1 | H46: 1 | I46: 0 | J46: 0 | K46: 0 | L46: 1 | M46: 0 | N46: 0 | O46: 0 | P46: 0 | Q46: 0 | R46: 0 | S46: 0 | T46: 0 | U46: 0 | V46: 0 | W46: 0 | X46: 0 | Y46: 0 | Z46: 0 | AA46: 0 | AB46: 0 | AC46: 3 | AD46: 0 | AE46: 0 | AF46: 0 | AG46: 0 | AH46: 0 | AI46: 0 | AJ46: 0 | AK46: 0 | AL46: 0 | AM46: 0 | AN46: 0 | AO46: 4 | AP46: 0 | AQ46: 0 | AR46: 0 | AS46: 0 | AT46: 0 | AU46: 0 | AV46: 0 | AW46: 0 | AX46: 5 | AY46: 0 | AZ46: 0
C47: 0 | D47: 1 | E47: 1 | F47: 1 | G47: 0 | H47: 1 | I47: 1 | J47: 0 | K47: 0 | L47: 0 | M47: 0 | N47: 0 | O47: 0 | P47: 0 | Q47: 0 | R47: 0 | S47: 0 | T47: 0 | U47: 0 | V47: 0 | W47: 0 | X47: 0 | Y47: 0 | Z47: 0 | AA47: 0 | AB47: 0 | AC47: 0 | AD47: 0 | AE47: 3 | AF47: 0 | AG47: 0 | AH47: 0 | AI47: 0 | AJ47: 0 | AK47: 0 | AL47: 0 | AM47: 0 | AN47: 0 | AO47: 0 | AP47: 0 | AQ47: 0 | AR47: 0 | AS47: 0 | AT47: 0 | AU47: 5 | AV47: 0 | AW47: 0 | AX47: 5 | AY47: 0 | AZ47: 5
C48: 0 | D48: 1 | E48: 1 | F48: 1 | G48: 0 | H48: 1 | I48: 0 | J48: 0 | K48: 0 | L48: 0 | M48: 0 | N48: 0 | O48: 0 | P48: 0 | Q48: 0 | R48: 0 | S48: 0 | T48: 0 | U48: 2 | V48: 0 | W48: 0 | X48: 0 | Y48: 0 | Z48: 0 | AA48: 0 | AB48: 0 | AC48: 0 | AD48: 0 | AE48: 0 | AF48: 0 | AG48: 0 | AH48: 0 | AI48: 0 | AJ48: 0 | AK48: 0 | AL48: 0 | AM48: 4 | AN48: 0 | AO48: 0 | AP48: 0 | AQ48: 0 | AR48: 0 | AS48: 0 | AT48: 0 | AU48: 5 | AV48: 0 | AW48: 0 | AX48: 5 | AY48: 0 | AZ48: 5
C49: 0 | D49: 0 | E49: 1 | F49: 1 | G49: 0 | H49: 1 | I49: 0 | J49: 1 | K49: 0 | L49: 1 | M49: 0 | N49: 0 | O49: 0 | P49: 0 | Q49: 0 | R49: 0 | S49: 0 | T49: 0 | U49: 0 | V49: 0 | W49: 0 | X49: 0 | Y49: 0 | Z49: 0 | AA49: 0 | AB49: 0 | AC49: 0 | AD49: 0 | AE49: 0 | AF49: 0 | AG49: 0 | AH49: 0 | AI49: 0 | AJ49: 0 | AK49: 0 | AL49: 0 | AM49: 0 | AN49: 0 | AO49: 4 | AP49: 0 | AQ49: 0 | AR49: 5 | AS49: 0 | AT49: 0 | AU49: 5 | AV49: 0 | AW49: 5 | AX49: 0 | AY49: 0 | AZ49: 0
C50: 0 | D50: 0 | E50: 0 | F50: 0 | G50: 0 | H50: 1 | I50: 0 | J50: 0 | K50: 0 | L50: 1 | M50: 0 | N50: 0 | O50: 0 | P50: 0 | Q50: 0 | R50: 0 | S50: 0 | T50: 2 | U50: 0 | V50: 0 | W50: 0 | X50: 0 | Y50: 0 | Z50: 0 | AA50: 0 | AB50: 0 | AC50: 0 | AD50: 0 | AE50: 3 | AF50: 0 | AG50: 0 | AH50: 0 | AI50: 0 | AJ50: 0 | AK50: 0 | AL50: 0 | AM50: 4 | AN50: 0 | AO50: 0 | AP50: 0 | AQ50: 0 | AR50: 5 | AS50: 5 | AT50: 5 | AU50: 5 | AV50: 0 | AW50: 0 | AX50: 0 | AY50: 0 | AZ50: 0
C51: 0 | D51: 1 | E51: 1 | F51: 0 | G51: 0 | H51: 1 | I51: 1 | J51: 0 | K51: 1 | L51: 0 | M51: 0 | N51: 0 | O51: 0 | P51: 0 | Q51: 0 | R51: 0 | S51: 0 | T51: 0 | U51: 0 | V51: 0 | W51: 0 | X51: 0 | Y51: 0 | Z51: 0 | AA51: 0 | AB51: 0 | AC51: 0 | AD51: 0 | AE51: 0 | AF51: 0 | AG51: 0 | AH51: 0 | AI51: 0 | AJ51: 0 | AK51: 0 | AL51: 0 | AM51: 0 | AN51: 0 | AO51: 0 | AP51: 0 | AQ51: 0 | AR51: 0 | AS51: 0 | AT51: 5 | AU51: 5 | AV51: 0 | AW51: 0 | AX51: 5 | AY51: 0 | AZ51: 5
C52: 0 | D52: 0 | E52: 0 | F52: 0 | G52: 0 | H52: 1 | I52: 0 | J52: 0 | K52: 0 | L52: 1 | M52: 0 | N52: 0 | O52: 0 | P52: 0 | Q52: 0 | R52: 0 | S52: 0 | T52: 0 | U52: 0 | V52: 0 | W52: 0 | X52: 0 | Y52: 0 | Z52: 0 | AA52: 0 | AB52: 0 | AC52: 0 | AD52: 0 | AE52: 0 | AF52: 0 | AG52: 0 | AH52: 0 | AI52: 0 | AJ52: 0 | AK52: 0 | AL52: 0 | AM52: 4 | AN52: 0 | AO52: 0 | AP52: 0 | AQ52: 0 | AR52: 5 | AS52: 5 | AT52: 5 | AU52: 5 | AV52: 0 | AW52: 0 | AX52: 5 | AY52: 5 | AZ52: 0
C53: 0 | D53: 0 | E53: 0 | F53: 1 | G53: 0 | H53: 1 | I53: 0 | J53: 0 | K53: 1 | L53: 1 | M53: 0 | N53: 0 | O53: 0 | P53: 0 | Q53: 0 | R53: 0 | S53: 0 | T53: 2 | U53: 0 | V53: 0 | W53: 0 | X53: 0 | Y53: 0 | Z53: 0 | AA53: 0 | AB53: 0 | AC53: 0 | AD53: 0 | AE53: 0 | AF53: 0 | AG53: 0 | AH53: 0 | AI53: 0 | AJ53: 0 | AK53: 0 | AL53: 0 | AM53: 0 | AN53: 0 | AO53: 0 | AP53: 0 | AQ53: 0 | AR53: 5 | AS53: 5 | AT53: 0 | AU53: 5 | AV53: 0 | AW53: 5 | AX53: 0 | AY53: 0 | AZ53: 0
C54: 0 | D54: 0 | E54: 0 | F54: 0 | G54: 0 | H54: 1 | I54: 0 | J54: 0 | K54: 0 | L54: 1 | M54: 0 | N54: 0 | O54: 0 | P54: 0 | Q54: 0 | R54: 0 | S54: 0 | T54: 0 | U54: 0 | V54: 0 | W54: 0 | X54: 0 | Y54: 0 | Z54: 0 | AA54: 0 | AB54: 0 | AC54: 0 | AD54: 0 | AE54: 0 | AF54: 0 | AG54: 0 | AH54: 0 | AI54: 0 | AJ54: 0 | AK54: 0 | AL54: 0 | AM54: 0 | AN54: 0 | AO54: 0 | AP54: 0 | AQ54: 0 | AR54: 5 | AS54: 5 | AT54: 5 | AU54: 5 | AV54: 0 | AW54: 5 | AX54: 5 | AY54: 5 | AZ54: 0
A58: MIN | B58: 1.interval | C58: V1 | D58: V2 | E58: V3 | F58: V4 | G58: V5 | H58: V6 | I58: V7 | J58: V8 | K58: V9 | L58: V10
C59: =C92 -> MIN | D59: MAX | E59: MAX | F59: MAX | G59: MAX | H59: MAX | I59: MAX | J59: MAX | K59: MAX | L59: MAX
B60: K1 | C60: =IF(AND($C93<=$C$3,$C93>=$D$3,C$92="MIN"),1,0) -> 1 | D60: =IF(AND($D93<=$G$3,$D93>=$H$3,D$92="MIN"),1,0) -> 0 | E60: =IF(AND($E93<=$K$3,$E93>=$L$3,E$92="MIN"),1,0) -> 0 | F60: =IF(AND($F93<=$O$3,$F93>=$P$3,F$92="MIN"),1,0) -> 0 | G60: =IF(AND($G93<=$S$3,$G93>=$T$3,G$92="MIN"),1,0) -> 0 | H60: =IF(AND($H93<=$C$10,$H93>=$D$10,H$92="MIN"),1,0) -> 0 | I60: =IF(AND($I93<=$G$10,$I93>=$H$10,I$92="MIN"),1,0) -> 0 | J60: =IF(AND($J93<=$K$10,$J93>=$L$10,J$92="MIN"),1,0) -> 0 | K60: =IF(AND($K93<=$O$10,$K93>=$P$10,K$92="MIN"),1,0) -> 0 | L60: =IF(AND($L93<=$S$10,$L93>=$T$10,L$92="MIN"),1,0) -> 0 | M60: =IF(AND($C93<=$C$4,$C93>=$D$4,C$92="MIN"),2,0) -> 0 | N60: =IF(AND($D93<=$G$4,$D93>=$H$4,D$92="MIN"),2,0) -> 0 | O60: =IF(AND($E93<=$K$4,$E93>=$L$4,E$92="MIN"),2,0) -> 0 | P60: =IF(AND($F93<=$O$4,$F93>=$P$4,F$92="MIN"),2,0) -> 0 | Q60: =IF(AND($G93<=$S$4,$G93>=$T$4,G$92="MIN"),2,0) -> 0 | R60: =IF(AND($H93<=$C$11,$H93>=$D$11,H$92="MIN"),2,0) -> 0 | S60: =IF(AND($I93<=$G$11,$I93>=$H$11,I$92="MIN"),2,0) -> 0 | T60: =IF(AND($J93<=$K$11,$J93>=$L$11,J$92="MIN"),2,0) -> 0 | U60: =IF(AND($K93<=$O$11,$K93>=$P$11,K$92="MIN"),2,0) -> 0 | V60: =IF(AND($L93<=$S$11,$L93>=$T$11,L$92="MIN"),2,0) -> 0 | W60: =IF(AND($C93<=$C$5,$C93>=$D$5,C$92="MIN"),3,0) -> 0 | X60: =IF(AND($D93<=$G$5,$D93>=$H$5,D$92="MIN"),3,0) -> 0 | Y60: =IF(AND($E93<=$K$5,$E93>=$L$5,E$92="MIN"),3,0) -> 0 | Z60: =IF(AND($F93<=$O$5,$F93>=$P$5,F$92="MIN"),3,0) -> 0 | AA60: =IF(AND($G93<=$S$5,$G93>=$T$5,G$92="MIN"),3,0) -> 0 | AB60: =IF(AND($H93<=$C$12,$H93>=$D$12,H$92="MIN"),3,0) -> 0 | AC60: =IF(AND($I93<=$G$12,$I93>=$H$12,I$92="MIN"),3,0) -> 0 | AD60: =IF(AND($J93<=$K$12,$J93>=$L$12,J$92="MIN"),3,0) -> 0 | AE60: =IF(AND($K93<=$O$12,$K93>=$P$12,K$92="MIN"),3,0) -> 0 | AF60: =IF(AND($L93<=$S$12,$L93>=$T$12,L$92="MIN"),3,0) -> 0 | AG60: =IF(AND($C93<=$C$6,$C93>=$D$6,C$92="MIN"),4,0) -> 0 | AH60: =IF(AND($D93<=$G$6,$D93>=$H$6,D$92="MIN"),4,0) -> 0 | AI60: =IF(AND($E93<=$K$6,$E93>=$L$6,E$92="MIN"),4,0) -> 0 | AJ60: =IF(AND($F93<=$O$6,$F93>=$P$6,F$92="MIN"),4,0) -> 0 | AK60: =IF(AND($G93<=$S$6,$G93>=$T$6,G$92="MIN"),4,0) -> 0 | AL60: =IF(AND($H93<=$C$13,$H93>=$D$13,H$92="MIN"),4,0) -> 0 | AM60: =IF(AND($I93<=$G$13,$I93>=$H$13,I$92="MIN"),4,0) -> 0 | AN60: =IF(AND($J93<=$K$13,$J93>=$L$13,J$92="MIN"),4,0) -> 0 | AO60: =IF(AND($K93<=$O$13,$K93>=$P$13,K$92="MIN"),4,0) -> 0 | AP60: =IF(AND($L93<=$S$13,$L93>=$T$13,L$92="MIN"),4,0) -> 0 | AQ60: =IF(AND($C93<=$C$7,$C93>=$D$7,C$92="MIN"),5,0) -> 0 | AR60: =IF(AND($D93<=$G$7,$D93>=$H$7,D$92="MIN"),5,0) -> 0 | AS60: =IF(AND($E93<=$K$7,$E93>=$L$7,E$92="MIN"),5,0) -> 0 | AT60: =IF(AND($F93<=$O$7,$F93>=$P$7,F$92="MIN"),5,0) -> 0 | AU60: =IF(AND($G93<=$S$7,$G93>=$T$7,G$92="MIN"),5,0) -> 0 | AV60: =IF(AND($H93<=$C$14,$H93>=$D$14,H$92="MIN"),5,0) -> 0 | AW60: =IF(AND($I93<=$G$14,$I93>=$H$14,I$92="MIN"),5,0) -> 0 | AX60: =IF(AND($J93<=$K$14,$J93>=$L$14,J$92="MIN"),5,0) -> 0 | AY60: =IF(AND($K93<=$O$14,$K93>=$P$14,K$92="MIN"),5,0) -> 0 | AZ60: =IF(AND($L93<=$S$14,$L93>=$T$14,L$92="MIN"),5,0) -> 0
B61: K2 | C61: 0 | D61: 0 | E61: 0 | F61: 0 | G61: 0 | H61: 0 | I61: 0 | J61: 0 | K61: 0 | L61: 0 | M61: 2 | N61: 0 | O61: 0 | P61: 0 | Q61: 0 | R61: 0 | S61: 0 | T61: 0 | U61: 0 | V61: 0 | W61: 0 | X61: 0 | Y61: 0 | Z61: 0 | AA61: 0 | AB61: 0 | AC61: 0 | AD61: 0 | AE61: 0 | AF61: 0 | AG61: 0 | AH61: 0 | AI61: 0 | AJ61: 0 | AK61: 0 | AL61: 0 | AM61: 0 | AN61: 0 | AO61: 0 | AP61: 0 | AQ61: 0 | AR61: 0 | AS61: 0 | AT61: 0 | AU61: 0 | AV61: 0 | AW61: 0 | AX61: 0 | AY61: 0 | AZ61: 0
B62: K3 | C62: 1 | D62: 0 | E62: 0 | F62: 0 | G62: 0 | H62: 0 | I62: 0 | J62: 0 | K62: 0 | L62: 0 | M62: 0 | N62: 0 | O62: 0 | P62: 0 | Q62: 0 | R62: 0 | S62: 0 | T62: 0 | U62: 0 | V62: 0 | W62: 0 | X62: 0 | Y62: 0 | Z62: 0 | AA62: 0 | AB62: 0 | AC62: 0 | AD62: 0 | AE62: 0 | AF62: 0 | AG62: 0 | AH62: 0 | AI62: 0 | AJ62: 0 | AK62: 0 | AL62: 0 | AM62: 0 | AN62: 0 | AO62: 0 | AP62: 0 | AQ62: 0 | AR62: 0 | AS62: 0 | AT62: 0 | AU62: 0 | AV62: 0 | AW62: 0 | AX62: 0 | AY62: 0 | AZ62: 0
B63: K4 | C63: 1 | D63: 0 | E63: 0 | F63: 0 | G63: 0 | H63: 0 | I63: 0 | J63: 0 | K63: 0 | L63: 0 | M63: 0 | N63: 0 | O63: 0 | P63: 0 | Q63: 0 | R63: 0 | S63: 0 | T63: 0 | U63: 0 | V63: 0 | W63: 0 | X63: 0 | Y63: 0 | Z63: 0 | AA63: 0 | AB63: 0 | AC63: 0 | AD63: 0 | AE63: 0 | AF63: 0 | AG63: 0 | AH63: 0 | AI63: 0 | AJ63: 0 | AK63: 0 | AL63: 0 | AM63: 0 | AN63: 0 | AO63: 0 | AP63: 0 | AQ63: 0 | AR63: 0 | AS63: 0 | AT63: 0 | AU63: 0 | AV63: 0 | AW63: 0 | AX63: 0 | AY63: 0 | AZ63: 0
B64: K5 | C64: 0 | D64: 0 | E64: 0 | F64: 0 | G64: 0 | H64: 0 | I64: 0 | J64: 0 | K64: 0 | L64: 0 | M64: 2 | N64: 0 | O64: 0 | P64: 0 | Q64: 0 | R64: 0 | S64: 0 | T64: 0 | U64: 0 | V64: 0 | W64: 0 | X64: 0 | Y64: 0 | Z64: 0 | AA64: 0 | AB64: 0 | AC64: 0 | AD64: 0 | AE64: 0 | AF64: 0 | AG64: 0 | AH64: 0 | AI64: 0 | AJ64: 0 | AK64: 0 | AL64: 0 | AM64: 0 | AN64: 0 | AO64: 0 | AP64: 0 | AQ64: 0 | AR64: 0 | AS64: 0 | AT64: 0 | AU64: 0 | AV64: 0 | AW64: 0 | AX64: 0 | AY64: 0 | AZ64: 0
B65: K6 | C65: 0 | D65: 0 | E65: 0 | F65: 0 | G65: 0 | H65: 0 | I65: 0 | J65: 0 | K65: 0 | L65: 0 | M65: 0 | N65: 0 | O65: 0 | P65: 0 | Q65: 0 | R65: 0 | S65: 0 | T65: 0 | U65: 0 | V65: 0 | W65: 0 | X65: 0 | Y65: 0 | Z65: 0 | AA65: 0 | AB65: 0 | AC65: 0 | AD65: 0 | AE65: 0 | AF65: 0 | AG65: 0 | AH65: 0 | AI65: 0 | AJ65: 0 | AK65: 0 | AL65: 0 | AM65: 0 | AN65: 0 | AO65: 0 | AP65: 0 | AQ65: 5 | AR65: 0 | AS65: 0 | AT65: 0 | AU65: 0 | AV65: 0 | AW65: 0 | AX65: 0 | AY65: 0 | AZ65: 0
B66: K7 | C66: 0 | D66: 0 | E66: 0 | F66: 0 | G66: 0 | H66: 0 | I66: 0 | J66: 0 | K66: 0 | L66: 0 | M66: 0 | N66: 0 | O66: 0 | P66: 0 | Q66: 0 | R66: 0 | S66: 0 | T66: 0 | U66: 0 | V66: 0 | W66: 3 | X66: 0 | Y66: 0 | Z66: 0 | AA66: 0 | AB66: 0 | AC66: 0 | AD66: 0 | AE66: 0 | AF66: 0 | AG66: 0 | AH66: 0 | AI66: 0 | AJ66: 0 | AK66: 0 | AL66: 0 | AM66: 0 | AN66: 0 | AO66: 0 | AP66: 0 | AQ66: 0 | AR66: 0 | AS66: 0 | AT66: 0 | AU66: 0 | AV66: 0 | AW66: 0 | AX66: 0 | AY66: 0 | AZ66: 0
B67: K8 | C67: 0 | D67: 0 | E67: 0 | F67: 0 | G67: 0 | H67: 0 | I67: 0 | J67: 0 | K67: 0 | L67: 0 | M67: 0 | N67: 0 | O67: 0 | P67: 0 | Q67: 0 | R67: 0 | S67: 0 | T67: 0 | U67: 0 | V67: 0 | W67: 3 | X67: 0 | Y67: 0 | Z67: 0 | AA67: 0 | AB67: 0 | AC67: 0 | AD67: 0 | AE67: 0 | AF67: 0 | AG67: 0 | AH67: 0 | AI67: 0 | AJ67: 0 | AK67: 0 | AL67: 0 | AM67: 0 | AN67: 0 | AO67: 0 | AP67: 0 | AQ67: 0 | AR67: 0 | AS67: 0 | AT67: 0 | AU67: 0 | AV67: 0 | AW67: 0 | AX67: 0 | AY67: 0 | AZ67: 0
B68: K9 | C68: 0 | D68: 0 | E68: 0 | F68: 0 | G68: 0 | H68: 0 | I68: 0 | J68: 0 | K68: 0 | L68: 0 | M68: 0 | N68: 0 | O68: 0 | P68: 0 | Q68: 0 | R68: 0 | S68: 0 | T68: 0 | U68: 0 | V68: 0 | W68: 0 | X68: 0 | Y68: 0 | Z68: 0 | AA68: 0 | AB68: 0 | AC68: 0 | AD68: 0 | AE68: 0 | AF68: 0 | AG68: 0 | AH68: 0 | AI68: 0 | AJ68: 0 | AK68: 0 | AL68: 0 | AM68: 0 | AN68: 0 | AO68: 0 | AP68: 0 | AQ68: 5 | AR68: 0 | AS68: 0 | AT68: 0 | AU68: 0 | AV68: 0 | AW68: 0 | AX68: 0 | AY68: 0 | AZ68: 0
B69: K10 | C69: 0 | D69: 0 | E69: 0 | F69: 0 | G69: 0 | H69: 0 | I69: 0 | J69: 0 | K69: 0 | L69: 0 | M69: 0 | N69: 0 | O69: 0 | P69: 0 | Q69: 0 | R69: 0 | S69: 0 | T69: 0 | U69: 0 | V69: 0 | W69: 3 | X69: 0 | Y69: 0 | Z69: 0 | AA69: 0 | AB69: 0 | AC69: 0 | AD69: 0 | AE69: 0 | AF69: 0 | AG69: 0 | AH69: 0 | AI69: 0 | AJ69: 0 | AK69: 0 | AL69: 0 | AM69: 0 | AN69: 0 | AO69: 0 | AP69: 0 | AQ69: 0 | AR69: 0 | AS69: 0 | AT69: 0 | AU69: 0 | AV69: 0 | AW69: 0 | AX69: 0 | AY69: 0 | AZ69: 0
B72: =B2 -> Počet bodů | C72: =C2 -> K1 | F72: Počet bodů | G72: K2 | J72: Počet bodů | K72: K3 | N72: Počet bodů | O72: K4 | R72: Počet bodů | S72: K5
B73: 1 | C73: =IF($C$92="MIN",D7,D3) -> 11990 | F73: =F3 -> 1 | G73: 24 | H73: 26.4 | J73: =J3 -> 1 | K73: 24 | L73: 26.4 | N73: =N3 -> 1 | O73: 1 | P73: 1.2 | R73: =R3 -> 1 | S73: 4 | T73: 5.2
B74: 2 | C74: =IF($C$92="MIN",D6,D4) -> 14485.4 | F74: 2 | G74: 26.40001 | H74: 28.8 | J74: 2 | K74: 26.40001 | L74: 28.8 | N74: 2 | O74: 1.20001 | P74: 1.4 | R74: 2 | S74: 5.20001 | T74: 6.4
B75: 3 | C75: =IF($C$92="MIN",D5,D5) -> 16980.8 | F75: 3 | G75: 28.80001 | H75: 31.2 | J75: 3 | K75: 28.80001 | L75: 31.2 | N75: 3 | O75: 1.40001 | P75: 1.6 | R75: 3 | S75: 6.40001 | T75: 7.6
B76: 4 | C76: =IF($C$92="MIN",D4,D6) -> 19476.2 | F76: 4 | G76: 31.20001 | H76: 33.6 | J76: 4 | K76: 31.20001 | L76: 33.6 | N76: 4 | O76: 1.60001 | P76: 1.8 | R76: 4 | S76: 7.60001 | T76: 8.8
B77: 5 | C77: =IF($C$92="MIN",D3,D7) -> 21971.6 | F77: 5 | G77: 33.60001 | H77: 36 | J77: 5 | K77: 33.60001 | L77: 36 | N77: 5 | O77: 1.80001 | P77: 2 | R77: 5 | S77: 8.80001 | T77: 10
B79: =B9 -> Počet bodů | C79: K6 | F79: =F9 -> Počet bodů | G79: K7 | J79: =J9 -> Počet bodů | K79: K8 | N79: =N9 -> Počet bodů | O79: K9 | R79: =R9 -> Počet bodů | S79: K10
B80: 1 | C80: 1 | D80: =D10 -> 5.2 | F80: 1 | G80: 2200 | H80: =H10 -> 2540 | J80: 1 | K80: 0.256 | L80: =L10 -> 0.4308 | N80: 1 | O80: 1 | P80: =P10 -> 2.8 | R80: 1 | S80: 1 | T80: =T10 -> 1.2
B81: 2 | C81: 5.20001 | D81: =D11 -> 6.4 | F81: 2 | G81: 2540.00001 | H81: =H11 -> 2880 | J81: 2 | K81: 0.43081 | L81: =L11 -> 0.6056 | N81: 2 | O81: 2.80001 | P81: =P11 -> 4.6 | R81: 2 | S81: 1.20001 | T81: =T11 -> 1.4
B82: 3 | C82: 6.40001 | D82: =D12 -> 7.6 | F82: 3 | G82: 2880.00001 | H82: =H12 -> 3220 | J82: 3 | K82: 0.60561 | L82: =L12 -> 0.7804 | N82: 3 | O82: 4.60001 | P82: =P12 -> 6.4 | R82: 3 | S82: 1.40001 | T82: =T12 -> 1.6
B83: 4 | C83: 7.60001 | D83: =D13 -> 8.8 | F83: 4 | G83: 3220.00001 | H83: =H13 -> 3560 | J83: 4 | K83: 0.78041 | L83: =L13 -> 0.9552 | N83: 4 | O83: 6.40001 | P83: =P13 -> 8.2 | R83: 4 | S83: 1.60001 | T83: =T13 -> 1.8
B84: 5 | C84: 8.80001 | D84: =D14 -> 2 | F84: 5 | G84: 3560.00001 | H84: =H14 -> 3900 | J84: 5 | K84: 0.95521 | L84: =L14 -> 1.13 | N84: 5 | O84: 8.20001 | P84: =P14 -> 10 | R84: 5 | S84: 1.80001 | T84: =T14 -> 2
C91: V1 | D91: V2 | E91: V3 | F91: V4 | G91: V5 | H91: V6 | I91: V7 | J91: V8 | K91: V9 | L91: V10
C92: ='Hodnotyp pro jednotlivá krit'!D5 -> MIN | D92: ='Hodnotyp pro jednotlivá krit'!E5 -> MAX | E92: ='Hodnotyp pro jednotlivá krit'!F5 -> MAX | F92: ='Hodnotyp pro jednotlivá krit'!G5 -> MAX | G92: ='Hodnotyp pro jednotlivá krit'!H5 -> MAX | H92: ='Hodnotyp pro jednotlivá krit'!I5 -> MAX | I92: ='Hodnotyp pro jednotlivá krit'!J5 -> MAX | J92: ='Hodnotyp pro jednotlivá krit'!K5 -> MAX | K92: ='Hodnotyp pro jednotlivá krit'!L5 -> MAX | L92: ='Hodnotyp pro jednotlivá krit'!M5 -> MAX
B93: K1 | C93: ='Hodnotyp pro jednotlivá krit'!D6 -> 24467 | D93: ='Hodnotyp pro jednotlivá krit'!E6 -> 24 | E93: ='Hodnotyp pro jednotlivá krit'!F6 -> 24 | F93: ='Hodnotyp pro jednotlivá krit'!G6 -> 1 | G93: ='Hodnotyp pro jednotlivá krit'!H6 -> 10 | H93: ='Hodnotyp pro jednotlivá krit'!I6 -> 2 | I93: ='Hodnotyp pro jednotlivá krit'!J6 -> 3300 | J93: ='Hodnotyp pro jednotlivá krit'!K6 -> 1 | K93: ='Hodnotyp pro jednotlivá krit'!L6 -> 3 | L93: ='Hodnotyp pro jednotlivá krit'!M6 -> 1
B94: K2 | C94: ='Hodnotyp pro jednotlivá krit'!D7 -> 19590 | D94: ='Hodnotyp pro jednotlivá krit'!E7 -> 24 | E94: ='Hodnotyp pro jednotlivá krit'!F7 -> 24 | F94: ='Hodnotyp pro jednotlivá krit'!G7 -> 1 | G94: ='Hodnotyp pro jednotlivá krit'!H7 -> 4 | H94: ='Hodnotyp pro jednotlivá krit'!I7 -> 2 | I94: ='Hodnotyp pro jednotlivá krit'!J7 -> 3200 | J94: ='Hodnotyp pro jednotlivá krit'!K7 -> 1.13 | K94: ='Hodnotyp pro jednotlivá krit'!L7 -> 7 | L94: ='Hodnotyp pro jednotlivá krit'!M7 -> 1
B95: K3 | C95: ='Hodnotyp pro jednotlivá krit'!D8 -> 22990 | D95: ='Hodnotyp pro jednotlivá krit'!E8 -> 24 | E95: ='Hodnotyp pro jednotlivá krit'!F8 -> 24 | F95: ='Hodnotyp pro jednotlivá krit'!G8 -> 1 | G95: ='Hodnotyp pro jednotlivá krit'!H8 -> 10 | H95: ='Hodnotyp pro jednotlivá krit'!I8 -> 2 | I95: ='Hodnotyp pro jednotlivá krit'!J8 -> 2200 | J95: ='Hodnotyp pro jednotlivá krit'!K8 -> 1.13 | K95: ='Hodnotyp pro jednotlivá krit'!L8 -> 6 | L95: ='Hodnotyp pro jednotlivá krit'!M8 -> 2
B96: K4 | C96: ='Hodnotyp pro jednotlivá krit'!D9 -> 22990 | D96: ='Hodnotyp pro jednotlivá krit'!E9 -> 24 | E96: ='Hodnotyp pro jednotlivá krit'!F9 -> 24 | F96: ='Hodnotyp pro jednotlivá krit'!G9 -> 1 | G96: ='Hodnotyp pro jednotlivá krit'!H9 -> 10 | H96: ='Hodnotyp pro jednotlivá krit'!I9 -> 2 | I96: ='Hodnotyp pro jednotlivá krit'!J9 -> 3300 | J96: ='Hodnotyp pro jednotlivá krit'!K9 -> 1.13 | K96: ='Hodnotyp pro jednotlivá krit'!L9 -> 4 | L96: ='Hodnotyp pro jednotlivá krit'!M9 -> 2
B97: K5 | C97: ='Hodnotyp pro jednotlivá krit'!D10 -> 20458 | D97: ='Hodnotyp pro jednotlivá krit'!E10 -> 36 | E97: ='Hodnotyp pro jednotlivá krit'!F10 -> 24 | F97: ='Hodnotyp pro jednotlivá krit'!G10 -> 1 | G97: ='Hodnotyp pro jednotlivá krit'!H10 -> 10 | H97: ='Hodnotyp pro jednotlivá krit'!I10 -> 2 | I97: ='Hodnotyp pro jednotlivá krit'!J10 -> 3900 | J97: ='Hodnotyp pro jednotlivá krit'!K10 -> 0.256 | K97: ='Hodnotyp pro jednotlivá krit'!L10 -> 8 | L97: ='Hodnotyp pro jednotlivá krit'!M10 -> 1
B98: K6 | C98: ='Hodnotyp pro jednotlivá krit'!D11 -> 11990 | D98: ='Hodnotyp pro jednotlivá krit'!E11 -> 36 | E98: ='Hodnotyp pro jednotlivá krit'!F11 -> 36 | F98: ='Hodnotyp pro jednotlivá krit'!G11 -> 2 | G98: ='Hodnotyp pro jednotlivá krit'!H11 -> 10 | H98: ='Hodnotyp pro jednotlivá krit'!I11 -> 1 | I98: ='Hodnotyp pro jednotlivá krit'!J11 -> 3300 | J98: ='Hodnotyp pro jednotlivá krit'!K11 -> 0.5 | K98: ='Hodnotyp pro jednotlivá krit'!L11 -> 5 | L98: ='Hodnotyp pro jednotlivá krit'!M11 -> 1
B99: K7 | C99: ='Hodnotyp pro jednotlivá krit'!D12 -> 17990 | D99: ='Hodnotyp pro jednotlivá krit'!E12 -> 24 | E99: ='Hodnotyp pro jednotlivá krit'!F12 -> 24 | F99: ='Hodnotyp pro jednotlivá krit'!G12 -> 2 | G99: ='Hodnotyp pro jednotlivá krit'!H12 -> 10 | H99: ='Hodnotyp pro jednotlivá krit'!I12 -> 1 | I99: ='Hodnotyp pro jednotlivá krit'!J12 -> 2400 | J99: ='Hodnotyp pro jednotlivá krit'!K12 -> 1 | K99: ='Hodnotyp pro jednotlivá krit'!L12 -> 2 | L99: ='Hodnotyp pro jednotlivá krit'!M12 -> 2
B100: K8 | C100: ='Hodnotyp pro jednotlivá krit'!D13 -> 18990 | D100: ='Hodnotyp pro jednotlivá krit'!E13 -> 36 | E100: ='Hodnotyp pro jednotlivá krit'!F13 -> 36 | F100: ='Hodnotyp pro jednotlivá krit'!G13 -> 2 | G100: ='Hodnotyp pro jednotlivá krit'!H13 -> 10 | H100: ='Hodnotyp pro jednotlivá krit'!I13 -> 2 | I100: ='Hodnotyp pro jednotlivá krit'!J13 -> 3400 | J100: ='Hodnotyp pro jednotlivá krit'!K13 -> 1 | K100: ='Hodnotyp pro jednotlivá krit'!L13 -> 9 | L100: ='Hodnotyp pro jednotlivá krit'!M13 -> 1
B101: K9 | C101: ='Hodnotyp pro jednotlivá krit'!D14 -> 13290 | D101: ='Hodnotyp pro jednotlivá krit'!E14 -> 36 | E101: ='Hodnotyp pro jednotlivá krit'!F14 -> 36 | F101: ='Hodnotyp pro jednotlivá krit'!G14 -> 1 | G101: ='Hodnotyp pro jednotlivá krit'!H14 -> 10 | H101: ='Hodnotyp pro jednotlivá krit'!I14 -> 1 | I101: ='Hodnotyp pro jednotlivá krit'!J14 -> 3700 | J101: ='Hodnotyp pro jednotlivá krit'!K14 -> 0.5 | K101: ='Hodnotyp pro jednotlivá krit'!L14 -> 1 | L101: ='Hodnotyp pro jednotlivá krit'!M14 -> 1
B102: K10 | C102: ='Hodnotyp pro jednotlivá krit'!D15 -> 18990 | D102: ='Hodnotyp pro jednotlivá krit'!E15 -> 36 | E102: ='Hodnotyp pro jednotlivá krit'!F15 -> 36 | F102: ='Hodnotyp pro jednotlivá krit'!G15 -> 2 | G102: ='Hodnotyp pro jednotlivá krit'!H15 -> 10 | H102: ='Hodnotyp pro jednotlivá krit'!I15 -> 2 | I102: ='Hodnotyp pro jednotlivá krit'!J15 -> 3600 | J102: ='Hodnotyp pro jednotlivá krit'!K15 -> 1 | K102: ='Hodnotyp pro jednotlivá krit'!L15 -> 10 | L102: ='Hodnotyp pro jednotlivá krit'!M15 -> 1
B104: MAX | C104: =MAX(C93:C102) -> 24467 | D104: =MAX(D93:D102) -> 36 | E104: 36 | F104: 2 | G104: 10 | H104: 2 | I104: 3900 | J104: 1.13 | K104: 10 | L104: 2
B105: MIN | C105: =MIN(C93:C102) -> 11990 | D105: =MIN(D93:D102) -> 24 | E105: 24 | F105: 1 | G105: 4 | H105: 1 | I105: 2200 | J105: 0.256 | K105: 1 | L105: 1
B106: Stupeň | C106: =(C104-C105)/5 -> 2495.4 | D106: =(D104-D105)/5 -> 2.4 | E106: =(E104-E105)/5 -> 2.4 | F106: 0.2 | G106: 1.2 | H106: 0.2 | I106: 340 | J106: 0.1748 | K106: 1.8 | L106: 0.2

Sheet Metoda bodovací_automaticky
B2: Počet bodů | C2: K1 | F2: Počet bodů | G2: K2 | J2: Počet bodů | K2: K3 | N2: Počet bodů | O2: K4 | R2: Počet bodů | S2: K5
B3: 1 | C3: =IF(C92="MIN",C104,C105) -> 24467 | D3: =IF(C92="MIN",C104-C106,C105+C106) -> 21971.6 | F3: 1 | G3: =IF(D92="MIN",D104,D105) -> 24 | H3: =IF(D92="MIN",D104-D106,D105+D106) -> 26.4 | J3: 1 | K3: =IF(E92="MIN",E104,E105) -> 24 | L3: =IF(E92="MIN",E104-(E106),E105+(E106)) -> 26.4 | N3: 1 | O3: =IF(F92="MIN",F104,F105) -> 1 | P3: =IF(F92="MIN",F104-F106,F105+F106) -> 1.2 | R3: 1 | S3: =IF(G92="MIN",G104,G105) -> 4 | T3: =IF(G92="MIN",G104-G106,G105+G106) -> 5.2
B4: 2 | C4: =IF(C92="MIN",C104-(C106)-0.00001,C105+(C106)+0.00001) -> 21971.59999 | D4: =IF(C92="MIN",C104-(2*C106),C105+(2*C106)) -> 19476.2 | F4: 2 | G4: =IF(D92="MIN",D104-(D106)-0.00001,D105+(D106)+0.00001) -> 26.40001 | H4: =IF(D92="MIN",D104-(2*D106),D105+(2*D106)) -> 28.8 | J4: 2 | K4: =IF(E92="MIN",E104-(E106)-0.00001,E105+(E106)+0.00001) -> 26.40001 | L4: =IF(E92="MIN",E104-(2*E106),E105+(2*E106)) -> 28.8 | N4: 2 | O4: =IF(F92="MIN",F104-(F106)-0.00001,F105+(F106)+0.00001) -> 1.20001 | P4: =IF(F92="MIN",F104-(2*F106),F105+(2*F106)) -> 1.4 | R4: 2 | S4: =IF(G92="MIN",G104-(G106)-0.00001,G105+(G106)+0.00001) -> 5.20001 | T4: =IF(G92="MIN",G104-(2*G106),G105+(2*G106)) -> 6.4
B5: 3 | C5: =IF(C92="MIN",C104-(2*C106)-0.00001,C105+(2*C106)+0.00001) -> 19476.19999 | D5: =IF(C92="MIN",C104-(3*C106),C105+(3*C106)) -> 16980.8 | F5: 3 | G5: =IF(D92="MIN",D104-(2*D106)-0.00001,D105+(2*D106)+0.00001) -> 28.80001 | H5: =IF(D92="MIN",D104-(3*D106),D105+(3*D106)) -> 31.2 | J5: 3 | K5: =IF(E92="MIN",E104-(2*E106)-0.00001,E105+(2*E106)+0.00001) -> 28.80001 | L5: =IF(E92="MIN",E104-(3*E106),E105+(3*E106)) -> 31.2 | N5: 3 | O5: =IF(F92="MIN",F104-(2*F106)-0.00001,F105+(2*F106)+0.00001) -> 1.40001 | P5: =IF(F92="MIN",F104-(3*F106),F105+(3*F106)) -> 1.6 | R5: 3 | S5: =IF(G92="MIN",G104-(2*G106)-0.00001,G105+(2*G106)+0.00001) -> 6.40001 | T5: =IF(G92="MIN",G104-(3*G106),G105+(3*G106)) -> 7.6
B6: 4 | C6: =IF(C92="MIN",C104-(3*C106)-0.00001,C105+(3*C106)+0.00001) -> 16980.79999 | D6: =IF(C92="MIN",C104-(4*C106),C105+(4*C106)) -> 14485.4 | F6: 4 | G6: =IF(D92="MIN",D104-(3*D106)-0.00001,D105+(3*D106)+0.00001) -> 31.20001 | H6: =IF(D92="MIN",D104-(4*D106),D105+(4*D106)) -> 33.6 | J6: 4 | K6: =IF(E92="MIN",E104-(3*E106)-0.00001,E105+(3*E106)+0.00001) -> 31.20001 | L6: =IF(E92="MIN",E104-(4*E106),E105+(4*E106)) -> 33.6 | N6: 4 | O6: =IF(F92="MIN",F104-(3*F106)-0.00001,F105+(3*F106)+0.00001) -> 1.60001 | P6: =IF(F92="MIN",F104-(4*F106),F105+(4*F106)) -> 1.8 | R6: 4 | S6: =IF(G92="MIN",G104-(3*G106)-0.00001,G105+(3*G106)+0.00001) -> 7.60001 | T6: =IF(G92="MIN",G104-(4*G106),G105+(4*G106)) -> 8.8
B7: 5 | C7: =IF(C92="MIN",C104-(4*C106)-0.00001,C105+(4*C106)+0.00001) -> 14485.39999 | D7: =IF(C92="MIN",C104-(5*C106),C105+(5*C106)) -> 11990 | F7: 5 | G7: =IF(D92="MIN",D104-(4*D106)-0.00001,D105+(4*D106)+0.00001) -> 33.60001 | H7: =IF(D92="MIN",D104-(5*D106),D105+(5*D106)) -> 36 | J7: 5 | K7: =IF(E92="MIN",E104-(4*E106)-0.00001,E105+(4*E106)+0.00001) -> 33.60001 | L7: =IF(E92="MIN",E104-(5*E106),E105+(5*E106)) -> 36 | N7: 5 | O7: =IF(F92="MIN",F104-(4*F106)-0.00001,F105+(4*F106)+0.00001) -> 1.80001 | P7: =IF(F92="MIN",F104-(5*F106),F105+(5*F106)) -> 2 | R7: 5 | S7: =IF(G92="MIN",G104-(4*G106)-0.00001,G105+(4*G106)+0.00001) -> 8.80001 | T7: =IF(G92="MIN",G104-(5*G106),G105+(5*G106)) -> 10
B9: Počet bodů | C9: K6 | F9: Počet bodů | G9: K7 | J9: Počet bodů | K9: K8 | N9: Počet bodů | O9: K9 | R9: Počet bodů | S9: K10
B10: 1 | C10: =IF(H92="MIN",H104,H105) -> 1 | D10: =IF(H92="MIN",H104-G106,G105+G106) -> 5.2 | F10: 1 | G10: =IF(I92="MIN",I104,I105) -> 2200 | H10: =IF(I92="MIN",I104-I106,I105+I106) -> 2540 | J10: 1 | K10: =IF(J92="MIN",J104,J105) -> 0.256 | L10: =IF(J92="MIN",J104-J106,J105+J106) -> 0.4308 | N10: 1 | O10: =IF(K92="MIN",K104,K105) -> 1 | P10: =IF(K92="MIN",K104-K106,K105+K106) -> 2.8 | R10: 1 | S10: =IF(L92="MIN",L104,L105) -> 1 | T10: =IF(L92="MIN",L104-L106,L105+L106) -> 1.2
B11: 2 | C11: =IF(H92="MIN",G104-(G106)-0.00001,G105+(G106)+0.00001) -> 5.20001 | D11: =IF(H92="MIN",G104-(2*G106),G105+(2*G106)) -> 6.4 | F11: 2 | G11: =IF(I92="MIN",I104-(I106)-0.00001,I105+(I106)+0.00001) -> 2540.00001 | H11: =IF(I92="MIN",I104-(2*I106),I105+(2*I106)) -> 2880 | J11: 2 | K11: =IF(J92="MIN",J104-(J106)-0.00001,J105+(J106)+0.00001) -> 0.43081 | L11: =IF(J92="MIN",J104-(2*J106),J105+(2*J106)) -> 0.6056 | N11: 2 | O11: =IF(K92="MIN",K104-(K106)-0.00001,K105+(K106)+0.00001) -> 2.80001 | P11: =IF(K92="MIN",K104-(2*K106),K105+(2*K106)) -> 4.6 | R11: 2 | S11: =IF(L92="MIN",L104-(L106)-0.00001,L105+(L106)+0.00001) -> 1.20001 | T11: =IF(L92="MIN",L104-(2*L106),L105+(2*L106)) -> 1.4
B12: 3 | C12: =IF(H92="MIN",G104-(2*G106)-0.00001,G105+(2*G106)+0.00001) -> 6.40001 | D12: =IF(H92="MIN",G104-(3*G106),G105+(3*G106)) -> 7.6 | F12: 3 | G12: =IF(I92="MIN",I104-(2*I106)-0.00001,I105+(2*I106)+0.00001) -> 2880.00001 | H12: =IF(I92="MIN",I104-(3*I106),I105+(3*I106)) -> 3220 | J12: 3 | K12: =IF(J92="MIN",J104-(2*J106)-0.00001,J105+(2*J106)+0.00001) -> 0.60561 | L12: =IF(J92="MIN",J104-(3*J106),J105+(3*J106)) -> 0.7804 | N12: 3 | O12: =IF(K92="MIN",K104-(2*K106)-0.00001,K105+(2*K106)+0.00001) -> 4.60001 | P12: =IF(K92="MIN",K104-(3*K106),K105+(3*K106)) -> 6.4 | R12: 3 | S12: =IF(L92="MIN",L104-(2*L106)-0.00001,L105+(2*L106)+0.00001) -> 1.40001 | T12: =IF(L92="MIN",L104-(3*L106),L105+(3*L106)) -> 1.6
B13: 4 | C13: =IF(H92="MIN",G104-(3*G106)-0.00001,G105+(3*G106)+0.00001) -> 7.60001 | D13: =IF(H92="MIN",G104-(4*G106),G105+(4*G106)) -> 8.8 | F13: 4 | G13: =IF(I92="MIN",I104-(3*I106)-0.00001,I105+(3*I106)+0.00001) -> 3220.00001 | H13: =IF(I92="MIN",I104-(4*I106),I105+(4*I106)) -> 3560 | J13: 4 | K13: =IF(J92="MIN",J104-(3*J106)-0.00001,J105+(3*J106)+0.00001) -> 0.78041 | L13: =IF(J92="MIN",J104-(4*J106),J105+(4*J106)) -> 0.9552 | N13: 4 | O13: =IF(K92="MIN",K104-(3*K106)-0.00001,K105+(3*K106)+0.00001) -> 6.40001 | P13: =IF(K92="MIN",K104-(4*K106),K105+(4*K106)) -> 8.2 | R13: 4 | S13: =IF(L92="MIN",L104-(3*L106)-0.00001,L105+(3*L106)+0.00001) -> 1.60001 | T13: =IF(L92="MIN",L104-(4*L106),L105+(4*L106)) -> 1.8
B14: 5 | C14: =IF(H92="MIN",G104-(4*G106)-0.00001,G105+(4*G106)+0.00001) -> 8.80001 | D14: =IF(H92="MIN",H104-(5*H106),H105+(5*H106)) -> 2 | F14: 5 | G14: =IF(I92="MIN",I104-(4*I106)-0.00001,I105+(4*I106)+0.00001) -> 3560.00001 | H14: =IF(I92="MIN",I104-(5*I106),I105+(5*I106)) -> 3900 | J14: 5 | K14: =IF(J92="MIN",J104-(4*J106)-0.00001,J105+(4*J106)+0.00001) -> 0.95521 | L14: =IF(J92="MIN",J104-(5*J106),J105+(5*J106)) -> 1.13 | N14: 5 | O14: =IF(K92="MIN",K104-(4*K106)-0.00001,K105+(4*K106)+0.00001) -> 8.20001 | P14: =IF(K92="MIN",K104-(5*K106),K105+(5*K106)) -> 10 | R14: 5 | S14: =IF(L92="MIN",L104-(4*L106)-0.00001,L105+(4*L106)+0.00001) -> 1.80001 | T14: =IF(L92="MIN",L104-(5*L106),L105+(5*L106)) -> 2
B16: Tabulka bodů | C16: =C91 -> V1 | D16: V2 | E16: V3 | F16: V4 | G16: V5 | H16: V6 | I16: V7 | J16: V8 | K16: V9 | L16: V10 | M16: Váhy
C17: =C92 -> MIN | D17: MAX | E17: MAX | F17: MAX | G17: MAX | H17: MAX | I17: MAX | J17: MAX | K17: MAX | L17: MAX
B18: =B93 -> K1 | C18: =C45+M45+W45+AG45+AQ45+C60+M60+W60+AG60+AQ60 -> 1 | D18: =D45+N45+X45+AH45+AR45+D60+N60+X60+AH60+AR60 -> 1 | E18: =E45+O45+Y45+AI45+AS45+E60+O60+Y60+AI60+AS60 -> 1 | F18: =F45+P45+Z45+AJ45+AT45+F60+P60+Z60+AJ60+AT60 -> 1 | G18: =G45+Q45+AA45+AK45+AU45+G60+Q60+AA60+AK60+AU60 -> 5 | H18: =H45+R45+AB45+AL45+AV45+H60+R60+AB60+AL60+AV60 -> 1 | I18: =I45+S45+AC45+AM45+AW45+I60+S60+AC60+AM60+AW60 -> 4 | J18: =J45+T45+AD45+AN45+AX45+J60+T60+AD60+AN60+AX60 -> 5 | K18: =K45+U45+AE45+AO45+AY45+K60+U60+AE60+AO60+AY60 -> 2 | L18: =L45+V45+AF45+AP45+AZ45+L60+V60+AF60+AP60+AZ60 -> 1 | M18: 0.1637630662
B19: K2 | C19: 2 | D19: 1 | E19: 1 | F19: 1 | G19: 1 | H19: 1 | I19: 3 | J19: 5 | K19: 4 | L19: 1 | M19: 0.05574912892
B20: K3 | C20: 1 | D20: 1 | E20: 1 | F20: 1 | G20: 5 | H20: 1 | I20: 1 | J20: 5 | K20: 3 | L20: 5 | M20: 0.04181184669
B21: K4 | C21: 1 | D21: 1 | E21: 1 | F21: 1 | G21: 5 | H21: 1 | I21: 4 | J21: 5 | K21: 2 | L21: 5 | M21: 0.118466899
B22: K5 | C22: 2 | D22: 5 | E22: 1 | F22: 1 | G22: 5 | H22: 1 | I22: 5 | J22: 1 | K22: 4 | L22: 1 | M22: 0.1114982578
B23: K6 | C23: 5 | D23: 5 | E23: 5 | F23: 5 | G23: 5 | H23: 1 | I23: 4 | J23: 2 | K23: 3 | L23: 1 | M23: 0.09407665505
B24: K7 | C24: 3 | D24: 1 | E24: 1 | F24: 5 | G24: 5 | H24: 1 | I24: 1 | J24: 5 | K24: 1 | L24: 5 | M24: 0.09059233449
B25: K8 | C25: 3 | D25: 5 | E25: 5 | F25: 5 | G25: 5 | H25: 1 | I25: 4 | J25: 5 | K25: 5 | L25: 1 | M25: 0.1114982578
B26: K9 | C26: 5 | D26: 5 | E26: 5 | F26: 1 | G26: 5 | H26: 1 | I26: 5 | J26: 2 | K26: 1 | L26: 1 | M26: 0.06968641115
B27: K10 | C27: 3 | D27: 5 | E27: 5 | F27: 5 | G27: 5 | H27: 1 | I27: 5 | J27: 5 | K27: 5 | L27: 1 | M27: 0.1428571429
B29: =B16 -> Tabulka bodů | C29: =C16 -> V1 | D29: =D16 -> V2 | E29: V3 | F29: V4 | G29: V5 | H29: V6 | I29: V7 | J29: V8 | K29: V9 | L29: V10
C30: =C17 -> MIN | D30: =D17 -> MAX | E30: MAX | F30: MAX | G30: MAX | H30: MAX | I30: MAX | J30: MAX | K30: MAX | L30: MAX
B31: =B18 -> K1 | C31: =C18*$M18 -> 0.1637630662 | D31: =D18*$M18 -> 0.1637630662 | E31: 0.1637630662 | F31: 0.1637630662 | G31: 0.818815331 | H31: 0.1637630662 | I31: 0.6550522648 | J31: 0.818815331 | K31: 0.3275261324 | L31: 0.1637630662
B32: =B19 -> K2 | C32: =C19*$M19 -> 0.1114982578 | D32: 0.05574912892 | E32: 0.05574912892 | F32: 0.05574912892 | G32: 0.05574912892 | H32: 0.05574912892 | I32: 0.1672473868 | J32: 0.2787456446 | K32: 0.2229965157 | L32: 0.05574912892
B33: K3 | C33: =C20*$M20 -> 0.04181184669 | D33: 0.04181184669 | E33: 0.04181184669 | F33: 0.04181184669 | G33: 0.2090592334 | H33: 0.04181184669 | I33: 0.04181184669 | J33: 0.2090592334 | K33: 0.1254355401 | L33: 0.2090592334
B34: K4 | C34: =C21*$M21 -> 0.118466899 | D34: 0.118466899 | E34: 0.118466899 | F34: 0.118466899 | G34: 0.5923344948 | H34: 0.118466899 | I34: 0.4738675958 | J34: 0.5923344948 | K34: 0.2369337979 | L34: 0.5923344948
B35: K5 | C35: =C22*$M22 -> 0.2229965157 | D35: 0.5574912892 | E35: 0.1114982578 | F35: 0.1114982578 | G35: 0.5574912892 | H35: 0.1114982578 | I35: 0.5574912892 | J35: 0.1114982578 | K35: 0.4459930314 | L35: 0.1114982578
B36: K6 | C36: =C23*$M23 -> 0.4703832753 | D36: 0.4703832753 | E36: 0.4703832753 | F36: 0.4703832753 | G36: 0.4703832753 | H36: 0.09407665505 | I36: 0.3763066202 | J36: 0.1881533101 | K36: 0.2822299652 | L36: 0.09407665505
B37: K7 | C37: =C24*$M24 -> 0.2717770035 | D37: 0.09059233449 | E37: 0.09059233449 | F37: 0.4529616725 | G37: 0.4529616725 | H37: 0.09059233449 | I37: 0.09059233449 | J37: 0.4529616725 | K37: 0.09059233449 | L37: 0.4529616725
B38: K8 | C38: =C25*$M25 -> 0.3344947735 | D38: 0.5574912892 | E38: 0.5574912892 | F38: 0.5574912892 | G38: 0.5574912892 | H38: 0.1114982578 | I38: 0.4459930314 | J38: 0.5574912892 | K38: 0.5574912892 | L38: 0.1114982578
B39: K9 | C39: =C26*$M26 -> 0.3484320557 | D39: 0.3484320557 | E39: 0.3484320557 | F39: 0.06968641115 | G39: 0.3484320557 | H39: 0.06968641115 | I39: 0.3484320557 | J39: 0.1393728223 | K39: 0.06968641115 | L39: 0.06968641115
B40: K10 | C40: =C27*$M27 -> 0.4285714286 | D40: 0.7142857143 | E40: 0.7142857143 | F40: 0.7142857143 | G40: 0.7142857143 | H40: =H27*$M27 -> 0.1428571429 | I40: 0.7142857143 | J40: 0.7142857143 | K40: 0.7142857143 | L40: 0.1428571429
C41: =SUM(C31:C40) -> 2.512195122 | D41: =SUM(D31:D40) -> 3.118466899 | E41: 2.672473868 | F41: 2.756097561 | G41: 4.777003484 | H41: 1 | I41: 3.871080139 | J41: 4.06271777 | K41: 3.073170732 | L41: 2.003484321
C42: =RANK(C41,$C$41:$L$41) -> 8 | D42: =RANK(D41,$C$41:$L$41) -> 4 | E42: 7 | F42: 6 | G42: 1 | H42: 10 | I42: 3 | J42: 2 | K42: 5 | L42: 9
C45: =IF(AND($C93>=$C$3,$C93<=$D$3,C$92="MAX"),1,0) -> 0 | D45: =IF(AND($D93>=$G$3,$D93<=$H$3,D$92="MAX"),1,0) -> 1 | E45: =IF(AND($E93>=$K$3,$E93<=$L$3,E$92="MAX"),1,0) -> 1 | F45: =IF(AND($F93>=$O$3,$F93<=$P$3,F$92="MAX"),1,0) -> 1 | G45: =IF(AND($G93>=$S$3,$G93<=$T$3,G$92="MAX"),1,0) -> 0 | H45: =IF(AND($H93>=$C$10,$H93<=$D$10,H$92="MAX"),1,0) -> 1 | I45: =IF(AND($I93>=$G$10,$I93<=$H$10,I$92="MAX"),1,0) -> 0 | J45: =IF(AND($J93>=$K$10,$J93<=$L$10,J$92="MAX"),1,0) -> 0 | K45: =IF(AND($K93>=$O$10,$K93<=$P$10,K$92="MAX"),1,0) -> 0 | L45: =IF(AND($L93>=$S$10,$L93<=$T$10,L$92="MAX"),1,0) -> 1 | M45: =IF(AND($C93>=$C$4,$C93<=$D$4,C$92="MAX"),2,0) -> 0 | N45: =IF(AND($D93>=$G$4,$D93<=$H$4,D$92="MAX"),2,0) -> 0 | O45: =IF(AND($E93>=$K$4,$E93<=$L$4,E$92="MAX"),2,0) -> 0 | P45: =IF(AND($F93>=$O$4,$F93<=$P$4,F$92="MAX"),2,0) -> 0 | Q45: =IF(AND($G93>=$S$4,$G93<=$T$4,G$92="MAX"),2,0) -> 0 | R45: =IF(AND($H93>=$C$11,$H93<=$D$11,H$92="MAX"),2,0) -> 0 | S45: =IF(AND($I93>=$G$11,$I93<=$H$11,I$92="MAX"),2,0) -> 0 | T45: =IF(AND($J93>=$K$11,$J93<=$L$11,J$92="MAX"),2,0) -> 0 | U45: =IF(AND($K93>=$O$11,$K93<=$P$11,K$92="MAX"),2,0) -> 2 | V45: =IF(AND($L93>=$S$11,$L93<=$T$11,L$92="MAX"),2,0) -> 0 | W45: =IF(AND($C93>=$C$5,$C93<=$D$5,C$92="MAX"),3,0) -> 0 | X45: =IF(AND($D93>=$G$5,$D93<=$H$5,D$92="MAX"),3,0) -> 0 | Y45: =IF(AND($E93>=$K$5,$E93<=$L$5,E$92="MAX"),3,0) -> 0 | Z45: =IF(AND($F93>=$O$5,$F93<=$P$5,F$92="MAX"),3,0) -> 0 | AA45: =IF(AND($G93>=$S$5,$G93<=$T$5,G$92="MAX"),3,0) -> 0 | AB45: =IF(AND($H93>=$C$12,$H93<=$D$12,H$92="MAX"),3,0) -> 0 | AC45: =IF(AND($I93>=$G$12,$I93<=$H$12,I$92="MAX"),3,0) -> 0 | AD45: =IF(AND($J93>=$K$12,$J93<=$L$12,J$92="MAX"),3,0) -> 0 | AE45: =IF(AND($K93>=$O$12,$K93<=$P$12,K$92="MAX"),3,0) -> 0 | AF45: =IF(AND($L93>=$S$12,$L93<=$T$12,L$92="MAX"),3,0) -> 0 | AG45: =IF(AND($C93=$C$6,$C93<=$D$6,C$92="MAX"),4,0) -> 0 | AH45: =IF(AND($D93>=$G$6,$D93<=$H$6,D$92="MAX"),4,0) -> 0 | AI45: =IF(AND($E93>=$K$6,$E93<=$L$6,E$92="MAX"),4,0) -> 0 | AJ45: =IF(AND($F93>=$O$6,$F93<=$P$6,F$92="MAX"),4,0) -> 0 | AK45: =IF(AND($G93>=$S$6,$G93<=$T$6,G$92="MAX"),4,0) -> 0 | AL45: =IF(AND($H93>=$C$13,$H93<=$D$13,H$92="MAX"),4,0) -> 0 | AM45: =IF(AND($I93>=$G$13,$I93<=$H$13,I$92="MAX"),4,0) -> 4 | AN45: =IF(AND($J93>=$K$13,$J93<=$L$13,J$92="MAX"),4,0) -> 0 | AO45: =IF(AND($K93>=$O$13,$K93<=$P$13,K$92="MAX"),4,0) -> 0 | AP45: =IF(AND($L93>=$S$13,$L93<=$T$13,L$92="MAX"),4,0) -> 0 | AQ45: =IF(AND($C93>=$C$7,$C93<=$D$7,C$92="MAX"),5,0) -> 0 | AR45: =IF(AND($D93>=$G$7,$D93<=$H$7,D$92="MAX"),5,0) -> 0 | AS45: =IF(AND($E93>=$K$7,$E93<=$L$7,E$92="MAX"),5,0) -> 0 | AT45: =IF(AND($F93>=$O$7,$F93<=$P$7,F$92="MAX"),5,0) -> 0 | AU45: =IF(AND($G93>=$S$7,$G93<=$T$7,G$92="MAX"),5,0) -> 5 | AV45: =IF(AND($H93>=$C$14,$H93<=$D$14,H$92="MAX"),5,0) -> 0 | AW45: =IF(AND($I93>=$G$14,$I93<=$H$14,I$92="MAX"),5,0) -> 0 | AX45: =IF(AND($J93>=$K$14,$J93<=$L$14,J$92="MAX"),5,0) -> 5 | AY45: =IF(AND($K93>=$O$14,$K93<=$P$14,K$92="MAX"),5,0) -> 0 | AZ45: =IF(AND($L93>=$S$14,$L93<=$T$14,L$92="MAX"),5,0) -> 0
C46: 0 | D46: 1 | E46: 1 | F46: 1 | G46: 1 | H46: 1 | I46: 0 | J46: 0 | K46: 0 | L46: 1 | M46: 0 | N46: 0 | O46: 0 | P46: 0 | Q46: 0 | R46: 0 | S46: 0 | T46: 0 | U46: 0 | V46: 0 | W46: 0 | X46: 0 | Y46: 0 | Z46: 0 | AA46: 0 | AB46: 0 | AC46: 3 | AD46: 0 | AE46: 0 | AF46: 0 | AG46: 0 | AH46: 0 | AI46: 0 | AJ46: 0 | AK46: 0 | AL46: 0 | AM46: 0 | AN46: 0 | AO46: 4 | AP46: 0 | AQ46: 0 | AR46: 0 | AS46: 0 | AT46: 0 | AU46: 0 | AV46: 0 | AW46: 0 | AX46: 5 | AY46: 0 | AZ46: 0
C47: 0 | D47: 1 | E47: 1 | F47: 1 | G47: 0 | H47: 1 | I47: 1 | J47: 0 | K47: 0 | L47: 0 | M47: 0 | N47: 0 | O47: 0 | P47: 0 | Q47: 0 | R47: 0 | S47: 0 | T47: 0 | U47: 0 | V47: 0 | W47: 0 | X47: 0 | Y47: 0 | Z47: 0 | AA47: 0 | AB47: 0 | AC47: 0 | AD47: 0 | AE47: 3 | AF47: 0 | AG47: 0 | AH47: 0 | AI47: 0 | AJ47: 0 | AK47: 0 | AL47: 0 | AM47: 0 | AN47: 0 | AO47: 0 | AP47: 0 | AQ47: 0 | AR47: 0 | AS47: 0 | AT47: 0 | AU47: 5 | AV47: 0 | AW47: 0 | AX47: 5 | AY47: 0 | AZ47: 5
C48: 0 | D48: 1 | E48: 1 | F48: 1 | G48: 0 | H48: 1 | I48: 0 | J48: 0 | K48: 0 | L48: 0 | M48: 0 | N48: 0 | O48: 0 | P48: 0 | Q48: 0 | R48: 0 | S48: 0 | T48: 0 | U48: 2 | V48: 0 | W48: 0 | X48: 0 | Y48: 0 | Z48: 0 | AA48: 0 | AB48: 0 | AC48: 0 | AD48: 0 | AE48: 0 | AF48: 0 | AG48: 0 | AH48: 0 | AI48: 0 | AJ48: 0 | AK48: 0 | AL48: 0 | AM48: 4 | AN48: 0 | AO48: 0 | AP48: 0 | AQ48: 0 | AR48: 0 | AS48: 0 | AT48: 0 | AU48: 5 | AV48: 0 | AW48: 0 | AX48: 5 | AY48: 0 | AZ48: 5
C49: 0 | D49: 0 | E49: 1 | F49: 1 | G49: 0 | H49: 1 | I49: 0 | J49: 1 | K49: 0 | L49: 1 | M49: 0 | N49: 0 | O49: 0 | P49: 0 | Q49: 0 | R49: 0 | S49: 0 | T49: 0 | U49: 0 | V49: 0 | W49: 0 | X49: 0 | Y49: 0 | Z49: 0 | AA49: 0 | AB49: 0 | AC49: 0 | AD49: 0 | AE49: 0 | AF49: 0 | AG49: 0 | AH49: 0 | AI49: 0 | AJ49: 0 | AK49: 0 | AL49: 0 | AM49: 0 | AN49: 0 | AO49: 4 | AP49: 0 | AQ49: 0 | AR49: 5 | AS49: 0 | AT49: 0 | AU49: 5 | AV49: 0 | AW49: 5 | AX49: 0 | AY49: 0 | AZ49: 0
C50: 0 | D50: 0 | E50: 0 | F50: 0 | G50: 0 | H50: 1 | I50: 0 | J50: 0 | K50: 0 | L50: 1 | M50: 0 | N50: 0 | O50: 0 | P50: 0 | Q50: 0 | R50: 0 | S50: 0 | T50: 2 | U50: 0 | V50: 0 | W50: 0 | X50: 0 | Y50: 0 | Z50: 0 | AA50: 0 | AB50: 0 | AC50: 0 | AD50: 0 | AE50: 3 | AF50: 0 | AG50: 0 | AH50: 0 | AI50: 0 | AJ50: 0 | AK50: 0 | AL50: 0 | AM50: 4 | AN50: 0 | AO50: 0 | AP50: 0 | AQ50: 0 | AR50: 5 | AS50: 5 | AT50: 5 | AU50: 5 | AV50: 0 | AW50: 0 | AX50: 0 | AY50: 0 | AZ50: 0
C51: 0 | D51: 1 | E51: 1 | F51: 0 | G51: 0 | H51: 1 | I51: 1 | J51: 0 | K51: 1 | L51: 0 | M51: 0 | N51: 0 | O51: 0 | P51: 0 | Q51: 0 | R51: 0 | S51: 0 | T51: 0 | U51: 0 | V51: 0 | W51: 0 | X51: 0 | Y51: 0 | Z51: 0 | AA51: 0 | AB51: 0 | AC51: 0 | AD51: 0 | AE51: 0 | AF51: 0 | AG51: 0 | AH51: 0 | AI51: 0 | AJ51: 0 | AK51: 0 | AL51: 0 | AM51: 0 | AN51: 0 | AO51: 0 | AP51: 0 | AQ51: 0 | AR51: 0 | AS51: 0 | AT51: 5 | AU51: 5 | AV51: 0 | AW51: 0 | AX51: 5 | AY51: 0 | AZ51: 5
C52: 0 | D52: 0 | E52: 0 | F52: 0 | G52: 0 | H52: 1 | I52: 0 | J52: 0 | K52: 0 | L52: 1 | M52: 0 | N52: 0 | O52: 0 | P52: 0 | Q52: 0 | R52: 0 | S52: 0 | T52: 0 | U52: 0 | V52: 0 | W52: 0 | X52: 0 | Y52: 0 | Z52: 0 | AA52: 0 | AB52: 0 | AC52: 0 | AD52: 0 | AE52: 0 | AF52: 0 | AG52: 0 | AH52: 0 | AI52: 0 | AJ52: 0 | AK52: 0 | AL52: 0 | AM52: 4 | AN52: 0 | AO52: 0 | AP52: 0 | AQ52: 0 | AR52: 5 | AS52: 5 | AT52: 5 | AU52: 5 | AV52: 0 | AW52: 0 | AX52: 5 | AY52: 5 | AZ52: 0
C53: 0 | D53: 0 | E53: 0 | F53: 1 | G53: 0 | H53: 1 | I53: 0 | J53: 0 | K53: 1 | L53: 1 | M53: 0 | N53: 0 | O53: 0 | P53: 0 | Q53: 0 | R53: 0 | S53: 0 | T53: 2 | U53: 0 | V53: 0 | W53: 0 | X53: 0 | Y53: 0 | Z53: 0 | AA53: 0 | AB53: 0 | AC53: 0 | AD53: 0 | AE53: 0 | AF53: 0 | AG53: 0 | AH53: 0 | AI53: 0 | AJ53: 0 | AK53: 0 | AL53: 0 | AM53: 0 | AN53: 0 | AO53: 0 | AP53: 0 | AQ53: 0 | AR53: 5 | AS53: 5 | AT53: 0 | AU53: 5 | AV53: 0 | AW53: 5 | AX53: 0 | AY53: 0 | AZ53: 0
C54: 0 | D54: 0 | E54: 0 | F54: 0 | G54: 0 | H54: 1 | I54: 0 | J54: 0 | K54: 0 | L54: 1 | M54: 0 | N54: 0 | O54: 0 | P54: 0 | Q54: 0 | R54: 0 | S54: 0 | T54: 0 | U54: 0 | V54: 0 | W54: 0 | X54: 0 | Y54: 0 | Z54: 0 | AA54: 0 | AB54: 0 | AC54: 0 | AD54: 0 | AE54: 0 | AF54: 0 | AG54: 0 | AH54: 0 | AI54: 0 | AJ54: 0 | AK54: 0 | AL54: 0 | AM54: 0 | AN54: 0 | AO54: 0 | AP54: 0 | AQ54: 0 | AR54: 5 | AS54: 5 | AT54: 5 | AU54: 5 | AV54: 0 | AW54: 5 | AX54: 5 | AY54: 5 | AZ54: 0
A58: MIN | B58: 1.interval | C58: V1 | D58: V2 | E58: V3 | F58: V4 | G58: V5 | H58: V6 | I58: V7 | J58: V8 | K58: V9 | L58: V10
C59: =C92 -> MIN | D59: MAX | E59: MAX | F59: MAX | G59: MAX | H59: MAX | I59: MAX | J59: MAX | K59: MAX | L59: MAX
B60: K1 | C60: =IF(AND($C93<=$C$3,$C93>=$D$3,C$92="MIN"),1,0) -> 1 | D60: =IF(AND($D93<=$G$3,$D93>=$H$3,D$92="MIN"),1,0) -> 0 | E60: =IF(AND($E93<=$K$3,$E93>=$L$3,E$92="MIN"),1,0) -> 0 | F60: =IF(AND($F93<=$O$3,$F93>=$P$3,F$92="MIN"),1,0) -> 0 | G60: =IF(AND($G93<=$S$3,$G93>=$T$3,G$92="MIN"),1,0) -> 0 | H60: =IF(AND($H93<=$C$10,$H93>=$D$10,H$92="MIN"),1,0) -> 0 | I60: =IF(AND($I93<=$G$10,$I93>=$H$10,I$92="MIN"),1,0) -> 0 | J60: =IF(AND($J93<=$K$10,$J93>=$L$10,J$92="MIN"),1,0) -> 0 | K60: =IF(AND($K93<=$O$10,$K93>=$P$10,K$92="MIN"),1,0) -> 0 | L60: =IF(AND($L93<=$S$10,$L93>=$T$10,L$92="MIN"),1,0) -> 0 | M60: =IF(AND($C93<=$C$4,$C93>=$D$4,C$92="MIN"),2,0) -> 0 | N60: =IF(AND($D93<=$G$4,$D93>=$H$4,D$92="MIN"),2,0) -> 0 | O60: =IF(AND($E93<=$K$4,$E93>=$L$4,E$92="MIN"),2,0) -> 0 | P60: =IF(AND($F93<=$O$4,$F93>=$P$4,F$92="MIN"),2,0) -> 0 | Q60: =IF(AND($G93<=$S$4,$G93>=$T$4,G$92="MIN"),2,0) -> 0 | R60: =IF(AND($H93<=$C$11,$H93>=$D$11,H$92="MIN"),2,0) -> 0 | S60: =IF(AND($I93<=$G$11,$I93>=$H$11,I$92="MIN"),2,0) -> 0 | T60: =IF(AND($J93<=$K$11,$J93>=$L$11,J$92="MIN"),2,0) -> 0 | U60: =IF(AND($K93<=$O$11,$K93>=$P$11,K$92="MIN"),2,0) -> 0 | V60: =IF(AND($L93<=$S$11,$L93>=$T$11,L$92="MIN"),2,0) -> 0 | W60: =IF(AND($C93<=$C$5,$C93>=$D$5,C$92="MIN"),3,0) -> 0 | X60: =IF(AND($D93<=$G$5,$D93>=$H$5,D$92="MIN"),3,0) -> 0 | Y60: =IF(AND($E93<=$K$5,$E93>=$L$5,E$92="MIN"),3,0) -> 0 | Z60: =IF(AND($F93<=$O$5,$F93>=$P$5,F$92="MIN"),3,0) -> 0 | AA60: =IF(AND($G93<=$S$5,$G93>=$T$5,G$92="MIN"),3,0) -> 0 | AB60: =IF(AND($H93<=$C$12,$H93>=$D$12,H$92="MIN"),3,0) -> 0 | AC60: =IF(AND($I93<=$G$12,$I93>=$H$12,I$92="MIN"),3,0) -> 0 | AD60: =IF(AND($J93<=$K$12,$J93>=$L$12,J$92="MIN"),3,0) -> 0 | AE60: =IF(AND($K93<=$O$12,$K93>=$P$12,K$92="MIN"),3,0) -> 0 | AF60: =IF(AND($L93<=$S$12,$L93>=$T$12,L$92="MIN"),3,0) -> 0 | AG60: =IF(AND($C93<=$C$6,$C93>=$D$6,C$92="MIN"),4,0) -> 0 | AH60: =IF(AND($D93<=$G$6,$D93>=$H$6,D$92="MIN"),4,0) -> 0 | AI60: =IF(AND($E93<=$K$6,$E93>=$L$6,E$92="MIN"),4,0) -> 0 | AJ60: =IF(AND($F93<=$O$6,$F93>=$P$6,F$92="MIN"),4,0) -> 0 | AK60: =IF(AND($G93<=$S$6,$G93>=$T$6,G$92="MIN"),4,0) -> 0 | AL60: =IF(AND($H93<=$C$13,$H93>=$D$13,H$92="MIN"),4,0) -> 0 | AM60: =IF(AND($I93<=$G$13,$I93>=$H$13,I$92="MIN"),4,0) -> 0 | AN60: =IF(AND($J93<=$K$13,$J93>=$L$13,J$92="MIN"),4,0) -> 0 | AO60: =IF(AND($K93<=$O$13,$K93>=$P$13,K$92="MIN"),4,0) -> 0 | AP60: =IF(AND($L93<=$S$13,$L93>=$T$13,L$92="MIN"),4,0) -> 0 | AQ60: =IF(AND($C93<=$C$7,$C93>=$D$7,C$92="MIN"),5,0) -> 0 | AR60: =IF(AND($D93<=$G$7,$D93>=$H$7,D$92="MIN"),5,0) -> 0 | AS60: =IF(AND($E93<=$K$7,$E93>=$L$7,E$92="MIN"),5,0) -> 0 | AT60: =IF(AND($F93<=$O$7,$F93>=$P$7,F$92="MIN"),5,0) -> 0 | AU60: =IF(AND($G93<=$S$7,$G93>=$T$7,G$92="MIN"),5,0) -> 0 | AV60: =IF(AND($H93<=$C$14,$H93>=$D$14,H$92="MIN"),5,0) -> 0 | AW60: =IF(AND($I93<=$G$14,$I93>=$H$14,I$92="MIN"),5,0) -> 0 | AX60: =IF(AND($J93<=$K$14,$J93>=$L$14,J$92="MIN"),5,0) -> 0 | AY60: =IF(AND($K93<=$O$14,$K93>=$P$14,K$92="MIN"),5,0) -> 0 | AZ60: =IF(AND($L93<=$S$14,$L93>=$T$14,L$92="MIN"),5,0) -> 0
B61: K2 | C61: 0 | D61: 0 | E61: 0 | F61: 0 | G61: 0 | H61: 0 | I61: 0 | J61: 0 | K61: 0 | L61: 0 | M61: 2 | N61: 0 | O61: 0 | P61: 0 | Q61: 0 | R61: 0 | S61: 0 | T61: 0 | U61: 0 | V61: 0 | W61: 0 | X61: 0 | Y61: 0 | Z61: 0 | AA61: 0 | AB61: 0 | AC61: 0 | AD61: 0 | AE61: 0 | AF61: 0 | AG61: 0 | AH61: 0 | AI61: 0 | AJ61: 0 | AK61: 0 | AL61: 0 | AM61: 0 | AN61: 0 | AO61: 0 | AP61: 0 | AQ61: 0 | AR61: 0 | AS61: 0 | AT61: 0 | AU61: 0 | AV61: 0 | AW61: 0 | AX61: 0 | AY61: 0 | AZ61: 0
B62: K3 | C62: 1 | D62: 0 | E62: 0 | F62: 0 | G62: 0 | H62: 0 | I62: 0 | J62: 0 | K62: 0 | L62: 0 | M62: 0 | N62: 0 | O62: 0 | P62: 0 | Q62: 0 | R62: 0 | S62: 0 | T62: 0 | U62: 0 | V62: 0 | W62: 0 | X62: 0 | Y62: 0 | Z62: 0 | AA62: 0 | AB62: 0 | AC62: 0 | AD62: 0 | AE62: 0 | AF62: 0 | AG62: 0 | AH62: 0 | AI62: 0 | AJ62: 0 | AK62: 0 | AL62: 0 | AM62: 0 | AN62: 0 | AO62: 0 | AP62: 0 | AQ62: 0 | AR62: 0 | AS62: 0 | AT62: 0 | AU62: 0 | AV62: 0 | AW62: 0 | AX62: 0 | AY62: 0 | AZ62: 0
B63: K4 | C63: 1 | D63: 0 | E63: 0 | F63: 0 | G63: 0 | H63: 0 | I63: 0 | J63: 0 | K63: 0 | L63: 0 | M63: 0 | N63: 0 | O63: 0 | P63: 0 | Q63: 0 | R63: 0 | S63: 0 | T63: 0 | U63: 0 | V63: 0 | W63: 0 | X63: 0 | Y63: 0 | Z63: 0 | AA63: 0 | AB63: 0 | AC63: 0 | AD63: 0 | AE63: 0 | AF63: 0 | AG63: 0 | AH63: 0 | AI63: 0 | AJ63: 0 | AK63: 0 | AL63: 0 | AM63: 0 | AN63: 0 | AO63: 0 | AP63: 0 | AQ63: 0 | AR63: 0 | AS63: 0 | AT63: 0 | AU63: 0 | AV63: 0 | AW63: 0 | AX63: 0 | AY63: 0 | AZ63: 0
B64: K5 | C64: 0 | D64: 0 | E64: 0 | F64: 0 | G64: 0 | H64: 0 | I64: 0 | J64: 0 | K64: 0 | L64: 0 | M64: 2 | N64: 0 | O64: 0 | P64: 0 | Q64: 0 | R64: 0 | S64: 0 | T64: 0 | U64: 0 | V64: 0 | W64: 0 | X64: 0 | Y64: 0 | Z64: 0 | AA64: 0 | AB64: 0 | AC64: 0 | AD64: 0 | AE64: 0 | AF64: 0 | AG64: 0 | AH64: 0 | AI64: 0 | AJ64: 0 | AK64: 0 | AL64: 0 | AM64: 0 | AN64: 0 | AO64: 0 | AP64: 0 | AQ64: 0 | AR64: 0 | AS64: 0 | AT64: 0 | AU64: 0 | AV64: 0 | AW64: 0 | AX64: 0 | AY64: 0 | AZ64: 0
B65: K6 | C65: 0 | D65: 0 | E65: 0 | F65: 0 | G65: 0 | H65: 0 | I65: 0 | J65: 0 | K65: 0 | L65: 0 | M65: 0 | N65: 0 | O65: 0 | P65: 0 | Q65: 0 | R65: 0 | S65: 0 | T65: 0 | U65: 0 | V65: 0 | W65: 0 | X65: 0 | Y65: 0 | Z65: 0 | AA65: 0 | AB65: 0 | AC65: 0 | AD65: 0 | AE65: 0 | AF65: 0 | AG65: 0 | AH65: 0 | AI65: 0 | AJ65: 0 | AK65: 0 | AL65: 0 | AM65: 0 | AN65: 0 | AO65: 0 | AP65: 0 | AQ65: 5 | AR65: 0 | AS65: 0 | AT65: 0 | AU65: 0 | AV65: 0 | AW65: 0 | AX65: 0 | AY65: 0 | AZ65: 0
B66: K7 | C66: 0 | D66: 0 | E66: 0 | F66: 0 | G66: 0 | H66: 0 | I66: 0 | J66: 0 | K66: 0 | L66: 0 | M66: 0 | N66: 0 | O66: 0 | P66: 0 | Q66: 0 | R66: 0 | S66: 0 | T66: 0 | U66: 0 | V66: 0 | W66: 3 | X66: 0 | Y66: 0 | Z66: 0 | AA66: 0 | AB66: 0 | AC66: 0 | AD66: 0 | AE66: 0 | AF66: 0 | AG66: 0 | AH66: 0 | AI66: 0 | AJ66: 0 | AK66: 0 | AL66: 0 | AM66: 0 | AN66: 0 | AO66: 0 | AP66: 0 | AQ66: 0 | AR66: 0 | AS66: 0 | AT66: 0 | AU66: 0 | AV66: 0 | AW66: 0 | AX66: 0 | AY66: 0 | AZ66: 0
B67: K8 | C67: 0 | D67: 0 | E67: 0 | F67: 0 | G67: 0 | H67: 0 | I67: 0 | J67: 0 | K67: 0 | L67: 0 | M67: 0 | N67: 0 | O67: 0 | P67: 0 | Q67: 0 | R67: 0 | S67: 0 | T67: 0 | U67: 0 | V67: 0 | W67: 3 | X67: 0 | Y67: 0 | Z67: 0 | AA67: 0 | AB67: 0 | AC67: 0 | AD67: 0 | AE67: 0 | AF67: 0 | AG67: 0 | AH67: 0 | AI67: 0 | AJ67: 0 | AK67: 0 | AL67: 0 | AM67: 0 | AN67: 0 | AO67: 0 | AP67: 0 | AQ67: 0 | AR67: 0 | AS67: 0 | AT67: 0 | AU67: 0 | AV67: 0 | AW67: 0 | AX67: 0 | AY67: 0 | AZ67: 0
B68: K9 | C68: 0 | D68: 0 | E68: 0 | F68: 0 | G68: 0 | H68: 0 | I68: 0 | J68: 0 | K68: 0 | L68: 0 | M68: 0 | N68: 0 | O68: 0 | P68: 0 | Q68: 0 | R68: 0 | S68: 0 | T68: 0 | U68: 0 | V68: 0 | W68: 0 | X68: 0 | Y68: 0 | Z68: 0 | AA68: 0 | AB68: 0 | AC68: 0 | AD68: 0 | AE68: 0 | AF68: 0 | AG68: 0 | AH68: 0 | AI68: 0 | AJ68: 0 | AK68: 0 | AL68: 0 | AM68: 0 | AN68: 0 | AO68: 0 | AP68: 0 | AQ68: 5 | AR68: 0 | AS68: 0 | AT68: 0 | AU68: 0 | AV68: 0 | AW68: 0 | AX68: 0 | AY68: 0 | AZ68: 0
B69: K10 | C69: 0 | D69: 0 | E69: 0 | F69: 0 | G69: 0 | H69: 0 | I69: 0 | J69: 0 | K69: 0 | L69: 0 | M69: 0 | N69: 0 | O69: 0 | P69: 0 | Q69: 0 | R69: 0 | S69: 0 | T69: 0 | U69: 0 | V69: 0 | W69: 3 | X69: 0 | Y69: 0 | Z69: 0 | AA69: 0 | AB69: 0 | AC69: 0 | AD69: 0 | AE69: 0 | AF69: 0 | AG69: 0 | AH69: 0 | AI69: 0 | AJ69: 0 | AK69: 0 | AL69: 0 | AM69: 0 | AN69: 0 | AO69: 0 | AP69: 0 | AQ69: 0 | AR69: 0 | AS69: 0 | AT69: 0 | AU69: 0 | AV69: 0 | AW69: 0 | AX69: 0 | AY69: 0 | AZ69: 0
B72: =B2 -> Počet bodů | C72: =C2 -> K1 | F72: Počet bodů | G72: K2 | J72: Počet bodů | K72: K3 | N72: Počet bodů | O72: K4 | R72: Počet bodů | S72: K5
B73: 1 | C73: =IF($C$92="MIN",D7,D3) -> 11990 | F73: =F3 -> 1 | G73: 24 | H73: 26.4 | J73: 1 | K73: 24 | L73: 26.4 | N73: 1 | O73: 1 | P73: 1.2 | R73: 1 | S73: 4 | T73: 5.2
B74: 2 | C74: =IF($C$92="MIN",D6,D4) -> 14485.4 | F74: =F4 -> 2 | G74: 26.40001 | H74: 28.8 | J74: 2 | K74: 26.40001 | L74: 28.8 | N74: 2 | O74: 1.20001 | P74: 1.4 | R74: 2 | S74: 5.20001 | T74: 6.4
B75: 3 | C75: =IF($C$92="MIN",D5,D5) -> 16980.8 | F75: =F5 -> 3 | G75: 28.80001 | H75: 31.2 | J75: 3 | K75: 28.80001 | L75: 31.2 | N75: 3 | O75: 1.40001 | P75: 1.6 | R75: 3 | S75: 6.40001 | T75: 7.6
B76: 4 | C76: =IF($C$92="MIN",D4,D6) -> 19476.2 | F76: =F6 -> 4 | G76: 31.20001 | H76: 33.6 | J76: 4 | K76: 31.20001 | L76: 33.6 | N76: 4 | O76: 1.60001 | P76: 1.8 | R76: 4 | S76: 7.60001 | T76: 8.8
B77: 5 | C77: =IF($C$92="MIN",D3,D7) -> 21971.6 | F77: =F7 -> 5 | G77: 33.60001 | H77: 36 | J77: 5 | K77: 33.60001 | L77: 36 | N77: 5 | O77: 1.80001 | P77: 2 | R77: 5 | S77: 8.80001 | T77: 10
B79: =B9 -> Počet bodů | C79: K6 | F79: Počet bodů | G79: K7 | J79: Počet bodů | K79: K8 | N79: Počet bodů | O79: K9 | R79: Počet bodů | S79: K10
B80: =B10 -> 1 | C80: 1 | D80: 5.2 | F80: 1 | G80: 2200 | H80: 2540 | J80: 1 | K80: 0.256 | L80: 0.4308 | N80: 1 | O80: =O10 -> 1 | P80: 2.8 | R80: 1 | S80: 1 | T80: 1.2
B81: =B11 -> 2 | C81: 5.20001 | D81: 6.4 | F81: 2 | G81: 2540.00001 | H81: 2880 | J81: 2 | K81: 0.43081 | L81: 0.6056 | N81: 2 | O81: 2.80001 | P81: 4.6 | R81: 2 | S81: 1.20001 | T81: 1.4
B82: =B12 -> 3 | C82: 6.40001 | D82: 7.6 | F82: 3 | G82: 2880.00001 | H82: 3220 | J82: 3 | K82: 0.60561 | L82: 0.7804 | N82: 3 | O82: 4.60001 | P82: 6.4 | R82: 3 | S82: 1.40001 | T82: 1.6
B83: =B13 -> 4 | C83: 7.60001 | D83: 8.8 | F83: 4 | G83: 3220.00001 | H83: 3560 | J83: 4 | K83: 0.78041 | L83: 0.9552 | N83: 4 | O83: 6.40001 | P83: 8.2 | R83: 4 | S83: 1.60001 | T83: 1.8
B84: =B14 -> 5 | C84: 8.80001 | D84: 2 | F84: 5 | G84: 3560.00001 | H84: 3900 | J84: 5 | K84: 0.95521 | L84: 1.13 | N84: 5 | O84: 8.20001 | P84: 10 | R84: 5 | S84: 1.80001 | T84: 2
C91: V1 | D91: V2 | E91: V3 | F91: V4 | G91: V5 | H91: V6 | I91: V7 | J91: V8 | K91: V9 | L91: V10
C92: ='Hodnotyp pro jednotlivá krit'!D5 -> MIN | D92: ='Hodnotyp pro jednotlivá krit'!E5 -> MAX | E92: ='Hodnotyp pro jednotlivá krit'!F5 -> MAX | F92: ='Hodnotyp pro jednotlivá krit'!G5 -> MAX | G92: ='Hodnotyp pro jednotlivá krit'!H5 -> MAX | H92: ='Hodnotyp pro jednotlivá krit'!I5 -> MAX | I92: ='Hodnotyp pro jednotlivá krit'!J5 -> MAX | J92: ='Hodnotyp pro jednotlivá krit'!K5 -> MAX | K92: ='Hodnotyp pro jednotlivá krit'!L5 -> MAX | L92: ='Hodnotyp pro jednotlivá krit'!M5 -> MAX
B93: K1 | C93: ='Hodnotyp pro jednotlivá krit'!D6 -> 24467 | D93: ='Hodnotyp pro jednotlivá krit'!E6 -> 24 | E93: ='Hodnotyp pro jednotlivá krit'!F6 -> 24 | F93: ='Hodnotyp pro jednotlivá krit'!G6 -> 1 | G93: ='Hodnotyp pro jednotlivá krit'!H6 -> 10 | H93: ='Hodnotyp pro jednotlivá krit'!I6 -> 2 | I93: ='Hodnotyp pro jednotlivá krit'!J6 -> 3300 | J93: ='Hodnotyp pro jednotlivá krit'!K6 -> 1 | K93: ='Hodnotyp pro jednotlivá krit'!L6 -> 3 | L93: ='Hodnotyp pro jednotlivá krit'!M6 -> 1
B94: K2 | C94: ='Hodnotyp pro jednotlivá krit'!D7 -> 19590 | D94: ='Hodnotyp pro jednotlivá krit'!E7 -> 24 | E94: ='Hodnotyp pro jednotlivá krit'!F7 -> 24 | F94: ='Hodnotyp pro jednotlivá krit'!G7 -> 1 | G94: ='Hodnotyp pro jednotlivá krit'!H7 -> 4 | H94: ='Hodnotyp pro jednotlivá krit'!I7 -> 2 | I94: ='Hodnotyp pro jednotlivá krit'!J7 -> 3200 | J94: ='Hodnotyp pro jednotlivá krit'!K7 -> 1.13 | K94: ='Hodnotyp pro jednotlivá krit'!L7 -> 7 | L94: ='Hodnotyp pro jednotlivá krit'!M7 -> 1
B95: K3 | C95: ='Hodnotyp pro jednotlivá krit'!D8 -> 22990 | D95: ='Hodnotyp pro jednotlivá krit'!E8 -> 24 | E95: ='Hodnotyp pro jednotlivá krit'!F8 -> 24 | F95: ='Hodnotyp pro jednotlivá krit'!G8 -> 1 | G95: ='Hodnotyp pro jednotlivá krit'!H8 -> 10 | H95: ='Hodnotyp pro jednotlivá krit'!I8 -> 2 | I95: ='Hodnotyp pro jednotlivá krit'!J8 -> 2200 | J95: ='Hodnotyp pro jednotlivá krit'!K8 -> 1.13 | K95: ='Hodnotyp pro jednotlivá krit'!L8 -> 6 | L95: ='Hodnotyp pro jednotlivá krit'!M8 -> 2
B96: K4 | C96: ='Hodnotyp pro jednotlivá krit'!D9 -> 22990 | D96: ='Hodnotyp pro jednotlivá krit'!E9 -> 24 | E96: ='Hodnotyp pro jednotlivá krit'!F9 -> 24 | F96: ='Hodnotyp pro jednotlivá krit'!G9 -> 1 | G96: ='Hodnotyp pro jednotlivá krit'!H9 -> 10 | H96: ='Hodnotyp pro jednotlivá krit'!I9 -> 2 | I96: ='Hodnotyp pro jednotlivá krit'!J9 -> 3300 | J96: ='Hodnotyp pro jednotlivá krit'!K9 -> 1.13 | K96: ='Hodnotyp pro jednotlivá krit'!L9 -> 4 | L96: ='Hodnotyp pro jednotlivá krit'!M9 -> 2
B97: K5 | C97: ='Hodnotyp pro jednotlivá krit'!D10 -> 20458 | D97: ='Hodnotyp pro jednotlivá krit'!E10 -> 36 | E97: ='Hodnotyp pro jednotlivá krit'!F10 -> 24 | F97: ='Hodnotyp pro jednotlivá krit'!G10 -> 1 | G97: ='Hodnotyp pro jednotlivá krit'!H10 -> 10 | H97: ='Hodnotyp pro jednotlivá krit'!I10 -> 2 | I97: ='Hodnotyp pro jednotlivá krit'!J10 -> 3900 | J97: ='Hodnotyp pro jednotlivá krit'!K10 -> 0.256 | K97: ='Hodnotyp pro jednotlivá krit'!L10 -> 8 | L97: ='Hodnotyp pro jednotlivá krit'!M10 -> 1
B98: K6 | C98: ='Hodnotyp pro jednotlivá krit'!D11 -> 11990 | D98: ='Hodnotyp pro jednotlivá krit'!E11 -> 36 | E98: ='Hodnotyp pro jednotlivá krit'!F11 -> 36 | F98: ='Hodnotyp pro jednotlivá krit'!G11 -> 2 | G98: ='Hodnotyp pro jednotlivá krit'!H11 -> 10 | H98: ='Hodnotyp pro jednotlivá krit'!I11 -> 1 | I98: ='Hodnotyp pro jednotlivá krit'!J11 -> 3300 | J98: ='Hodnotyp pro jednotlivá krit'!K11 -> 0.5 | K98: ='Hodnotyp pro jednotlivá krit'!L11 -> 5 | L98: ='Hodnotyp pro jednotlivá krit'!M11 -> 1
B99: K7 | C99: ='Hodnotyp pro jednotlivá krit'!D12 -> 17990 | D99: ='Hodnotyp pro jednotlivá krit'!E12 -> 24 | E99: ='Hodnotyp pro jednotlivá krit'!F12 -> 24 | F99: ='Hodnotyp pro jednotlivá krit'!G12 -> 2 | G99: ='Hodnotyp pro jednotlivá krit'!H12 -> 10 | H99: ='Hodnotyp pro jednotlivá krit'!I12 -> 1 | I99: ='Hodnotyp pro jednotlivá krit'!J12 -> 2400 | J99: ='Hodnotyp pro jednotlivá krit'!K12 -> 1 | K99: ='Hodnotyp pro jednotlivá krit'!L12 -> 2 | L99: ='Hodnotyp pro jednotlivá krit'!M12 -> 2
B100: K8 | C100: ='Hodnotyp pro jednotlivá krit'!D13 -> 18990 | D100: ='Hodnotyp pro jednotlivá krit'!E13 -> 36 | E100: ='Hodnotyp pro jednotlivá krit'!F13 -> 36 | F100: ='Hodnotyp pro jednotlivá krit'!G13 -> 2 | G100: ='Hodnotyp pro jednotlivá krit'!H13 -> 10 | H100: ='Hodnotyp pro jednotlivá krit'!I13 -> 2 | I100: ='Hodnotyp pro jednotlivá krit'!J13 -> 3400 | J100: ='Hodnotyp pro jednotlivá krit'!K13 -> 1 | K100: ='Hodnotyp pro jednotlivá krit'!L13 -> 9 | L100: ='Hodnotyp pro jednotlivá krit'!M13 -> 1
B101: K9 | C101: ='Hodnotyp pro jednotlivá krit'!D14 -> 13290 | D101: ='Hodnotyp pro jednotlivá krit'!E14 -> 36 | E101: ='Hodnotyp pro jednotlivá krit'!F14 -> 36 | F101: ='Hodnotyp pro jednotlivá krit'!G14 -> 1 | G101: ='Hodnotyp pro jednotlivá krit'!H14 -> 10 | H101: ='Hodnotyp pro jednotlivá krit'!I14 -> 1 | I101: ='Hodnotyp pro jednotlivá krit'!J14 -> 3700 | J101: ='Hodnotyp pro jednotlivá krit'!K14 -> 0.5 | K101: ='Hodnotyp pro jednotlivá krit'!L14 -> 1 | L101: ='Hodnotyp pro jednotlivá krit'!M14 -> 1
B102: K10 | C102: ='Hodnotyp pro jednotlivá krit'!D15 -> 18990 | D102: ='Hodnotyp pro jednotlivá krit'!E15 -> 36 | E102: ='Hodnotyp pro jednotlivá krit'!F15 -> 36 | F102: ='Hodnotyp pro jednotlivá krit'!G15 -> 2 | G102: ='Hodnotyp pro jednotlivá krit'!H15 -> 10 | H102: ='Hodnotyp pro jednotlivá krit'!I15 -> 2 | I102: ='Hodnotyp pro jednotlivá krit'!J15 -> 3600 | J102: ='Hodnotyp pro jednotlivá krit'!K15 -> 1 | K102: ='Hodnotyp pro jednotlivá krit'!L15 -> 10 | L102: ='Hodnotyp pro jednotlivá krit'!M15 -> 1
B104: MAX | C104: =MAX(C93:C102) -> 24467 | D104: =MAX(D93:D102) -> 36 | E104: 36 | F104: 2 | G104: 10 | H104: 2 | I104: 3900 | J104: 1.13 | K104: 10 | L104: 2
B105: MIN | C105: =MIN(C93:C102) -> 11990 | D105: =MIN(D93:D102) -> 24 | E105: 24 | F105: 1 | G105: 4 | H105: 1 | I105: 2200 | J105: 0.256 | K105: 1 | L105: 1
B106: Stupeň | C106: =(C104-C105)/5 -> 2495.4 | D106: =(D104-D105)/5 -> 2.4 | E106: =(E104-E105)/5 -> 2.4 | F106: 0.2 | G106: 1.2 | H106: 0.2 | I106: 340 | J106: 0.1748 | K106: 1.8 | L106: 0.2

Sheet Metoda pořadí_
C2: ='Hodnotyp pro jednotlivá krit'!D2 -> K1 | D2: ='Hodnotyp pro jednotlivá krit'!E2 -> K2 | E2: ='Hodnotyp pro jednotlivá krit'!F2 -> K3 | F2: ='Hodnotyp pro jednotlivá krit'!G2 -> K4 | G2: ='Hodnotyp pro jednotlivá krit'!H2 -> K5 | H2: ='Hodnotyp pro jednotlivá krit'!I2 -> K6 | I2: ='Hodnotyp pro jednotlivá krit'!J2 -> K7 | J2: ='Hodnotyp pro jednotlivá krit'!K2 -> K8 | K2: ='Hodnotyp pro jednotlivá krit'!L2 -> K9 | L2: ='Hodnotyp pro jednotlivá krit'!M2 -> K10 | M2: Součet pořadí
C3: =RANK(C34,C$34:C$43) -> 1 | D3: =RANK(D34,D$34:D$43) -> 6 | E3: 5 | F3: 5 | G3: 1 | H3: 1 | I3: 5 | J3: 4 | K3: 8 | L3: 4
C4: 5 | D4: =RANK(D35,D$34:D$43) -> 6 | E4: 5 | F4: 5 | G4: 10 | H4: 1 | I4: 8 | J4: 1 | K4: 4 | L4: 4
C5: 2 | D5: =RANK(D36,D$34:D$43) -> 10 | E5: 5 | F5: 5 | G5: 1 | H5: 1 | I5: 10 | J5: 1 | K5: 5 | L5: 1
C6: 2 | D6: =RANK(D37,D$34:D$43) -> 6 | E6: 5 | F6: 5 | G6: 1 | H6: 1 | I6: 5 | J6: 1 | K6: 7 | L6: 1
C7: 4 | D7: =RANK(D38,D$34:D$43) -> 1 | E7: 5 | F7: 5 | G7: 1 | H7: 1 | I7: 1 | J7: 10 | K7: 3 | L7: 4
C8: 10 | D8: =RANK(D39,D$34:D$43) -> 1 | E8: 1 | F8: 1 | G8: 1 | H8: 8 | I8: 5 | J8: 8 | K8: 6 | L8: 4
C9: 8 | D9: =RANK(D40,D$34:D$43) -> 6 | E9: 5 | F9: 1 | G9: 1 | H9: 8 | I9: 9 | J9: 4 | K9: 9 | L9: 1
C10: 6 | D10: =RANK(D41,D$34:D$43) -> 1 | E10: 1 | F10: 1 | G10: 1 | H10: 1 | I10: 4 | J10: 4 | K10: 2 | L10: 4
C11: 9 | D11: =RANK(D42,D$34:D$43) -> 1 | E11: 1 | F11: 5 | G11: 1 | H11: 8 | I11: 2 | J11: 8 | K11: 10 | L11: 4
C12: 6 | D12: =RANK(D43,D$34:D$43) -> 1 | E12: 1 | F12: 1 | G12: 1 | H12: 1 | I12: 3 | J12: 4 | K12: 1 | L12: 4
C13: ='Hodnotyp pro jednotlivá krit'!D5 -> MIN | D13: ='Hodnotyp pro jednotlivá krit'!E5 -> MAX | E13: ='Hodnotyp pro jednotlivá krit'!F5 -> MAX | F13: ='Hodnotyp pro jednotlivá krit'!G5 -> MAX | G13: ='Hodnotyp pro jednotlivá krit'!H5 -> MAX | H13: ='Hodnotyp pro jednotlivá krit'!I5 -> MAX | I13: ='Hodnotyp pro jednotlivá krit'!J5 -> MAX | J13: ='Hodnotyp pro jednotlivá krit'!K5 -> MAX | K13: ='Hodnotyp pro jednotlivá krit'!L5 -> MAX | L13: ='Hodnotyp pro jednotlivá krit'!M5 -> MAX
B14: ='Hodnotyp pro jednotlivá krit'!B6 -> V1 | C14: =IF(C$33="MIN",11-C3,C3) -> 10 | D14: =IF(D$33="MIN",11-D3,D3) -> 6 | E14: 5 | F14: 5 | G14: 1 | H14: 1 | I14: 5 | J14: 4 | K14: 8 | L14: 4 | M14: =SUM(C14:L14) -> 49
B15: ='Hodnotyp pro jednotlivá krit'!B7 -> V2 | C15: =IF(C$33="MIN",11-C4,C4) -> 6 | D15: 6 | E15: 5 | F15: 5 | G15: 10 | H15: 1 | I15: 8 | J15: 1 | K15: 4 | L15: 4 | M15: 50
B16: ='Hodnotyp pro jednotlivá krit'!B8 -> V3 | C16: 9 | D16: 10 | E16: 5 | F16: 5 | G16: 1 | H16: 1 | I16: 10 | J16: 1 | K16: 5 | L16: 1 | M16: 48
B17: ='Hodnotyp pro jednotlivá krit'!B9 -> V4 | C17: 9 | D17: 6 | E17: 5 | F17: 5 | G17: 1 | H17: 1 | I17: 5 | J17: 1 | K17: 7 | L17: 1 | M17: 41
B18: ='Hodnotyp pro jednotlivá krit'!B10 -> V5 | C18: 7 | D18: 1 | E18: 5 | F18: 5 | G18: 1 | H18: 1 | I18: 1 | J18: 10 | K18: 3 | L18: 4 | M18: 38
B19: ='Hodnotyp pro jednotlivá krit'!B11 -> V6 | C19: 1 | D19: 1 | E19: 1 | F19: 1 | G19: 1 | H19: 8 | I19: 5 | J19: 8 | K19: 6 | L19: 4 | M19: 36
B20: ='Hodnotyp pro jednotlivá krit'!B12 -> V7 | C20: 3 | D20: 6 | E20: 5 | F20: 1 | G20: 1 | H20: 8 | I20: 9 | J20: 4 | K20: 9 | L20: 1 | M20: 47
B21: ='Hodnotyp pro jednotlivá krit'!B13 -> V8 | C21: 5 | D21: 1 | E21: 1 | F21: 1 | G21: 1 | H21: 1 | I21: 4 | J21: 4 | K21: 2 | L21: 4 | M21: 24
B22: ='Hodnotyp pro jednotlivá krit'!B14 -> V9 | C22: 2 | D22: 1 | E22: 1 | F22: 5 | G22: 1 | H22: 8 | I22: 2 | J22: 8 | K22: 10 | L22: 4 | M22: 42
B23: ='Hodnotyp pro jednotlivá krit'!B15 -> V10 | C23: 5 | D23: 1 | E23: 1 | F23: 1 | G23: 1 | H23: 1 | I23: 3 | J23: 4 | K23: 1 | L23: 4 | M23: 22
C32: ='Hodnotyp pro jednotlivá krit'!D2 -> K1 | D32: ='Hodnotyp pro jednotlivá krit'!E2 -> K2 | E32: ='Hodnotyp pro jednotlivá krit'!F2 -> K3 | F32: ='Hodnotyp pro jednotlivá krit'!G2 -> K4 | G32: ='Hodnotyp pro jednotlivá krit'!H2 -> K5 | H32: ='Hodnotyp pro jednotlivá krit'!I2 -> K6 | I32: ='Hodnotyp pro jednotlivá krit'!J2 -> K7 | J32: ='Hodnotyp pro jednotlivá krit'!K2 -> K8 | K32: ='Hodnotyp pro jednotlivá krit'!L2 -> K9 | L32: ='Hodnotyp pro jednotlivá krit'!M2 -> K10
C33: ='Hodnotyp pro jednotlivá krit'!D5 -> MIN | D33: ='Hodnotyp pro jednotlivá krit'!E5 -> MAX | E33: ='Hodnotyp pro jednotlivá krit'!F5 -> MAX | F33: ='Hodnotyp pro jednotlivá krit'!G5 -> MAX | G33: ='Hodnotyp pro jednotlivá krit'!H5 -> MAX | H33: ='Hodnotyp pro jednotlivá krit'!I5 -> MAX | I33: ='Hodnotyp pro jednotlivá krit'!J5 -> MAX | J33: ='Hodnotyp pro jednotlivá krit'!K5 -> MAX | K33: ='Hodnotyp pro jednotlivá krit'!L5 -> MAX | L33: ='Hodnotyp pro jednotlivá krit'!M5 -> MAX
B34: ='Hodnotyp pro jednotlivá krit'!B6 -> V1 | C34: ='Hodnotyp pro jednotlivá krit'!D6 -> 24467 | D34: ='Hodnotyp pro jednotlivá krit'!E6 -> 24 | E34: ='Hodnotyp pro jednotlivá krit'!F6 -> 24 | F34: ='Hodnotyp pro jednotlivá krit'!G6 -> 1 | G34: ='Hodnotyp pro jednotlivá krit'!H6 -> 10 | H34: ='Hodnotyp pro jednotlivá krit'!I6 -> 2 | I34: ='Hodnotyp pro jednotlivá krit'!J6 -> 3300 | J34: ='Hodnotyp pro jednotlivá krit'!K6 -> 1 | K34: ='Hodnotyp pro jednotlivá krit'!L6 -> 3 | L34: ='Hodnotyp pro jednotlivá krit'!M6 -> 1 | O34: =RANK(S48,$S$48:$S$57) -> 1
B35: ='Hodnotyp pro jednotlivá krit'!B7 -> V2 | C35: ='Hodnotyp pro jednotlivá krit'!D7 -> 19590 | D35: ='Hodnotyp pro jednotlivá krit'!E7 -> 24 | E35: ='Hodnotyp pro jednotlivá krit'!F7 -> 24 | F35: ='Hodnotyp pro jednotlivá krit'!G7 -> 1 | G35: ='Hodnotyp pro jednotlivá krit'!H7 -> 4 | H35: ='Hodnotyp pro jednotlivá krit'!I7 -> 2 | I35: ='Hodnotyp pro jednotlivá krit'!J7 -> 3200 | J35: ='Hodnotyp pro jednotlivá krit'!K7 -> 1.13 | K35: ='Hodnotyp pro jednotlivá krit'!L7 -> 7 | L35: ='Hodnotyp pro jednotlivá krit'!M7 -> 1 | O35: =RANK(S49,$S$48:$S$57) -> 7
B36: ='Hodnotyp pro jednotlivá krit'!B8 -> V3 | C36: ='Hodnotyp pro jednotlivá krit'!D8 -> 22990 | D36: 2 | E36: ='Hodnotyp pro jednotlivá krit'!F8 -> 24 | F36: ='Hodnotyp pro jednotlivá krit'!G8 -> 1 | G36: ='Hodnotyp pro jednotlivá krit'!H8 -> 10 | H36: ='Hodnotyp pro jednotlivá krit'!I8 -> 2 | I36: ='Hodnotyp pro jednotlivá krit'!J8 -> 2200 | J36: ='Hodnotyp pro jednotlivá krit'!K8 -> 1.13 | K36: ='Hodnotyp pro jednotlivá krit'!L8 -> 6 | L36: ='Hodnotyp pro jednotlivá krit'!M8 -> 2 | O36: 10
B37: ='Hodnotyp pro jednotlivá krit'!B9 -> V4 | C37: ='Hodnotyp pro jednotlivá krit'!D9 -> 22990 | D37: ='Hodnotyp pro jednotlivá krit'!E9 -> 24 | E37: ='Hodnotyp pro jednotlivá krit'!F9 -> 24 | F37: ='Hodnotyp pro jednotlivá krit'!G9 -> 1 | G37: ='Hodnotyp pro jednotlivá krit'!H9 -> 10 | H37: ='Hodnotyp pro jednotlivá krit'!I9 -> 2 | I37: ='Hodnotyp pro jednotlivá krit'!J9 -> 3300 | J37: ='Hodnotyp pro jednotlivá krit'!K9 -> 1.13 | K37: ='Hodnotyp pro jednotlivá krit'!L9 -> 4 | L37: ='Hodnotyp pro jednotlivá krit'!M9 -> 2 | O37: 2
B38: ='Hodnotyp pro jednotlivá krit'!B10 -> V5 | C38: ='Hodnotyp pro jednotlivá krit'!D10 -> 20458 | D38: ='Hodnotyp pro jednotlivá krit'!E10 -> 36 | E38: ='Hodnotyp pro jednotlivá krit'!F10 -> 24 | F38: ='Hodnotyp pro jednotlivá krit'!G10 -> 1 | G38: ='Hodnotyp pro jednotlivá krit'!H10 -> 10 | H38: ='Hodnotyp pro jednotlivá krit'!I10 -> 2 | I38: ='Hodnotyp pro jednotlivá krit'!J10 -> 3900 | J38: ='Hodnotyp pro jednotlivá krit'!K10 -> 0.256 | K38: ='Hodnotyp pro jednotlivá krit'!L10 -> 8 | L38: ='Hodnotyp pro jednotlivá krit'!M10 -> 1 | O38: 5
B39: ='Hodnotyp pro jednotlivá krit'!B11 -> V6 | C39: ='Hodnotyp pro jednotlivá krit'!D11 -> 11990 | D39: ='Hodnotyp pro jednotlivá krit'!E11 -> 36 | E39: ='Hodnotyp pro jednotlivá krit'!F11 -> 36 | F39: ='Hodnotyp pro jednotlivá krit'!G11 -> 2 | G39: ='Hodnotyp pro jednotlivá krit'!H11 -> 10 | H39: ='Hodnotyp pro jednotlivá krit'!I11 -> 1 | I39: ='Hodnotyp pro jednotlivá krit'!J11 -> 3300 | J39: ='Hodnotyp pro jednotlivá krit'!K11 -> 0.5 | K39: ='Hodnotyp pro jednotlivá krit'!L11 -> 5 | L39: ='Hodnotyp pro jednotlivá krit'!M11 -> 1 | O39: 3
B40: ='Hodnotyp pro jednotlivá krit'!B12 -> V7 | C40: ='Hodnotyp pro jednotlivá krit'!D12 -> 17990 | D40: ='Hodnotyp pro jednotlivá krit'!E12 -> 24 | E40: ='Hodnotyp pro jednotlivá krit'!F12 -> 24 | F40: ='Hodnotyp pro jednotlivá krit'!G12 -> 2 | G40: ='Hodnotyp pro jednotlivá krit'!H12 -> 10 | H40: ='Hodnotyp pro jednotlivá krit'!I12 -> 1 | I40: ='Hodnotyp pro jednotlivá krit'!J12 -> 2400 | J40: ='Hodnotyp pro jednotlivá krit'!K12 -> 1 | K40: ='Hodnotyp pro jednotlivá krit'!L12 -> 2 | L40: ='Hodnotyp pro jednotlivá krit'!M12 -> 2 | O40: 4
B41: ='Hodnotyp pro jednotlivá krit'!B13 -> V8 | C41: ='Hodnotyp pro jednotlivá krit'!D13 -> 18990 | D41: ='Hodnotyp pro jednotlivá krit'!E13 -> 36 | E41: ='Hodnotyp pro jednotlivá krit'!F13 -> 36 | F41: ='Hodnotyp pro jednotlivá krit'!G13 -> 2 | G41: ='Hodnotyp pro jednotlivá krit'!H13 -> 10 | H41: ='Hodnotyp pro jednotlivá krit'!I13 -> 2 | I41: ='Hodnotyp pro jednotlivá krit'!J13 -> 3400 | J41: ='Hodnotyp pro jednotlivá krit'!K13 -> 1 | K41: ='Hodnotyp pro jednotlivá krit'!L13 -> 9 | L41: ='Hodnotyp pro jednotlivá krit'!M13 -> 1 | O41: 9
B42: ='Hodnotyp pro jednotlivá krit'!B14 -> V9 | C42: ='Hodnotyp pro jednotlivá krit'!D14 -> 13290 | D42: ='Hodnotyp pro jednotlivá krit'!E14 -> 36 | E42: ='Hodnotyp pro jednotlivá krit'!F14 -> 36 | F42: ='Hodnotyp pro jednotlivá krit'!G14 -> 1 | G42: ='Hodnotyp pro jednotlivá krit'!H14 -> 10 | H42: ='Hodnotyp pro jednotlivá krit'!I14 -> 1 | I42: ='Hodnotyp pro jednotlivá krit'!J14 -> 3700 | J42: ='Hodnotyp pro jednotlivá krit'!K14 -> 0.5 | K42: ='Hodnotyp pro jednotlivá krit'!L14 -> 1 | L42: ='Hodnotyp pro jednotlivá krit'!M14 -> 1 | O42: 8
B43: ='Hodnotyp pro jednotlivá krit'!B15 -> V10 | C43: ='Hodnotyp pro jednotlivá krit'!D15 -> 18990 | D43: ='Hodnotyp pro jednotlivá krit'!E15 -> 36 | E43: ='Hodnotyp pro jednotlivá krit'!F15 -> 36 | F43: ='Hodnotyp pro jednotlivá krit'!G15 -> 2 | G43: ='Hodnotyp pro jednotlivá krit'!H15 -> 10 | H43: ='Hodnotyp pro jednotlivá krit'!I15 -> 2 | I43: ='Hodnotyp pro jednotlivá krit'!J15 -> 3600 | J43: ='Hodnotyp pro jednotlivá krit'!K15 -> 1 | K43: ='Hodnotyp pro jednotlivá krit'!L15 -> 10 | L43: ='Hodnotyp pro jednotlivá krit'!M15 -> 1 | O43: 6
C47: =C2 -> K1 | D47: =D2 -> K2 | E47: K3 | F47: K4 | G47: K5 | H47: K6 | I47: K7 | J47: K8 | K47: K9 | L47: K10 | M47: Váhy | N47: Pořadí variant
B48: =B14 -> V1 | C48: =C14*$M48 -> 1.59375 | D48: 0.95625 | E48: 0.796875 | F48: 0.796875 | G48: 0.159375 | H48: 0.159375 | I48: 0.796875 | J48: 0.6375 | K48: 1.275 | L48: 0.6375 | M48: 0.159375 | N48: =11-O34 -> 10 | S48: =SUM(C48:L48) -> 7.809375
B49: =B15 -> V2 | C49: =C15*$M49 -> 0.35625 | D49: 0.35625 | E49: 0.296875 | F49: 0.296875 | G49: 0.59375 | H49: 0.059375 | I49: 0.475 | J49: 0.059375 | K49: 0.2375 | L49: 0.2375 | M49: 0.059375 | N49: =11-O35 -> 4 | S49: =SUM(C49:L49) -> 2.96875
B50: V3 | C50: =C16*$M50 -> 0.365625 | D50: 0.40625 | E50: 0.203125 | F50: 0.203125 | G50: 0.040625 | H50: 0.040625 | I50: 0.40625 | J50: 0.040625 | K50: 0.203125 | L50: 0.040625 | M50: 0.040625 | N50: =11-O36 -> 1 | S50: 1.95
B51: V4 | C51: =C17*$M51 -> 1.040625 | D51: 0.69375 | E51: 0.578125 | F51: 0.578125 | G51: 0.115625 | H51: 0.115625 | I51: 0.578125 | J51: 0.115625 | K51: 0.809375 | L51: 0.115625 | M51: 0.115625 | N51: 9 | S51: 4.740625
B52: V5 | C52: =C18*$M52 -> 0.678125 | D52: 0.096875 | E52: 0.484375 | F52: 0.484375 | G52: 0.096875 | H52: 0.096875 | I52: 0.096875 | J52: 0.96875 | K52: 0.290625 | L52: 0.3875 | M52: 0.096875 | N52: 6 | S52: 3.68125
B53: V6 | C53: =C19*$M53 -> 0.10625 | D53: 0.10625 | E53: 0.10625 | F53: 0.10625 | G53: 0.10625 | H53: 0.85 | I53: 0.53125 | J53: 0.85 | K53: 0.6375 | L53: 0.425 | M53: 0.10625 | N53: 8 | S53: 3.825
B54: V7 | C54: =C20*$M54 -> 0.24375 | D54: 0.4875 | E54: 0.40625 | F54: 0.08125 | G54: 0.08125 | H54: 0.65 | I54: 0.73125 | J54: 0.325 | K54: 0.73125 | L54: 0.08125 | M54: 0.08125 | N54: 7 | S54: 3.81875
B55: V8 | C55: =C21*$M55 -> 0.5625 | D55: 0.1125 | E55: 0.1125 | F55: 0.1125 | G55: 0.1125 | H55: 0.1125 | I55: 0.45 | J55: 0.45 | K55: 0.225 | L55: 0.45 | M55: 0.1125 | N55: 2 | S55: 2.7
B56: V9 | C56: =C22*$M56 -> 0.1375 | D56: 0.06875 | E56: 0.06875 | F56: 0.34375 | G56: 0.06875 | H56: 0.55 | I56: 0.1375 | J56: 0.55 | K56: 0.6875 | L56: 0.275 | M56: 0.06875 | N56: 3 | S56: 2.8875
B57: V10 | C57: =C23*$M57 -> 0.796875 | D57: 0.159375 | E57: 0.159375 | F57: 0.159375 | G57: 0.159375 | H57: 0.159375 | I57: 0.478125 | J57: 0.6375 | K57: 0.159375 | L57: 0.6375 | M57: 0.159375 | N57: 5 | S57: 3.50625

Sheet Metoda TOPSIS
B1: K1 | C1: K2 | D1: K3 | E1: K4 | M1: ='Hodnotyp pro jednotlivá krit'!D6 -> 24467 | N1: ='Hodnotyp pro jednotlivá krit'!E6 -> 24 | O1: ='Hodnotyp pro jednotlivá krit'!F6 -> 24 | P1: ='Hodnotyp pro jednotlivá krit'!G6 -> 1 | Q1: ='Hodnotyp pro jednotlivá krit'!H6 -> 10 | R1: ='Hodnotyp pro jednotlivá krit'!I6 -> 2 | S1: ='Hodnotyp pro jednotlivá krit'!J6 -> 3300 | T1: ='Hodnotyp pro jednotlivá krit'!K6 -> 1 | U1: ='Hodnotyp pro jednotlivá krit'!L6 -> 3 | V1: ='Hodnotyp pro jednotlivá krit'!M6 -> 1
A2: VA | B2: 30 | C2: 0 | D2: 2 | E2: 9 | M2: ='Hodnotyp pro jednotlivá krit'!D7 -> 19590 | N2: ='Hodnotyp pro jednotlivá krit'!E7 -> 24 | O2: ='Hodnotyp pro jednotlivá krit'!F7 -> 24 | P2: ='Hodnotyp pro jednotlivá krit'!G7 -> 1 | Q2: ='Hodnotyp pro jednotlivá krit'!H7 -> 4 | R2: ='Hodnotyp pro jednotlivá krit'!I7 -> 2 | S2: ='Hodnotyp pro jednotlivá krit'!J7 -> 3200 | T2: ='Hodnotyp pro jednotlivá krit'!K7 -> 1.13 | U2: ='Hodnotyp pro jednotlivá krit'!L7 -> 7 | V2: ='Hodnotyp pro jednotlivá krit'!M7 -> 1
A3: VB | B3: 22 | C3: 30 | D3: 1 | E3: 7.5 | M3: ='Hodnotyp pro jednotlivá krit'!D8 -> 22990 | N3: ='Hodnotyp pro jednotlivá krit'!E8 -> 24 | O3: ='Hodnotyp pro jednotlivá krit'!F8 -> 24 | P3: ='Hodnotyp pro jednotlivá krit'!G8 -> 1 | Q3: ='Hodnotyp pro jednotlivá krit'!H8 -> 10 | R3: ='Hodnotyp pro jednotlivá krit'!I8 -> 2 | S3: ='Hodnotyp pro jednotlivá krit'!J8 -> 2200 | T3: ='Hodnotyp pro jednotlivá krit'!K8 -> 1.13 | U3: ='Hodnotyp pro jednotlivá krit'!L8 -> 6 | V3: ='Hodnotyp pro jednotlivá krit'!M8 -> 2
A4: VC | B4: 26 | C4: 15 | D4: 3 | E4: 8 | M4: ='Hodnotyp pro jednotlivá krit'!D9 -> 22990 | N4: ='Hodnotyp pro jednotlivá krit'!E9 -> 24 | O4: ='Hodnotyp pro jednotlivá krit'!F9 -> 24 | P4: ='Hodnotyp pro jednotlivá krit'!G9 -> 1 | Q4: ='Hodnotyp pro jednotlivá krit'!H9 -> 10 | R4: ='Hodnotyp pro jednotlivá krit'!I9 -> 2 | S4: ='Hodnotyp pro jednotlivá krit'!J9 -> 3300 | T4: ='Hodnotyp pro jednotlivá krit'!K9 -> 1.13 | U4: ='Hodnotyp pro jednotlivá krit'!L9 -> 4 | V4: ='Hodnotyp pro jednotlivá krit'!M9 -> 2
B5: =(B2/B$32) -> 0.6609789739 | C5: =C2/C$32 -> 0 | D5: 0.5345224838 | E5: 0.6344166392 | M5: ='Hodnotyp pro jednotlivá krit'!D10 -> 20458 | N5: ='Hodnotyp pro jednotlivá krit'!E10 -> 36 | O5: ='Hodnotyp pro jednotlivá krit'!F10 -> 24 | P5: ='Hodnotyp pro jednotlivá krit'!G10 -> 1 | Q5: ='Hodnotyp pro jednotlivá krit'!H10 -> 10 | R5: ='Hodnotyp pro jednotlivá krit'!I10 -> 2 | S5: ='Hodnotyp pro jednotlivá krit'!J10 -> 3900 | T5: ='Hodnotyp pro jednotlivá krit'!K10 -> 0.256 | U5: ='Hodnotyp pro jednotlivá krit'!L10 -> 8 | V5: ='Hodnotyp pro jednotlivá krit'!M10 -> 1
B6: =B3/B$32 -> 0.4847179142 | C6: 0.894427191 | D6: 0.2672612419 | E6: 0.5286805326 | M6: ='Hodnotyp pro jednotlivá krit'!D11 -> 11990 | N6: ='Hodnotyp pro jednotlivá krit'!E11 -> 36 | O6: ='Hodnotyp pro jednotlivá krit'!F11 -> 36 | P6: ='Hodnotyp pro jednotlivá krit'!G11 -> 2 | Q6: ='Hodnotyp pro jednotlivá krit'!H11 -> 10 | R6: ='Hodnotyp pro jednotlivá krit'!I11 -> 1 | S6: ='Hodnotyp pro jednotlivá krit'!J11 -> 3300 | T6: ='Hodnotyp pro jednotlivá krit'!K11 -> 0.5 | U6: ='Hodnotyp pro jednotlivá krit'!L11 -> 5 | V6: ='Hodnotyp pro jednotlivá krit'!M11 -> 1
B7: =B4/B$32 -> 0.572848444 | C7: 0.4472135955 | D7: 0.8017837257 | E7: 0.5639259015 | M7: ='Hodnotyp pro jednotlivá krit'!D12 -> 17990 | N7: ='Hodnotyp pro jednotlivá krit'!E12 -> 24 | O7: ='Hodnotyp pro jednotlivá krit'!F12 -> 24 | P7: ='Hodnotyp pro jednotlivá krit'!G12 -> 2 | Q7: ='Hodnotyp pro jednotlivá krit'!H12 -> 10 | R7: ='Hodnotyp pro jednotlivá krit'!I12 -> 1 | S7: ='Hodnotyp pro jednotlivá krit'!J12 -> 2400 | T7: ='Hodnotyp pro jednotlivá krit'!K12 -> 1 | U7: ='Hodnotyp pro jednotlivá krit'!L12 -> 2 | V7: ='Hodnotyp pro jednotlivá krit'!M12 -> 2
M8: ='Hodnotyp pro jednotlivá krit'!D13 -> 18990 | N8: ='Hodnotyp pro jednotlivá krit'!E13 -> 36 | O8: ='Hodnotyp pro jednotlivá krit'!F13 -> 36 | P8: ='Hodnotyp pro jednotlivá krit'!G13 -> 2 | Q8: ='Hodnotyp pro jednotlivá krit'!H13 -> 10 | R8: ='Hodnotyp pro jednotlivá krit'!I13 -> 2 | S8: ='Hodnotyp pro jednotlivá krit'!J13 -> 3400 | T8: ='Hodnotyp pro jednotlivá krit'!K13 -> 1 | U8: ='Hodnotyp pro jednotlivá krit'!L13 -> 9 | V8: ='Hodnotyp pro jednotlivá krit'!M13 -> 1
B9: =B5*B$35 -> 0.3304894869 | C9: =C5*C$35 -> 0 | D9: 0.133630621 | E9: 0.03172083196 | M9: ='Hodnotyp pro jednotlivá krit'!D14 -> 13290 | N9: ='Hodnotyp pro jednotlivá krit'!E14 -> 36 | O9: ='Hodnotyp pro jednotlivá krit'!F14 -> 36 | P9: ='Hodnotyp pro jednotlivá krit'!G14 -> 1 | Q9: ='Hodnotyp pro jednotlivá krit'!H14 -> 10 | R9: ='Hodnotyp pro jednotlivá krit'!I14 -> 1 | S9: ='Hodnotyp pro jednotlivá krit'!J14 -> 3700 | T9: ='Hodnotyp pro jednotlivá krit'!K14 -> 0.5 | U9: ='Hodnotyp pro jednotlivá krit'!L14 -> 1 | V9: ='Hodnotyp pro jednotlivá krit'!M14 -> 1
B10: =B6*B$35 -> 0.2423589571 | C10: 0.1788854382 | D10: 0.06681531048 | E10: 0.02643402663 | M10: ='Hodnotyp pro jednotlivá krit'!D15 -> 18990 | N10: ='Hodnotyp pro jednotlivá krit'!E15 -> 36 | O10: ='Hodnotyp pro jednotlivá krit'!F15 -> 36 | P10: ='Hodnotyp pro jednotlivá krit'!G15 -> 2 | Q10: ='Hodnotyp pro jednotlivá krit'!H15 -> 10 | R10: ='Hodnotyp pro jednotlivá krit'!I15 -> 2 | S10: ='Hodnotyp pro jednotlivá krit'!J15 -> 3600 | T10: ='Hodnotyp pro jednotlivá krit'!K15 -> 1 | U10: ='Hodnotyp pro jednotlivá krit'!L15 -> 10 | V10: ='Hodnotyp pro jednotlivá krit'!M15 -> 1
B11: =B7*B$35 -> 0.286424222 | C11: 0.0894427191 | D11: 0.2004459314 | E11: 0.02819629507
A12: hj | B12: =MAX(B9:B11) -> 0.3304894869 | C12: =MAX(C9:C11) -> 0.1788854382 | D12: 0.2004459314 | E12: 0.03172083196
A13: dj | B13: =MIN(B9:B11) -> 0.2423589571 | C13: =MIN(C9:C11) -> 0 | D13: =MIN(D9:D11) -> 0.06681531048 | E13: =MIN(E9:E11) -> 0.02643402663
M15: ='Hodnotyp pro jednotlivá krit'!D2 -> K1 | N15: ='Hodnotyp pro jednotlivá krit'!E2 -> K2 | O15: ='Hodnotyp pro jednotlivá krit'!F2 -> K3 | P15: ='Hodnotyp pro jednotlivá krit'!G2 -> K4 | Q15: ='Hodnotyp pro jednotlivá krit'!H2 -> K5 | R15: ='Hodnotyp pro jednotlivá krit'!I2 -> K6 | S15: ='Hodnotyp pro jednotlivá krit'!J2 -> K7 | T15: ='Hodnotyp pro jednotlivá krit'!K2 -> K8 | U15: ='Hodnotyp pro jednotlivá krit'!L2 -> K9 | V15: ='Hodnotyp pro jednotlivá krit'!M2 -> K10 | W15: Váhy | X15: Kritérium pro váhy
M16: ='Hodnotyp pro jednotlivá krit'!D5 -> MIN | N16: ='Hodnotyp pro jednotlivá krit'!E5 -> MAX | O16: ='Hodnotyp pro jednotlivá krit'!F5 -> MAX | P16: ='Hodnotyp pro jednotlivá krit'!G5 -> MAX | Q16: ='Hodnotyp pro jednotlivá krit'!H5 -> MAX | R16: ='Hodnotyp pro jednotlivá krit'!I5 -> MAX | S16: ='Hodnotyp pro jednotlivá krit'!J5 -> MAX | T16: ='Hodnotyp pro jednotlivá krit'!K5 -> MAX | U16: ='Hodnotyp pro jednotlivá krit'!L5 -> MAX | V16: ='Hodnotyp pro jednotlivá krit'!M5 -> MAX | Z16: d+ | AA16: d- | AB16: ci | AC16: Pořadí
B17: =(B9-B$12)^2 -> 0 | C17: =(C9-C$12)^2 -> 0.032 | D17: 0.004464285714 | E17: 0 | G17: =(B9-B$13)^2 -> 0.007766990291 | H17: 0 | I17: 0.004464285714 | J17: 2.795031056e-05 | L17: V1 | M17: =IF(M$16="MIN",((MAX(M$1:M$10)-M1)/M$39),M1/M$39) -> 0 | N17: =IF(N$16="MIN",((MAX(N$1:N$10)-N1)/N$39),N1/N$39) -> 0.2480694692 | O17: 0.2581988897 | P17: 0.2132007164 | Q17: 0.3304093002 | R17: 0.3592106041 | S17: 0.3191274459 | T17: 0.3451101094 | U17: 0.1528941574 | V17: 0.2294157339 | W17: 0.2427695711 | X17: K1 | Z17: =SQRT((SUM(M55:V55))) -> 0.07333434976 | AA17: =SQRT((SUM(Y55:AH55))) -> 0.04902759897 | AB17: =AA17/(Z17+AA17) -> 0.4006768401 | AC17: =AE17 -> 9 | AE17: =RANK(AB17,$AB$17:$AB$26) -> 9
B18: =(B10-B$12)^2 -> 0.007766990291 | C18: =(C10-C$12)^2 -> 0 | D18: 0.01785714286 | E18: 2.795031056e-05 | G18: 0 | H18: 0.032 | I18: 0 | J18: 0 | L18: V2 | M18: =IF(M$16="MIN",((MAX(M$1:M$10)-M2)/M$39),M2/M$39) -> 0.07887418653 | N18: 0.2480694692 | O18: 0.2581988897 | P18: 0.2132007164 | Q18: 0.1321637201 | R18: 0.3592106041 | S18: 0.3094569173 | T18: 0.3899744237 | U18: 0.356753034 | V18: 0.2294157339 | W18: 0.02197132563 | X18: K2 | Z18: 0.05327189522 | AA18: 0.06482387448 | AB18: 0.5489093695 | AC18: =AE18 -> 5 | AE18: 5
B19: =(B11-B$12)^2 -> 0.001941747573 | C19: 0.008 | D19: 0 | E19: 1.242236025e-05 | G19: 0.001941747573 | H19: 0.008 | I19: 0.01785714286 | J19: 3.105590062e-06 | L19: V3 | M19: =IF(M$16="MIN",((MAX(M$1:M$10)-M3)/M$39),M3/M$39) -> 0.02388705629 | N19: 0.2480694692 | O19: 0.2581988897 | P19: 0.2132007164 | Q19: 0.3304093002 | R19: 0.3592106041 | S19: 0.2127516306 | T19: 0.3899744237 | U19: 0.3057883149 | V19: 0.4588314677 | W19: 0.02495401648 | X19: K3 | Z19: 0.05147645479 | AA19: 0.07123409696 | AB19: 0.5805050661 | AC19: =AE19 -> 2 | AE19: 2
L20: V4 | M20: =IF(M$16="MIN",((MAX(M$1:M$10)-M4)/M$39),M4/M$39) -> 0.02388705629 | N20: 0.2480694692 | O20: 0.2581988897 | P20: 0.2132007164 | Q20: 0.3304093002 | R20: 0.3592106041 | S20: 0.3191274459 | T20: 0.3899744237 | U20: 0.2038588766 | V20: 0.4588314677 | W20: 0.02493357064 | X20: K4 | Z20: 0.0540034159 | AA20: 0.06909450637 | AB20: 0.5612970966 | AC20: 4 | AE20: 4
B21: d+ | C21: d- | D21: ci | E21: Pořadí | L21: V5 | M21: =IF(M$16="MIN",((MAX(M$1:M$10)-M5)/M$39),M5/M$39) -> 0.06483629564 | N21: 0.3721042038 | O21: 0.2581988897 | P21: 0.2132007164 | Q21: 0.3304093002 | R21: 0.3592106041 | S21: 0.3771506179 | T21: 0.08834818801 | U21: 0.4077177532 | V21: 0.2294157339 | W21: 0.04623029791 | X21: K5 | Z21: 0.07239394113 | AA21: 0.04753618645 | AB21: 0.396365679 | AC21: 10 | AE21: 10
B22: =SQRT(B17+C17+D17+E17) -> 0.1909562403 | C22: =SQRT(G17+H17+I17+J17) -> 0.1107213905 | D22: =C22/(B22+C22) -> 0.3670188943 | E22: =RANK(D22,$D$22:$D$24) -> 3 | L22: V6 | M22: =IF(M$16="MIN",((MAX(M$1:M$10)-M6)/M$39),M6/M$39) -> 0.2017865953 | N22: 0.3721042038 | O22: 0.3872983346 | P22: 0.4264014327 | Q22: 0.3304093002 | R22: 0.179605302 | S22: 0.3191274459 | T22: 0.1725550547 | U22: 0.2548235957 | V22: 0.2294157339 | W22: 0.09578827941 | X22: K6 | Z22: 0.0617287346 | AA22: 0.05727981649 | AB22: 0.4813084099 | AC22: 7 | AE22: 7
B23: =SQRT(B18+C18+D18+E18) -> 0.1601626781 | C23: =SQRT(G18+H18+I18+J18) -> 0.1788854382 | D23: =C23/(B23+C23) -> 0.5276107714 | E23: =RANK(D23,$D$22:$D$24) -> 2 | L23: V7 | M23: =IF(M$16="MIN",((MAX(M$1:M$10)-M7)/M$39),M7/M$39) -> 0.1047504831 | N23: 0.2480694692 | O23: 0.2581988897 | P23: 0.4264014327 | Q23: 0.3304093002 | R23: 0.179605302 | S23: 0.232092688 | T23: 0.3451101094 | U23: 0.1019294383 | V23: 0.4588314677 | W23: 0.1069115185 | X23: K7 | Z23: 0.05368566593 | AA23: 0.06403509472 | AB23: 0.5439575345 | AC23: 6 | AE23: 6
B24: =SQRT(B19+C19+D19+E19) -> 0.09977058651 | C24: 0.1667393056 | D24: 0.6256402127 | E24: 1 | L24: V8 | M24: =IF(M$16="MIN",((MAX(M$1:M$10)-M8)/M$39),M8/M$39) -> 0.08857779775 | N24: 0.3721042038 | O24: 0.3872983346 | P24: 0.4264014327 | Q24: 0.3304093002 | R24: 0.3592106041 | S24: 0.3287979746 | T24: 0.3451101094 | U24: 0.4586824723 | V24: 0.2294157339 | W24: 0.1646382056 | X24: K8 | Z24: 0.04885599098 | AA24: 0.06743682108 | AB24: 0.579888128 | AC24: 3 | AE24: 3
L25: V9 | M25: =IF(M$16="MIN",((MAX(M$1:M$10)-M9)/M$39),M9/M$39) -> 0.1807621043 | N25: 0.3721042038 | O25: 0.3872983346 | P25: 0.2132007164 | Q25: 0.3304093002 | R25: 0.179605302 | S25: 0.3578095606 | T25: 0.1725550547 | U25: 0.05096471914 | V25: 0.2294157339 | W25: 0.1016706509 | X25: K9 | Z25: 0.07303487732 | AA25: 0.04960118001 | AB25: 0.4044583713 | AC25: 8 | AE25: 8
L26: V10 | M26: =IF(M$16="MIN",((MAX(M$1:M$10)-M10)/M$39),M10/M$39) -> 0.08857779775 | N26: 0.3721042038 | O26: 0.3872983346 | P26: 0.4264014327 | Q26: 0.3304093002 | R26: 0.3592106041 | S26: 0.3481390319 | T26: 0.3451101094 | U26: 0.5096471914 | V26: 0.2294157339 | W26: 0.1701325638 | X26: K10 | Z26: 0.0484040889 | AA26: 0.07113188246 | AB26: 0.595066754 | AC26: 1 | AE26: 1
B29: =B2*B2 -> 900 | C29: 0 | D29: 4 | E29: 81 | M29: =M1*M1 -> 598634089 | N29: 576 | O29: 576 | P29: 1 | Q29: 100 | R29: 4 | S29: 10890000 | T29: 1 | U29: 9 | V29: 1
B30: 484 | C30: 900 | D30: 1 | E30: 56.25 | M30: =M2*M2 -> 383768100 | N30: 576 | O30: 576 | P30: 1 | Q30: 16 | R30: 4 | S30: 10240000 | T30: 1.2769 | U30: 49 | V30: 1
B31: 676 | C31: 225 | D31: 9 | E31: 64 | M31: =M3*M3 -> 528540100 | N31: 576 | O31: 576 | P31: 1 | Q31: 100 | R31: 4 | S31: 4840000 | T31: 1.2769 | U31: 36 | V31: 4
B32: =SQRT(B29+B30+B31) -> 45.38722287 | C32: =SQRT(C29+C30+C31) -> 33.54101966 | D32: 3.741657387 | E32: 14.18626096 | M32: =M4*M4 -> 528540100 | N32: 576 | O32: 576 | P32: 1 | Q32: 100 | R32: 4 | S32: 10890000 | T32: 1.2769 | U32: 16 | V32: 4
M33: =M5*M5 -> 418529764 | N33: 1296 | O33: 576 | P33: 1 | Q33: 100 | R33: 4 | S33: 15210000 | T33: 0.065536 | U33: 64 | V33: 1
M34: =M6*M6 -> 143760100 | N34: 1296 | O34: 1296 | P34: 4 | Q34: 100 | R34: 1 | S34: 10890000 | T34: 0.25 | U34: 25 | V34: 1
A35: Váhy | B35: 0.5 | C35: 0.2 | D35: 0.25 | E35: 0.05 | M35: =M7*M7 -> 323640100 | N35: 576 | O35: 576 | P35: 4 | Q35: 100 | R35: 1 | S35: 5760000 | T35: 1 | U35: 4 | V35: 4
M36: =M8*M8 -> 360620100 | N36: 1296 | O36: 1296 | P36: 4 | Q36: 100 | R36: 4 | S36: 11560000 | T36: 1 | U36: 81 | V36: 1
M37: =M9*M9 -> 176624100 | N37: 1296 | O37: 1296 | P37: 1 | Q37: 100 | R37: 1 | S37: 13690000 | T37: 0.25 | U37: 1 | V37: 1
M38: =M10*M10 -> 360620100 | N38: 1296 | O38: 1296 | P38: 4 | Q38: 100 | R38: 4 | S38: 12960000 | T38: 1 | U38: 100 | V38: 1
M39: =SQRT(SUM(M29:M38)) -> 61832.65038 | N39: =SQRT(SUM(N29:N38)) -> 96.74709298 | O39: 92.95160031 | P39: 4.69041576 | Q39: 30.2654919 | R39: 5.567764363 | S39: 10340.6963 | T39: 2.897625925 | U39: 19.62141687 | V39: 4.358898944
M41: =M15 -> K1 | N41: =N15 -> K2 | O41: K3 | P41: K4 | Q41: K5 | R41: K6 | S41: K7 | T41: K8 | U41: K9 | V41: K10
L42: V1 | M42: =M17*W$17 -> 0 | N42: =N17*W$18 -> 0.005450415087 | O42: =O17*W$19 -> 0.00644309935 | P42: =P17*W$20 -> 0.005315855121 | Q42: =Q17*W$21 -> 0.01527492038 | R42: =R17*W$22 -> 0.03440816571 | S42: =S17*W$23 -> 0.03411839983 | T42: =T17*W$24 -> 0.05681830917 | U42: =U17*W$25 -> 0.0155448485 | V42: =V17*W$26 -> 0.03903108698
L43: V2 | M43: =M18*W$17 -> 0.01914825244 | N43: =N18*W$18 -> 0.005450415087 | O43: =O18*W$19 -> 0.00644309935 | P43: =P18*W$20 -> 0.005315855121 | Q43: =Q18*W$21 -> 0.006109968153 | R43: =R18*W$22 -> 0.03440816571 | S43: =S18*W$23 -> 0.03308450892 | T43: =T18*W$24 -> 0.06420468936 | U43: =U18*W$25 -> 0.03627131318 | V43: =V18*W$26 -> 0.03903108698
L44: V3 | M44: 0.00579905041 | N44: 0.005450415087 | O44: 0.00644309935 | P44: 0.005315855121 | Q44: 0.01527492038 | R44: 0.03440816571 | S44: 0.02274559988 | T44: 0.06420468936 | U44: 0.03108969701 | V44: 0.07806217396
L45: V4 | M45: 0.00579905041 | N45: 0.005450415087 | O45: 0.00644309935 | P45: 0.005315855121 | Q45: 0.01527492038 | R45: 0.03440816571 | S45: 0.03411839983 | T45: 0.06420468936 | U45: 0.02072646467 | V45: 0.07806217396
L46: V5 | M46: 0.01574027968 | N46: 0.00817562263 | O46: 0.00644309935 | P46: 0.005315855121 | Q46: 0.01527492038 | R46: 0.03440816571 | S46: 0.04032174525 | T46: 0.01454548715 | U46: 0.04145292935 | V46: 0.03903108698
L47: V6 | M47: 0.0489876452 | N47: 0.00817562263 | O47: 0.009664649025 | P47: 0.01063171024 | Q47: 0.01527492038 | R47: 0.01720408285 | S47: 0.03411839983 | T47: 0.02840915458 | U47: 0.02590808084 | V47: 0.03903108698
L48: V7 | M48: 0.02543022986 | N48: 0.005450415087 | O48: 0.00644309935 | P48: 0.01063171024 | Q48: 0.01527492038 | R48: 0.01720408285 | S48: 0.02481338169 | T48: 0.05681830917 | U48: 0.01036323234 | V48: 0.07806217396
L49: V8 | M49: 0.02150399397 | N49: 0.00817562263 | O49: 0.009664649025 | P49: 0.01063171024 | Q49: 0.01527492038 | R49: 0.03440816571 | S49: 0.03515229073 | T49: 0.05681830917 | U49: 0.04663454551 | V49: 0.03903108698
L50: V9 | M50: 0.04388353855 | N50: 0.00817562263 | O50: 0.009664649025 | P50: 0.005315855121 | Q50: 0.01527492038 | R50: 0.01720408285 | S50: 0.03825396344 | T50: 0.02840915458 | U50: 0.005181616168 | V50: 0.03903108698
L51: V10 | M51: 0.02150399397 | N51: 0.00817562263 | O51: 0.009664649025 | P51: 0.01063171024 | Q51: 0.01527492038 | R51: 0.03440816571 | S51: 0.03722007254 | T51: 0.05681830917 | U51: 0.05181616168 | V51: 0.03903108698
L52: hj | M52: =MAX(M42:M51) -> 0.0489876452 | N52: =MAX(N42:N51) -> 0.00817562263 | O52: 0.009664649025 | P52: 0.01063171024 | Q52: 0.01527492038 | R52: 0.03440816571 | S52: 0.04032174525 | T52: 0.06420468936 | U52: 0.05181616168 | V52: 0.07806217396
L53: dj | M53: =MIN(M42:M51) -> 0 | N53: =MIN(N42:N51) -> 0.005450415087 | O53: 0.00644309935 | P53: 0.005315855121 | Q53: 0.006109968153 | R53: 0.01720408285 | S53: 0.02274559988 | T53: 0.01454548715 | U53: 0.005181616168 | V53: 0.03903108698
M55: =(M42-M$52)^2 -> 0.002399789383 | N55: =(N42-N$52)^2 -> 7.426756155e-06 | O55: 1.037838231e-05 | P55: 2.825831567e-05 | Q55: 0 | R55: 0 | S55: 3.848149444e-05 | T55: 5.455861234e-05 | U55: 0.00131560816 | V55: 0.001523425751 | Y55: =(M42-M$53)^2 -> 0 | Z55: =(N42-N$53)^2 -> 0 | AA55: =(O42-O$53)^2 -> 0 | AB55: =(P42-P$53)^2 -> 0 | AC55: =(Q42-Q$53)^2 -> 8.399634937e-05 | AD55: =(R42-R$53)^2 -> 0.0002959804669 | AE55: =(S42-S$53)^2 -> 0.0001293405785 | AF55: =(T42-T$53)^2 -> 0.001786991482 | AG55: =(U42-U$53)^2 -> 0.0001073965845 | AH55: =(V42-V$53)^2 -> 0
M56: =(M43-M$52)^2 -> 0.0008903893607 | N56: 7.426756155e-06 | O56: 1.037838231e-05 | P56: 2.825831567e-05 | Q56: 8.399634937e-05 | R56: 0 | S56: 5.237758965e-05 | T56: 0 | U56: 0.000241642315 | V56: 0.001523425751 | Y56: =(M43-M$53)^2 -> 0.0003666555714 | Z56: =(N43-N$53)^2 -> 0 | AA56: =(O43-O$53)^2 -> 0 | AB56: =(P43-P$53)^2 -> 0 | AC56: =(Q43-Q$53)^2 -> 0 | AD56: =(R43-R$53)^2 -> 0.0002959804669 | AE56: =(S43-S$53)^2 -> 0.0001068930401 | AF56: =(T43-T$53)^2 -> 0.002466036364 | AG56: =(U43-U$53)^2 -> 0.0009665692602 | AH56: =(V43-V$53)^2 -> 0
M57: =(M44-M$52)^2 -> 0.00186525472 | N57: 7.426756155e-06 | O57: 1.037838231e-05 | P57: 2.825831567e-05 | Q57: 0 | R57: 0 | S57: 0.0003089208859 | T57: 0 | U57: 0.0004295863378 | V57: 0 | Y57: 3.362898566e-05 | Z57: 0 | AA57: 0 | AB57: 0 | AC57: 8.399634937e-05 | AD57: 0.0002959804669 | AE57: 0 | AF57: 0.002466036364 | AG57: 0.0006712286529 | AH57: 0.001523425751
M58: =(M45-M$52)^2 -> 0.00186525472 | N58: 7.426756155e-06 | O58: 1.037838231e-05 | P58: 2.825831567e-05 | Q58: 0 | R58: 0 | S58: 3.848149444e-05 | T58: 0 | U58: 0.0009665692602 | V58: 0 | Y58: 3.362898566e-05 | Z58: 0 | AA58: 0 | AB58: 0 | AC58: 8.399634937e-05 | AD58: 0.0002959804669 | AE58: 0.0001293405785 | AF58: 0.002466036364 | AG58: 0.000241642315 | AH58: 0.001523425751
M59: =(M46-M$52)^2 -> 0.001105387314 | N59: 0 | O59: 1.037838231e-05 | P59: 2.825831567e-05 | Q59: 0 | R59: 0 | S59: 0 | T59: 0.002466036364 | U59: 0.0001073965845 | V59: 0.001523425751 | Y59: 0.0002477564045 | Z59: 7.426756155e-06 | AA59: 0 | AB59: 0 | AC59: 8.399634937e-05 | AD59: 0.0002959804669 | AE59: 0.0003089208859 | AF59: 0 | AG59: 0.00131560816 | AH59: 0
M60: =(M47-M$52)^2 -> 0 | N60: 0 | O60: 0 | P60: 0 | Q60: 0 | R60: 0.0002959804669 | S60: 3.848149444e-05 | T60: 0.00128132031 | U60: 0.0006712286529 | V60: 0.001523425751 | Y60: 0.002399789383 | Z60: 7.426756155e-06 | AA60: 1.037838231e-05 | AB60: 2.825831567e-05 | AC60: 8.399634937e-05 | AD60: 0 | AE60: 0.0001293405785 | AF60: 0.0001922012748 | AG60: 0.0004295863378 | AH60: 0
M61: =(M48-M$52)^2 -> 0.0005549518176 | N61: 7.426756155e-06 | O61: 1.037838231e-05 | P61: 0 | Q61: 0 | R61: 0.0002959804669 | S61: 0.0002405093402 | T61: 5.455861234e-05 | U61: 0.001718345351 | V61: 0 | Y61: 0.0006466965908 | Z61: 0 | AA61: 0 | AB61: 2.825831567e-05 | AC61: 8.399634937e-05 | AD61: 0 | AE61: 4.275721604e-06 | AF61: 0.001786991482 | AG61: 2.684914612e-05 | AH61: 0.001523425751
M62: =(M49-M$52)^2 -> 0.0007553510851 | N62: 0 | O62: 0 | P62: 0 | Q62: 0 | R62: 0 | S62: 2.672326002e-05 | T62: 5.455861234e-05 | U62: 2.684914612e-05 | V62: 0.001523425751 | Y62: 0.0004624217567 | Z62: 7.426756155e-06 | AA62: 1.037838231e-05 | AB62: 2.825831567e-05 | AC62: 8.399634937e-05 | AD62: 0.0002959804669 | AE62: 0.0001539259777 | AF62: 0.001786991482 | AG62: 0.001718345351 | AH62: 0
M63: =(M50-M$52)^2 -> 2.605190477e-05 | N63: 0 | O63: 0 | P63: 2.825831567e-05 | Q63: 0 | R63: 0.0002959804669 | S63: 4.275721604e-06 | T63: 0.00128132031 | U63: 0.002174780835 | V63: 0.001523425751 | Y63: 0.001925764955 | Z63: 7.426756155e-06 | AA63: 1.037838231e-05 | AB63: 0 | AC63: 8.399634937e-05 | AD63: 0 | AE63: 0.0002405093402 | AF63: 0.0001922012748 | AG63: 0 | AH63: 0
M64: =(M51-M$52)^2 -> 0.0007553510851 | N64: 0 | O64: 0 | P64: 0 | Q64: 0 | R64: 0 | S64: 9.620373609e-06 | T64: 5.455861234e-05 | U64: 0 | V64: 0.001523425751 | Y64: 0.0004624217567 | Z64: 7.426756155e-06 | AA64: 1.037838231e-05 | AB64: 2.825831567e-05 | AC64: 8.399634937e-05 | AD64: 0.0002959804669 | AE64: 0.0002095103586 | AF64: 0.001786991482 | AG64: 0.002174780835 | AH64: 0
